﻿Directorate,Service,Division,Responsible Unit,Expense Type,Payment Date,Trans No,Net Amount,Supplier Name
Childrens Services,Education Services,Other Strategic Functions,Music Trading Account,Meeting Expenses,01/03/2019,5171155,282.80,the royal foundation of st katharine
Childrens Services,Education Services,Other Strategic Functions,Music Trading Account,Educational/Training Supplies - Arts & Crafts,01/03/2019,5171246,859.00,LMS Music Supplies
Childrens Services,Cultural and Related Services,Recreation & Sport,Sports Development,Recreational Activities,01/03/2019,5174108,"8,250.00",Our Parks Ltd
Childrens Services,Education Services,Other Strategic Functions,Auxilary Aids,Educational/Training Supplies - Resources,01/03/2019,5174981,"4,700.00",HumanWare Europe Ltd
Childrens Services,Children's Social Care,Children Looked After,S23 Fam Pl P&V-F/Care,Childrens Act Section 23 - Placement Fee,01/03/2019,5175002,"3,032.12",Futures for Children Ltd
Childrens Services,Children's Social Care,Support Service and Management Costs,Schools Catering,Kitchen Supplies - Food and Beverages,01/03/2019,5175109,561.05,Thomas Ridley & Son Ltd
Childrens Services,Children's Social Care,Support Service and Management Costs,Schools Catering,Kitchen Supplies - Food and Beverages,01/03/2019,5175110,874.05,Thomas Ridley & Son Ltd
Childrens Services,Children's Social Care,Support Service and Management Costs,Schools Catering,Kitchen Supplies - Food and Beverages,01/03/2019,5175111,503.90,Thomas Ridley & Son Ltd
Childrens Services,Children's Social Care,Support Service and Management Costs,Schools Catering,Kitchen Supplies - Food and Beverages,01/03/2019,5175112,674.90,Thomas Ridley & Son Ltd
Childrens Services,Children's Social Care,Support Service and Management Costs,Schools Catering,Kitchen Supplies - Food and Beverages,01/03/2019,5175114,482.82,Thomas Ridley & Son Ltd
Childrens Services,Children's Social Care,Support Service and Management Costs,Schools Catering,Kitchen Supplies - Food and Beverages,01/03/2019,5175115,346.62,Thomas Ridley & Son Ltd
Childrens Services,Children's Social Care,Support Service and Management Costs,Schools Catering,Kitchen Supplies - Food and Beverages,01/03/2019,5175116,466.59,Thomas Ridley & Son Ltd
Childrens Services,Children's Social Care,Support Service and Management Costs,Schools Catering,Kitchen Supplies - Food and Beverages,01/03/2019,5175118,639.02,Thomas Ridley & Son Ltd
Childrens Services,Children's Social Care,Support Service and Management Costs,Schools Catering,Kitchen Supplies - Food and Beverages,01/03/2019,5175119,755.41,Thomas Ridley & Son Ltd
Childrens Services,Children's Social Care,Support Service and Management Costs,Schools Catering,Kitchen Supplies - Food and Beverages,01/03/2019,5175120,544.91,Thomas Ridley & Son Ltd
Childrens Services,Children's Social Care,Support Service and Management Costs,Schools Catering,Kitchen Supplies - Food and Beverages,01/03/2019,5175121,343.18,Thomas Ridley & Son Ltd
Childrens Services,Children's Social Care,Support Service and Management Costs,Schools Catering,Kitchen Supplies - Food and Beverages,01/03/2019,5175122,412.81,Thomas Ridley & Son Ltd
Childrens Services,Children's Social Care,Support Service and Management Costs,Schools Catering,Kitchen Supplies - Food and Beverages,01/03/2019,5175123,858.88,Thomas Ridley & Son Ltd
Childrens Services,Children's Social Care,Support Service and Management Costs,Schools Catering,Kitchen Supplies - Food and Beverages,01/03/2019,5175125,706.32,Thomas Ridley & Son Ltd
Childrens Services,Children's Social Care,Support Service and Management Costs,Schools Catering,Kitchen Supplies - Food and Beverages,01/03/2019,5175127,330.15,Thomas Ridley & Son Ltd
Childrens Services,Children's Social Care,Support Service and Management Costs,Schools Catering,Kitchen Supplies - Food and Beverages,01/03/2019,5175128,498.76,Thomas Ridley & Son Ltd
Childrens Services,Children's Social Care,Support Service and Management Costs,Schools Catering,Kitchen Supplies - Food and Beverages,01/03/2019,5175129,603.26,Thomas Ridley & Son Ltd
Childrens Services,Children's Social Care,Support Service and Management Costs,Schools Catering,Kitchen Supplies - Food and Beverages,01/03/2019,5175130,499.78,Thomas Ridley & Son Ltd
Childrens Services,Children's Social Care,Support Service and Management Costs,Schools Catering,Kitchen Supplies - Food and Beverages,01/03/2019,5175132,465.11,Thomas Ridley & Son Ltd
Childrens Services,Children's Social Care,Support Service and Management Costs,Schools Catering,Kitchen Supplies - Food and Beverages,01/03/2019,5175133,532.02,Thomas Ridley & Son Ltd
Childrens Services,Children's Social Care,Support Service and Management Costs,Schools Catering,Kitchen Supplies - Food and Beverages,01/03/2019,5175134,339.42,Thomas Ridley & Son Ltd
Childrens Services,Children's Social Care,Support Service and Management Costs,Schools Catering,Kitchen Supplies - Food and Beverages,01/03/2019,5175135,360.60,Thomas Ridley & Son Ltd
Childrens Services,Children's Social Care,Support Service and Management Costs,Schools Catering,Kitchen Supplies - Food and Beverages,01/03/2019,5175136,775.63,Thomas Ridley & Son Ltd
Childrens Services,Children's Social Care,Support Service and Management Costs,Schools Catering,Kitchen Supplies - Food and Beverages,01/03/2019,5175139,322.30,Thomas Ridley & Son Ltd
Childrens Services,Children's Social Care,Support Service and Management Costs,Schools Catering,Kitchen Supplies - Food and Beverages,01/03/2019,5175140,935.42,Thomas Ridley & Son Ltd
Childrens Services,Children's Social Care,Support Service and Management Costs,Schools Catering,Kitchen Supplies - Food and Beverages,01/03/2019,5175142,334.79,Thomas Ridley & Son Ltd
Childrens Services,Children's Social Care,Support Service and Management Costs,Schools Catering,Kitchen Supplies - Food and Beverages,01/03/2019,5175143,431.42,Thomas Ridley & Son Ltd
Childrens Services,Children's Social Care,Support Service and Management Costs,Schools Catering,Kitchen Supplies - Food and Beverages,01/03/2019,5175144,531.03,Thomas Ridley & Son Ltd
Childrens Services,Children's Social Care,Support Service and Management Costs,Schools Catering,Kitchen Supplies - Food and Beverages,01/03/2019,5175146,482.49,Thomas Ridley & Son Ltd
Childrens Services,Children's Social Care,Support Service and Management Costs,Schools Catering,Kitchen Supplies - Food and Beverages,01/03/2019,5175147,345.54,Thomas Ridley & Son Ltd
Childrens Services,Children's Social Care,Support Service and Management Costs,Schools Catering,Kitchen Supplies - Food and Beverages,01/03/2019,5175148,286.46,Thomas Ridley & Son Ltd
Childrens Services,Children's Social Care,Support Service and Management Costs,Schools Catering,Kitchen Supplies - Food and Beverages,01/03/2019,5175149,288.25,Thomas Ridley & Son Ltd
Childrens Services,Children's Social Care,Support Service and Management Costs,Schools Catering,Kitchen Supplies - Food and Beverages,01/03/2019,5175150,394.19,Thomas Ridley & Son Ltd
Childrens Services,Children's Social Care,Support Service and Management Costs,Swanlea,Kitchen Supplies - Food and Beverages,01/03/2019,5175151,579.47,Thomas Ridley & Son Ltd
Childrens Services,Children's Social Care,Support Service and Management Costs,Schools Catering,Kitchen Supplies - Food and Beverages,01/03/2019,5175152,477.04,Thomas Ridley & Son Ltd
Childrens Services,Children's Social Care,Support Service and Management Costs,Schools Catering,Kitchen Supplies - Food and Beverages,01/03/2019,5175153,282.90,Thomas Ridley & Son Ltd
Childrens Services,Children's Social Care,Support Service and Management Costs,Schools Catering,Kitchen Supplies - Food and Beverages,01/03/2019,5175154,418.07,Thomas Ridley & Son Ltd
Childrens Services,Children's Social Care,Support Service and Management Costs,Schools Catering,Kitchen Supplies - Food and Beverages,01/03/2019,5175158,995.63,Thomas Ridley & Son Ltd
Childrens Services,Children's Social Care,Support Service and Management Costs,Schools Catering,Kitchen Supplies - Food and Beverages,01/03/2019,5175159,424.27,Thomas Ridley & Son Ltd
Childrens Services,Children's Social Care,Support Service and Management Costs,Schools Catering,Kitchen Supplies - Food and Beverages,01/03/2019,5175160,363.46,Thomas Ridley & Son Ltd
Childrens Services,Children's Social Care,Support Service and Management Costs,Schools Catering,Kitchen Supplies - Food and Beverages,01/03/2019,5175161,420.63,Thomas Ridley & Son Ltd
Childrens Services,Children's Social Care,Support Service and Management Costs,Schools Catering,Kitchen Supplies - Food and Beverages,01/03/2019,5175162,504.56,Thomas Ridley & Son Ltd
Childrens Services,Children's Social Care,Support Service and Management Costs,Schools Catering,Kitchen Supplies - Food and Beverages,01/03/2019,5175163,373.26,Thomas Ridley & Son Ltd
Childrens Services,Children's Social Care,Support Service and Management Costs,Schools Catering,Kitchen Supplies - Food and Beverages,01/03/2019,5175164,614.93,Thomas Ridley & Son Ltd
Childrens Services,Children's Social Care,Support Service and Management Costs,Schools Catering,Kitchen Supplies - Food and Beverages,01/03/2019,5175165,837.60,Thomas Ridley & Son Ltd
Childrens Services,Children's Social Care,Support Service and Management Costs,Schools Catering,Kitchen Supplies - Food and Beverages,01/03/2019,5175166,"1,041.15",Thomas Ridley & Son Ltd
Childrens Services,Children's Social Care,Support Service and Management Costs,Schools Catering,Kitchen Supplies - Food and Beverages,01/03/2019,5175167,722.52,Thomas Ridley & Son Ltd
Childrens Services,Children's Social Care,Support Service and Management Costs,"Mulberry Caf�		",Kitchen Supplies - Food and Beverages,01/03/2019,5175168,291.91,Thomas Ridley & Son Ltd
Childrens Services,Children's Social Care,Support Service and Management Costs,Schools Catering,Kitchen Supplies - Food and Beverages,01/03/2019,5175169,639.73,Thomas Ridley & Son Ltd
Childrens Services,Children's Social Care,Support Service and Management Costs,Schools Catering,Kitchen Supplies - Food and Beverages,01/03/2019,5175170,298.71,Thomas Ridley & Son Ltd
Childrens Services,Children's Social Care,Support Service and Management Costs,Schools Catering,Kitchen Supplies - Food and Beverages,01/03/2019,5175171,572.26,Thomas Ridley & Son Ltd
Childrens Services,Children's Social Care,Support Service and Management Costs,Schools Catering,Kitchen Supplies - Food and Beverages,01/03/2019,5175173,432.44,Thomas Ridley & Son Ltd
Childrens Services,Children's Social Care,Support Service and Management Costs,Schools Catering,Kitchen Supplies - Food and Beverages,01/03/2019,5175175,526.46,Thomas Ridley & Son Ltd
Childrens Services,Children's Social Care,Support Service and Management Costs,Schools Catering,Kitchen Supplies - Food and Beverages,01/03/2019,5175177,317.54,Thomas Ridley & Son Ltd
Childrens Services,Children's Social Care,Support Service and Management Costs,Schools Catering,Kitchen Supplies - Food and Beverages,01/03/2019,5175178,831.08,Thomas Ridley & Son Ltd
Childrens Services,Children's Social Care,Support Service and Management Costs,Schools Catering,Kitchen Supplies - Food and Beverages,01/03/2019,5175179,399.47,Thomas Ridley & Son Ltd
Childrens Services,Children's Social Care,Support Service and Management Costs,Schools Catering,Kitchen Supplies - Food and Beverages,01/03/2019,5175182,535.22,Thomas Ridley & Son Ltd
Childrens Services,Children's Social Care,Support Service and Management Costs,Schools Catering,Kitchen Supplies - Food and Beverages,01/03/2019,5175183,328.36,Thomas Ridley & Son Ltd
Childrens Services,Children's Social Care,Children's and Young People's Safety,CLA Reviewing Service,Non Staff Transport Costs - Reimbursement,01/03/2019,5175195,"1,353.00",RSP Rail Travel (Rail Settlement Plan)
Childrens Services,Children's Social Care,Support Service and Management Costs,Schools Catering,Kitchen Supplies - Food and Beverages,01/03/2019,5175280,305.00,William White Meats Ltd
Childrens Services,Children's Social Care,Support Service and Management Costs,Schools Catering,Kitchen Supplies - Food and Beverages,01/03/2019,5175315,290.60,William White Meats Ltd
Childrens Services,Children's Social Care,Support Service and Management Costs,Welfare Catering,Kitchen Supplies - Food and Beverages,01/03/2019,5175321,265.53,William White Meats Ltd
Childrens Services,Children's Social Care,Support Service and Management Costs,Schools Catering,Kitchen Supplies - Food and Beverages,01/03/2019,5175339,275.18,William White Meats Ltd
Childrens Services,Children's Social Care,Support Service and Management Costs,Schools Catering,Kitchen Supplies - Food and Beverages,01/03/2019,5175344,469.82,William White Meats Ltd
Childrens Services,Children's Social Care,Support Service and Management Costs,Schools Catering,Kitchen Supplies - Food and Beverages,01/03/2019,5175348,400.50,William White Meats Ltd
Childrens Services,Children's Social Care,Support Service and Management Costs,Schools Catering,Kitchen Supplies - Food and Beverages,01/03/2019,5175351,548.19,William White Meats Ltd
Childrens Services,Children's Social Care,Support Service and Management Costs,Schools Catering,Kitchen Supplies - Food and Beverages,01/03/2019,5175352,332.88,William White Meats Ltd
Childrens Services,Children's Social Care,Support Service and Management Costs,Schools Catering,Kitchen Supplies - Food and Beverages,01/03/2019,5175356,633.77,William White Meats Ltd
Childrens Services,Children's Social Care,Support Service and Management Costs,Schools Catering,Kitchen Supplies - Food and Beverages,01/03/2019,5175358,305.36,William White Meats Ltd
Childrens Services,Children's Social Care,Support Service and Management Costs,Schools Catering,Kitchen Supplies - Food and Beverages,01/03/2019,5175361,396.50,William White Meats Ltd
Childrens Services,Children's Social Care,Support Service and Management Costs,Sch. Meals A/c - Central Production Unit,Kitchen Supplies - Food and Beverages,01/03/2019,5175363,"2,097.93",William White Meats Ltd
Childrens Services,Children's Social Care,Support Service and Management Costs,Schools Catering,Kitchen Supplies - Food and Beverages,01/03/2019,5175369,285.10,William White Meats Ltd
Childrens Services,Children's Social Care,Support Service and Management Costs,Schools Catering,Kitchen Supplies - Food and Beverages,01/03/2019,5175370,269.17,William White Meats Ltd
Childrens Services,Children's Social Care,Support Service and Management Costs,Schools Catering,Kitchen Supplies - Food and Beverages,01/03/2019,5175371,305.00,William White Meats Ltd
Childrens Services,Children's Social Care,Support Service and Management Costs,Schools Catering,Kitchen Supplies - Food and Beverages,01/03/2019,5175373,305.00,William White Meats Ltd
Childrens Services,Children's Social Care,Youth Justice,Partnerships,Third Party Payments - Other Agencies,01/03/2019,5175400,"3,719.50",Homerton University Hospital Trust
Childrens Services,Children's Social Care,Children Looked After,S23 Fam Pl P&V-F/Care,Childrens Act Section 23 - Placement Fee,01/03/2019,5175476,"4,883.76",Diverse Care (UK) Limited
Childrens Services,Children's Social Care,Children Looked After,S23 Fam Pl P&V-F/Care,Childrens Act Section 23 - Placement Fee,01/03/2019,5175502,"2,980.04",Aspirations Fostering
Childrens Services,Children's Social Care,Children Looked After,S23 Fam Pl P&V-F/Care,Childrens Act Section 23 - Placement Fee,01/03/2019,5175503,"2,800.00",Aspirations Fostering
Childrens Services,Children's Social Care,Children Looked After,S23 Fam Pl P&V-F/Care,Childrens Act Section 23 - Placement Fee,01/03/2019,5175504,"2,800.00",Aspirations Fostering
Childrens Services,Children's Social Care,Children Looked After,S23 Fam Pl P&V-F/Care,Childrens Act Section 23 - Placement Fee,01/03/2019,5175505,"2,800.00",Aspirations Fostering
Childrens Services,Children's Social Care,Support Service and Management Costs,Childrens Services IT Trading,Computing - Apportionment of Costs,01/03/2019,5175518,"11,002.00",Agilisys Professional Services
Childrens Services,Education Services,Other Strategic Functions,Central Pupil Database Project,Services - Professional Fees - Consultants Fees,01/03/2019,5175520,"4,508.00",Agilisys Professional Services
Childrens Services,Education Services,Other Strategic Functions,High Needs Academies & Free Schs,Third Party Payments - Payments to Schools,01/03/2019,5176114,"16,160.00",Whitefield Academy Trust - Joseph Clarke School
Childrens Services,Children's Social Care,Children Looked After,S23-Resi-P&V/OLA-Child Home,Childrens Act Section 23 - Placement Fee,01/03/2019,5176221,"12,000.00",Area Camden LTD
Childrens Services,Children's Social Care,Children Looked After,S23 Fam Pl P&V-F/Care,Childrens Act Section 23 - Placement Fee,01/03/2019,5176242,"3,555.70",Foster Care Associates Limited
Childrens Services,Children's Social Care,Children Looked After,S23-Other-Semi-Ind. Unit,Childrens Act Section 23 - Commissioned Services,01/03/2019,5177800,308.00,Fleet Tutors
Childrens Services,Children's Social Care,Youth Justice,Partnerships,Third Party Payments - Other Agencies,01/03/2019,5178261,"11,152.00",Homerton University Hospital Trust
Childrens Services,Education Services,Other Strategic Functions,Special Education Needs DSG,Payments to Private Contractors - Private Contractor,01/03/2019,5178322,950.00,Redacted Section 40 FOI Act
Childrens Services,Children's Social Care,Support Service and Management Costs,Sch. Meals A/c - Bow School,Kitchen Supplies - Food and Beverages,01/03/2019,5178323,984.15,Tiffin Sandwiches
Childrens Services,Children's Social Care,Support Service and Management Costs,Sch. Meals A/c - C.F.S. Upper (Harley Grove),Catering - Hospitality,01/03/2019,5178324,729.00,Tiffin Sandwiches
Childrens Services,Children's Social Care,Support Service and Management Costs,Sch. Meals A/c - Morpeth,Kitchen Supplies - Food and Beverages,01/03/2019,5178325,"1,043.37",Tiffin Sandwiches
Childrens Services,Children's Social Care,Support Service and Management Costs,Sch. Meals A/c - Raines Foundation,Kitchen Supplies - Food and Beverages,01/03/2019,5178326,332.91,Tiffin Sandwiches
Childrens Services,Children's Social Care,Support Service and Management Costs,Sch. Meals A/c - St. Paul's Way Comm. Trust,Kitchen Supplies - Food and Beverages,01/03/2019,5178327,456.84,Tiffin Sandwiches
Childrens Services,Children's Social Care,Support Service and Management Costs,Sch. Meals A/c - Stepney Green,Kitchen Supplies - Food and Beverages,01/03/2019,5178328,283.50,Tiffin Sandwiches
Childrens Services,Children's Social Care,Support Service and Management Costs,"Mulberry Caf�		",Kitchen Supplies - Food and Beverages,01/03/2019,5178329,408.03,Tiffin Sandwiches
Childrens Services,Children's Social Care,Support Service and Management Costs,Professional Dev Centre,Third Party Payments - Voluntary Associations,01/03/2019,5178338,"8,735.00",London Grid Learning Trust
Childrens Services,Cultural and Related Services,Open Spaces,Mile End Park,Repairs and Maintenance - Responsive - Buildings,01/03/2019,5178353,"1,690.00",J&L Coster (Drainage) Ltd
Childrens Services,Children's Social Care,Children Looked After,S23 Fam Pl P&V-F/Care,Childrens Act Section 23 - Placement Fee,01/03/2019,5178374,"5,800.00",Five Rivers Childcare Limited
Childrens Services,Children's Social Care,Children Looked After,S23 Fam Pl P&V-F/Care,Childrens Act Section 23 - Placement Fee,01/03/2019,5178375,"3,172.12",Five Rivers Childcare Limited
Childrens Services,Children's Social Care,Children Looked After,S23 Fam Pl P&V-F/Care,Childrens Act Section 23 - Placement Fee,01/03/2019,5178376,"2,726.52",Five Rivers Childcare Limited
Childrens Services,Education Services,Other Strategic Functions,Music Trading Account,Educational/Training Supplies - Arts & Crafts,01/03/2019,5178396,393.70,LMS Music Supplies
Childrens Services,Education Services,Other Strategic Functions,Music Trading Account,Educational/Training Supplies - Arts & Crafts,01/03/2019,5178397,296.25,LMS Music Supplies
Childrens Services,Children's Social Care,Children Looked After,S23 Family Placements P&V,Childrens Act Section 23 - Placement Fee,01/03/2019,5178413,"4,400.00",Credo Care ltd
Childrens Services,Children's Social Care,Service Strategy,CSC Childrens Resources M & A,Childrens Act Section 23 - Placement Fee,01/03/2019,5178416,550.00,Brighter Future Solutions
Childrens Services,Children's Social Care,Support Service and Management Costs,Schools Catering,Kitchen Supplies - Food and Beverages,01/03/2019,5178582,386.90,William White Meats Ltd
Childrens Services,Children's Social Care,Support Service and Management Costs,Schools Catering,Kitchen Supplies - Food and Beverages,01/03/2019,5178589,253.05,William White Meats Ltd
Childrens Services,Children's Social Care,Support Service and Management Costs,Schools Catering,Kitchen Supplies - Food and Beverages,01/03/2019,5178591,271.12,William White Meats Ltd
Childrens Services,Children's Social Care,Support Service and Management Costs,Schools Catering,Kitchen Supplies - Food and Beverages,01/03/2019,5178593,528.27,William White Meats Ltd
Childrens Services,Children's Social Care,Support Service and Management Costs,Schools Catering,Kitchen Supplies - Food and Beverages,01/03/2019,5178599,263.49,William White Meats Ltd
Childrens Services,Children's Social Care,Support Service and Management Costs,Schools Catering,Kitchen Supplies - Food and Beverages,01/03/2019,5178610,896.52,William White Meats Ltd
Childrens Services,Children's Social Care,Support Service and Management Costs,Schools Catering,Kitchen Supplies - Food and Beverages,01/03/2019,5178611,463.51,William White Meats Ltd
Childrens Services,Children's Social Care,Support Service and Management Costs,Schools Catering,Kitchen Supplies - Food and Beverages,01/03/2019,5178612,521.18,William White Meats Ltd
Childrens Services,Children's Social Care,Support Service and Management Costs,Schools Catering,Kitchen Supplies - Food and Beverages,01/03/2019,5178613,410.80,William White Meats Ltd
Childrens Services,Children's Social Care,Support Service and Management Costs,Schools Catering,Kitchen Supplies - Food and Beverages,01/03/2019,5178616,912.59,William White Meats Ltd
Childrens Services,Children's Social Care,Support Service and Management Costs,Schools Catering,Kitchen Supplies - Food and Beverages,01/03/2019,5178620,297.67,William White Meats Ltd
Childrens Services,Children's Social Care,Support Service and Management Costs,Schools Catering,Kitchen Supplies - Food and Beverages,01/03/2019,5178621,337.26,William White Meats Ltd
Childrens Services,Children's Social Care,Support Service and Management Costs,Schools Catering,Kitchen Supplies - Food and Beverages,01/03/2019,5178624,600.95,William White Meats Ltd
Childrens Services,Children's Social Care,Support Service and Management Costs,Schools Catering,Kitchen Supplies - Food and Beverages,01/03/2019,5178628,299.35,William White Meats Ltd
Childrens Services,Children's Social Care,Support Service and Management Costs,Schools Catering,Kitchen Supplies - Food and Beverages,01/03/2019,5178632,685.43,William White Meats Ltd
Childrens Services,Children's Social Care,Support Service and Management Costs,Schools Catering,Kitchen Supplies - Food and Beverages,01/03/2019,5178634,326.53,William White Meats Ltd
Childrens Services,Children's Social Care,Support Service and Management Costs,Schools Catering,Kitchen Supplies - Food and Beverages,01/03/2019,5178635,343.40,William White Meats Ltd
Childrens Services,Children's Social Care,Support Service and Management Costs,Schools Catering,Kitchen Supplies - Food and Beverages,01/03/2019,5178638,264.83,William White Meats Ltd
Childrens Services,Children's Social Care,Support Service and Management Costs,Schools Catering,Kitchen Supplies - Food and Beverages,01/03/2019,5178641,402.46,William White Meats Ltd
Childrens Services,Children's Social Care,Support Service and Management Costs,Schools Catering,Kitchen Supplies - Food and Beverages,01/03/2019,5178642,270.43,William White Meats Ltd
Childrens Services,Cultural and Related Services,Open Spaces,Parks & Open Spaces Man&Admin,Third Party Payments - Other Local Authorities,01/03/2019,5178714,280.87,Port of London Authority
Childrens Services,Children's Social Care,Children Looked After,S23-Resi-P&V/OLA-Child Home,Childrens Act Section 23 - Placement Fee,01/03/2019,5178748,"19,113.00",Kibble Education and Care Centre
Childrens Services,Education Services,Other Strategic Functions,Special Education Needs DSG,Third Party Payments - Payments to Schools,01/03/2019,5178766,"17,050.00",CARE Ltd
Childrens Services,Children's Social Care,Children Looked After,S23-Resi-P&V/OLA-Child Home,Childrens Act Section 23 - Placement Fee,01/03/2019,5178766,"17,050.00",CARE Ltd
Childrens Services,Children's Social Care,Children Looked After,S23-Other-Mother & Baby Unit,Childrens Act Section 23 - Placement Fee,01/03/2019,5178941,"13,800.00",OneOneCoCo
Childrens Services,Children's Social Care,Children Looked After,S23 Fam Pl P&V-F/Care,Childrens Act Section 23 - Placement Fee,01/03/2019,5178948,"5,380.36",Integrated Fostering Services Ltd
Childrens Services,Children's Social Care,Children Looked After,S23 Fam Pl P&V-F/Care,Childrens Act Section 23 - Placement Fee,01/03/2019,5178949,"3,631.34",Integrated Fostering Services Ltd
Childrens Services,Children's Social Care,Children Looked After,S23 Fam Pl P&V-F/Care,Childrens Act Section 23 - Placement Fee,01/03/2019,5178950,"3,367.84",Integrated Fostering Services Ltd
Childrens Services,Children's Social Care,Children Looked After,S23 Fam Pl P&V-F/Care,Childrens Act Section 23 - Placement Fee,01/03/2019,5178951,"3,367.84",Integrated Fostering Services Ltd
Childrens Services,Children's Social Care,Children Looked After,S23 Fam Pl P&V-F/Care,Childrens Act Section 23 - Placement Fee,01/03/2019,5178952,"5,314.33",Integrated Fostering Services Ltd
Childrens Services,Children's Social Care,Children Looked After,S23 Fam Pl P&V-F/Care,Childrens Act Section 23 - Placement Fee,01/03/2019,5178953,"3,631.34",Integrated Fostering Services Ltd
Childrens Services,Children's Social Care,Children Looked After,S23 Fam Pl P&V-F/Care,Childrens Act Section 23 - Placement Fee,01/03/2019,5178954,905.35,Integrated Fostering Services Ltd
Childrens Services,Children's Social Care,Family Support Services,IPST S17 NRPF,Childrens Act Section 17 - Other Placements Bed & Breakfast,01/03/2019,5180276,"1,395.00",UK Room (London) Ltd
Childrens Services,Children's Social Care,Family Support Services,IPST S17 NRPF,Childrens Act Section 17 - Other Placements Bed & Breakfast,01/03/2019,5180277,704.00,UK Room (London) Ltd
Childrens Services,Children's Social Care,Family Support Services,IPST S17 NRPF,Childrens Act Section 17 - Other Placements Bed & Breakfast,01/03/2019,5180278,784.00,UK Room (London) Ltd
Childrens Services,Children's Social Care,Family Support Services,IPST S17 NRPF,Childrens Act Section 17 - Other Placements Bed & Breakfast,01/03/2019,5180279,868.00,UK Room (London) Ltd
Childrens Services,Children's Social Care,Family Support Services,IPST S17 NRPF,Childrens Act Section 17 - Other Placements Bed & Breakfast,01/03/2019,5180280,376.00,UK Room (London) Ltd
Childrens Services,Children's Social Care,Family Support Services,IPST S17 NRPF,Childrens Act Section 17 - Other Placements Bed & Breakfast,01/03/2019,5180281,658.00,UK Room (London) Ltd
Childrens Services,Children's Social Care,Family Support Services,IPST S17 NRPF,Childrens Act Section 17 - Other Placements Bed & Breakfast,01/03/2019,5180282,"1,457.00",UK Room (London) Ltd
Childrens Services,Children's Social Care,Family Support Services,IPST S17 NRPF,Childrens Act Section 17 - Other Placements Bed & Breakfast,01/03/2019,5180283,"1,612.00",UK Room (London) Ltd
Childrens Services,Children's Social Care,Family Support Services,IPST S17 NRPF,Childrens Act Section 17 - Other Placements Bed & Breakfast,01/03/2019,5180284,736.00,UK Room (London) Ltd
Childrens Services,Children's Social Care,Family Support Services,IPST S17 NRPF,Childrens Act Section 17 - Other Placements Bed & Breakfast,01/03/2019,5180285,"1,550.00",UK Room (London) Ltd
Childrens Services,Education Services,Early Years,Children Centre Central Team,Medical Requisites,01/03/2019,5180293,315.80,NHS SUPPLY CHAIN
Childrens Services,Education Services,Early Years,Children Centre Central Team,Medical Requisites,01/03/2019,5180295,424.40,NHS SUPPLY CHAIN
Childrens Services,Children's Social Care,Children Looked After,S23-Resi-P&V/OLA-Child Home,Childrens Act Section 23 - Placement Fee,01/03/2019,5180343,"12,000.00",holibrook Care Services Ltd
Childrens Services,Children's Social Care,Children Looked After,S23 Fam Pl P&V-F/Care,Childrens Act Section 23 - Placement Fee,01/03/2019,5180486,"5,920.32",Synergy Fostering Ltd
Childrens Services,Children's Social Care,Children Looked After,LCS/Allowances-Accom,Leaving Care Financial Assistance - Reg Plan Maint L-Allow,01/03/2019,5181173,256.99,The Way Care Services Ltd
Childrens Services,Children's Social Care,Children Looked After,LCS/Allowances-Accom,Leaving Care Financial Assistance - Supp Accom/Hous Rents,01/03/2019,5181173,"3,321.34",The Way Care Services Ltd
Childrens Services,Children's Social Care,Children Looked After,LCS/Allowances-Accom,Leaving Care Financial Assistance - Supported Living,01/03/2019,5181173,"1,992.99",The Way Care Services Ltd
Childrens Services,Children's Social Care,Children Looked After,S23-Other-Semi-Ind. Unit,Childrens Act Section 23 - Placement Fee,01/03/2019,5181174,"3,577.71",The Way Care Services Ltd
Childrens Services,Children's Social Care,Children Looked After,LCS/Allowances-Accom,Leaving Care Financial Assistance - Supported Living,01/03/2019,5181175,"3,720.00",The Way Care Services Ltd
Childrens Services,Education Services,Other Strategic Functions,Music Trading Account,Training Expenses - Staff External Training (UK Based),01/03/2019,5181390,320.00,Redacted Section 40 FOI Act
Childrens Services,Children's Social Care,Children Looked After,S23 Fam Pl P&V-F/Care,Childrens Act Section 23 - Placement Fee,01/03/2019,5184010,"3,552.26",COMPASS FOSTERING LONDON LIMITED
Childrens Services,Children's Social Care,Children Looked After,S23 Family Placements P&V,Childrens Act Section 23 - Placement Fee,01/03/2019,5184011,"4,645.76",COMPASS FOSTERING LONDON LIMITED
Childrens Services,Children's Social Care,Children Looked After,S23 Fam Pl P&V-F/Care,Childrens Act Section 23 - Placement Fee,01/03/2019,5184488,"2,800.00",Time For Children
Childrens Services,Children's Social Care,Children Looked After,S23 Fam Pl P&V-F/Care,Childrens Act Section 23 - Placement Fee,01/03/2019,5184489,"2,800.00",Time For Children
Childrens Services,Children's Social Care,Children Looked After,S23 Fam Pl P&V-F/Care,Childrens Act Section 23 - Placement Fee,01/03/2019,5184490,"2,800.00",Time For Children
Childrens Services,Children's Social Care,Children Looked After,S23 Fam Pl P&V-F/Care,Childrens Act Section 23 - Placement Fee,01/03/2019,5184491,"2,800.00",Time For Children
Childrens Services,Children's Social Care,Children Looked After,S23-Other-Semi-Ind. Unit,Childrens Act Section 23 - Placement Fee,01/03/2019,5184504,"1,956.86",Pangea Support Services
Childrens Services,Children's Social Care,Children Looked After,S23-Other-Semi-Ind. Unit,Childrens Act Section 23 - Placement Fee,01/03/2019,5184509,524.57,Pangea Support Services
Childrens Services,Children's Social Care,Children Looked After,S23-Other-Semi-Ind. Unit,Childrens Act Section 23 - Placement Fee,01/03/2019,5184515,"1,827.96",Pangea Support Services
Childrens Services,Children's Social Care,Children Looked After,S23-Other-Semi-Ind. Unit,Childrens Act Section 23 - Placement Fee,01/03/2019,5184519,"1,891.86",Pangea Support Services
Childrens Services,Education Services,Other Strategic Functions,Parental Engagement Trading Account,Third Party Payments - Voluntary Associations,01/03/2019,5184520,"1,534.50",Osmani Trust
Childrens Services,Children's Social Care,Children Looked After,S23-Other-Semi-Ind. Unit,Childrens Act Section 23 - Placement Fee,01/03/2019,5184672,"3,804.32",Heartwood Outreach Services Ltd
Childrens Services,Children's Social Care,Children Looked After,S23-Other-Semi-Ind. Unit,Childrens Act Section 23 - Placement Fee,01/03/2019,5184673,290.00,Heartwood Outreach Services Ltd
Childrens Services,No Service Specified,No Division Specified,Capital-Minor Works (SC),Building Works - Main Works,01/03/2019,5184845,"6,039.86",Poplar HARCA LTD
Childrens Services,Children's Social Care,Family Support Services,CNN Pool: Joint Family Support,Social Care - Homecare,01/03/2019,5184857,"1,782.00",QALB Centre Short Break Services
Childrens Services,Education Services,Other Strategic Functions,Ofsted Improvement Plan,Training Expenses - Staff External Training (UK Based),01/03/2019,5184872,"5,722.70",Mark Finnis Training and Consultancy Ltd
Childrens Services,Children's Social Care,Children Looked After,S23 Fam Pl P&V-F/Care,Childrens Act Section 23 - Placement Fee,01/03/2019,5184886,"-1,100.00",Time For Children
Childrens Services,Children's Social Care,Children Looked After,S23-Other-Semi-Ind. Unit,Childrens Act Section 23 - Placement Fee,01/03/2019,5184893,"1,914.00",Pangea Support Services
Childrens Services,Children's Social Care,Children Looked After,S23-Other-Semi-Ind. Unit,Childrens Act Section 23 - Placement Fee,01/03/2019,5184896,"1,859.71",Pangea Support Services
Childrens Services,Children's Social Care,Children Looked After,S23-Other-Semi-Ind. Unit,Childrens Act Section 23 - Placement Fee,01/03/2019,5184901,"1,806.86",Pangea Support Services
Childrens Services,Cultural and Related Services,Recreation & Sport,Mayors Cup,Recreational Activities,01/03/2019,5185037,500.00,ST ANDREWS YOUTH DEVELOPMENT
Childrens Services,Children's Social Care,Children's and Young People's Safety,Child Protection Mgt & Admin,Other Allowance - Long Service Awards,01/03/2019,5185962,342.00,Barclays Bank Plc
Childrens Services,Education Services,Other Strategic Functions,Music Trading Account,Third Party Payments - Voluntary Associations,01/03/2019,5186075,500.00,Rich Mix Cultural Enterprises LTD
Childrens Services,No Service Specified,No Division Specified,Capital-Minor Works (SC),Other External Fees - Other External Fees,01/03/2019,5186077,820.00,Actual SupportServices LTD
Childrens Services,Children's Social Care,Children Looked After,S23-Other-Semi-Ind. Unit,Childrens Act Section 23 - Placement Fee,01/03/2019,5186078,"1,874.84",Pangea Support Services
Childrens Services,Children's Social Care,Children Looked After,S23-Other-Semi-Ind. Unit,Childrens Act Section 23 - Placement Fee,01/03/2019,5186079,"1,806.86",Pangea Support Services
Childrens Services,Cultural and Related Services,Culture & Heritage,Arts-Park Events,Events & Exhibition Supplies,01/03/2019,5186080,802.50,Face Events LTD
Childrens Services,Education Services,Other Strategic Functions,High Needs FE Colleges,Third Party Payments - Payments to Schools,01/03/2019,5186152,"13,355.00",Capital City College Group
Childrens Services,Education Services,Other Strategic Functions,High Needs Academies & Free Schs,Third Party Payments - Payments to Schools,01/03/2019,5186153,"5,019.20",Capital City College Group
Childrens Services,Children's Social Care,Children Looked After,S23 Fam Pl In-Hse-S/Term F/C,Childrens Act Section 23 - Expert Assessmt/Witness Costs,01/03/2019,5186180,"1,200.00",CORAM CHAMBERS LTD
Childrens Services,Education Services,Other Strategic Functions,SEN External Travel,Non Staff Transport Costs - Reimbursement,01/03/2019,5186202,"71,961.00",Healthcare and Transport Services Group Ltd
Childrens Services,Children's Social Care,Family Support Services,CNN Pool: Joint Family Support,Social Care - Homecare,01/03/2019,5186206,720.00,Medstar Domiciliary Care Servies Ltd
Childrens Services,Children's Social Care,Children Looked After,S23 Fam Pl P&V-F/Care,Childrens Act Section 23 - Placement Fee,01/03/2019,5186260,784.00,Swiis Foster Care Limited
Childrens Services,Children's Social Care,Children Looked After,S23-Other-Semi-Ind. Unit,Childrens Act Section 23 - Placement Fee,01/03/2019,5186270,"26,495.70",TNS Care Ltd
Childrens Services,Education Services,Early Years,Wapping CC,Repairs and Maintenance - Responsive - Repair & Maintenance,04/03/2019,5175378,"1,150.00",JC Coster (Metalworks) Ltd
Childrens Services,Education Services,Other Strategic Functions,Special Education Needs DSG,Third Party Payments - Payments to Schools,04/03/2019,5175512,"42,692.30",Transitional Care LTD
Childrens Services,Children's Social Care,Support Service and Management Costs,Schools Catering,Kitchen Supplies - Food and Beverages,04/03/2019,5175534,660.89,Thomas Ridley & Son Ltd
Childrens Services,Children's Social Care,Support Service and Management Costs,Schools Catering,Kitchen Supplies - Food and Beverages,04/03/2019,5175540,390.53,Thomas Ridley & Son Ltd
Childrens Services,Children's Social Care,Support Service and Management Costs,Schools Catering,Kitchen Supplies - Food and Beverages,04/03/2019,5175541,283.55,Thomas Ridley & Son Ltd
Childrens Services,Children's Social Care,Support Service and Management Costs,Schools Catering,Kitchen Supplies - Food and Beverages,04/03/2019,5175542,"1,087.01",Thomas Ridley & Son Ltd
Childrens Services,Children's Social Care,Support Service and Management Costs,Schools Catering,Kitchen Supplies - Food and Beverages,04/03/2019,5175543,463.88,Thomas Ridley & Son Ltd
Childrens Services,Children's Social Care,Support Service and Management Costs,Schools Catering,Kitchen Supplies - Food and Beverages,04/03/2019,5175544,431.10,Thomas Ridley & Son Ltd
Childrens Services,Children's Social Care,Support Service and Management Costs,Schools Catering,Kitchen Supplies - Food and Beverages,04/03/2019,5175545,498.32,Thomas Ridley & Son Ltd
Childrens Services,Cultural and Related Services,Recreation & Sport,"Poplar Baths		",Payments to Private Contractors - Other Contractors,04/03/2019,5176246,"51,760.00",Greenwich Leisure LTD
Childrens Services,Children's Social Care,Support Service and Management Costs,Schools Catering,Kitchen Supplies - Food and Beverages,04/03/2019,5176279,703.17,Thomas Ridley & Son Ltd
Childrens Services,Children's Social Care,Support Service and Management Costs,Schools Catering,Kitchen Supplies - Food and Beverages,04/03/2019,5176279,250.04,Thomas Ridley & Son Ltd
Childrens Services,Children's Social Care,Support Service and Management Costs,Schools Catering,Kitchen Supplies - Food and Beverages,04/03/2019,5176280,439.18,Thomas Ridley & Son Ltd
Childrens Services,Children's Social Care,Support Service and Management Costs,Schools Catering,Kitchen Supplies - Food and Beverages,04/03/2019,5176281,722.22,Thomas Ridley & Son Ltd
Childrens Services,Children's Social Care,Support Service and Management Costs,Schools Catering,Kitchen Supplies - Food and Beverages,04/03/2019,5176282,650.50,Thomas Ridley & Son Ltd
Childrens Services,Children's Social Care,Support Service and Management Costs,Schools Catering,Kitchen Supplies - Food and Beverages,04/03/2019,5176284,347.92,Thomas Ridley & Son Ltd
Childrens Services,Children's Social Care,Support Service and Management Costs,Schools Catering,Kitchen Supplies - Food and Beverages,04/03/2019,5176286,283.22,Thomas Ridley & Son Ltd
Childrens Services,Children's Social Care,Support Service and Management Costs,Schools Catering,Kitchen Supplies - Food and Beverages,04/03/2019,5176287,626.87,Thomas Ridley & Son Ltd
Childrens Services,Children's Social Care,Support Service and Management Costs,Schools Catering,Kitchen Supplies - Food and Beverages,04/03/2019,5176291,469.00,Thomas Ridley & Son Ltd
Childrens Services,Children's Social Care,Support Service and Management Costs,Schools Catering,Kitchen Supplies - Food and Beverages,04/03/2019,5176292,398.35,Thomas Ridley & Son Ltd
Childrens Services,Children's Social Care,Support Service and Management Costs,Schools Catering,Kitchen Supplies - Food and Beverages,04/03/2019,5176293,823.94,Thomas Ridley & Son Ltd
Childrens Services,Children's Social Care,Support Service and Management Costs,Schools Catering,Kitchen Supplies - Food and Beverages,04/03/2019,5176294,549.48,Thomas Ridley & Son Ltd
Childrens Services,Children's Social Care,Support Service and Management Costs,Swanlea,Kitchen Supplies - Food and Beverages,04/03/2019,5176297,"1,354.96",Thomas Ridley & Son Ltd
Childrens Services,Children's Social Care,Support Service and Management Costs,Schools Catering,Kitchen Supplies - Food and Beverages,04/03/2019,5176298,436.51,Thomas Ridley & Son Ltd
Childrens Services,Children's Social Care,Support Service and Management Costs,Schools Catering,Kitchen Supplies - Food and Beverages,04/03/2019,5176300,263.21,Thomas Ridley & Son Ltd
Childrens Services,Children's Social Care,Support Service and Management Costs,Sch. Meals A/c - Central Production Unit,Kitchen Supplies - Food and Beverages,04/03/2019,5176301,"1,474.16",Thomas Ridley & Son Ltd
Childrens Services,Children's Social Care,Support Service and Management Costs,Welfare Catering,Kitchen Supplies - Food and Beverages,04/03/2019,5176302,566.57,Thomas Ridley & Son Ltd
Childrens Services,Children's Social Care,Support Service and Management Costs,Schools Catering,Kitchen Supplies - Food and Beverages,04/03/2019,5176303,371.79,Thomas Ridley & Son Ltd
Childrens Services,Children's Social Care,Support Service and Management Costs,Schools Catering,Kitchen Supplies - Food and Beverages,04/03/2019,5176304,463.72,Thomas Ridley & Son Ltd
Childrens Services,Children's Social Care,Support Service and Management Costs,Schools Catering,Kitchen Supplies - Food and Beverages,04/03/2019,5176305,667.01,Thomas Ridley & Son Ltd
Childrens Services,Children's Social Care,Support Service and Management Costs,Schools Catering,Kitchen Supplies - Food and Beverages,04/03/2019,5176307,268.78,Thomas Ridley & Son Ltd
Childrens Services,Children's Social Care,Support Service and Management Costs,Schools Catering,Kitchen Supplies - Food and Beverages,04/03/2019,5176311,281.36,Thomas Ridley & Son Ltd
Childrens Services,Children's Social Care,Support Service and Management Costs,Schools Catering,Kitchen Supplies - Food and Beverages,04/03/2019,5176312,273.61,Thomas Ridley & Son Ltd
Childrens Services,Children's Social Care,Support Service and Management Costs,Schools Catering,Kitchen Supplies - Food and Beverages,04/03/2019,5176313,287.55,Thomas Ridley & Son Ltd
Childrens Services,Children's Social Care,Support Service and Management Costs,Schools Catering,Kitchen Supplies - Food and Beverages,04/03/2019,5176314,445.33,Thomas Ridley & Son Ltd
Childrens Services,Education Services,Other Education and Community Budget,Community Languages,Stationery,04/03/2019,5176317,807.50,Love2Reward
Childrens Services,Children's Social Care,Family Support Services,Disabled Children�s Outreach Service,Training Expenses - Staff External Training (UK Based),04/03/2019,5178331,"1,150.00",Family Futures CIC
Childrens Services,Children's Social Care,Support Service and Management Costs,Sch. Meals A/c - Central Production Unit,Kitchen Supplies - Food and Beverages,04/03/2019,5178669,284.81,William White Meats Ltd
Childrens Services,Education Services,Other Strategic Functions,SLS - SEN Training SLA,Meeting Expenses,04/03/2019,5178718,404.00,the royal foundation of st katharine
Childrens Services,Children's Social Care,Support Service and Management Costs,Sch. Meals A/c - Clare Grant,Tools and Equipment - Purchase,04/03/2019,5178760,448.00,Lambourne Refrigeration
Childrens Services,Children's Social Care,Children Looked After,S23 Fam Pl Fost/Adop Advert,Childrens Act Section 23 - Spec Pymnts Advertising,04/03/2019,5178815,"2,440.00",Natives Online Ltd
Childrens Services,Education Services,Other Strategic Functions,Schools Library,Books - General Purchases,04/03/2019,5178915,805.15,Peters Bookselling Services
Childrens Services,Children's Social Care,Children Looked After,S23-Resi-P&V/OLA-Child Home,Childrens Act Section 23 - Non-Contact Trans/Travel Costs,04/03/2019,5178934,"2,315.00",Wrixon Care Services
Childrens Services,Children's Social Care,Children Looked After,S23 Fam Pl P&V-F/Care,Childrens Act Section 23 - Placement Fee,04/03/2019,5178955,317.00,Integrated Fostering Services Ltd
Childrens Services,Children's Social Care,Children Looked After,S23 Fam Pl P&V-F/Care,Childrens Act Section 23 - Placement Fee,04/03/2019,5179012,850.00,Qalb Fostering Agency Ltd
Childrens Services,Children's Social Care,Children Looked After,S23 Fam Pl P&V-F/Care,Childrens Act Section 23 - Placement Fee,04/03/2019,5179013,950.00,Qalb Fostering Agency Ltd
Childrens Services,Children's Social Care,Children Looked After,S23 Fam Pl P&V-F/Care,Childrens Act Section 23 - Placement Fee,04/03/2019,5179014,950.00,Qalb Fostering Agency Ltd
Childrens Services,Children's Social Care,Children Looked After,S23 Fam Pl P&V-F/Care,Childrens Act Section 23 - Placement Fee,04/03/2019,5179015,"1,400.00",Qalb Fostering Agency Ltd
Childrens Services,Education Services,Other Strategic Functions,Central Pupil Database Project,Computing - Purchase of Hardware,04/03/2019,5179054,"2,751.30",Specialist Computer Centres PLC
Childrens Services,Education Services,Other Strategic Functions,High Needs Academies & Free Schs,Third Party Payments - Payments to Schools,04/03/2019,5179108,"5,865.01",Newham College of Further Education
Childrens Services,Education Services,Other Strategic Functions,High Needs Academies & Free Schs,Third Party Payments - Payments to Schools,04/03/2019,5179109,"7,684.68",Newham College of Further Education
Childrens Services,Education Services,Other Strategic Functions,High Needs Academies & Free Schs,Third Party Payments - Payments to Schools,04/03/2019,5179110,"5,566.12",Newham College of Further Education
Childrens Services,Children's Social Care,Children Looked After,S23-Other-Semi-Ind. Unit,Childrens Act Section 23 - Placement Fee,04/03/2019,5180328,925.00,Real Life
Childrens Services,Children's Social Care,Children Looked After,S23-Other-Semi-Ind. Unit,Childrens Act Section 23 - Placement Fee,04/03/2019,5180329,925.00,Real Life
Childrens Services,Children's Social Care,Children Looked After,S23-Other-Semi-Ind. Unit,Childrens Act Section 23 - Placement Fee,04/03/2019,5180330,925.00,Real Life
Childrens Services,Cultural and Related Services,Culture & Heritage,Kobi Nazrul Centre,Events & Exhibition Supplies,04/03/2019,5181401,980.00,Arts Without Borders
Childrens Services,Children's Social Care,Support Service and Management Costs,Schools Catering,Materials - Cleaning Materials,04/03/2019,5181563,323.51,The Maintenance Supply Co Ltd
Childrens Services,Children's Social Care,Support Service and Management Costs,Building Cleaning,Materials - Cleaning Materials,04/03/2019,5183373,412.87,The Maintenance Supply Co Ltd
Childrens Services,Children's Social Care,Children Looked After,S23 Fam Pl P&V-F/Care,Childrens Act Section 23 - Placement Fee,04/03/2019,5183411,"2,756.04",CAPSTONE FOSTER CARE (SE) LTD
Childrens Services,Children's Social Care,Children Looked After,S23 Fam Pl P&V-F/Care,Childrens Act Section 23 - Placement Fee,04/03/2019,5183412,"2,756.04",CAPSTONE FOSTER CARE (SE) LTD
Childrens Services,Children's Social Care,Children Looked After,Staying Put,Childrens Act Section 23 - Placement Fee,04/03/2019,5183413,"1,620.08",CAPSTONE FOSTER CARE (SE) LTD
Childrens Services,Children's Social Care,Children Looked After,S23 Fam Pl P&V-F/Care,Childrens Act Section 23 - Placement Fee,04/03/2019,5183414,"3,400.04",CAPSTONE FOSTER CARE (SE) LTD
Childrens Services,Children's Social Care,Children Looked After,S23-Other-Semi-Ind. Unit,Childrens Act Section 23 - Placement Fee,04/03/2019,5184891,"2,095.43",Pangea Support Services
Childrens Services,Children's Social Care,Children Looked After,S23-Other-Semi-Ind. Unit,Childrens Act Section 23 - Placement Fee,04/03/2019,5184892,"1,673.26",Pangea Support Services
Childrens Services,Children's Social Care,Children Looked After,S23 Fam Pl P&V-F/Care,Childrens Act Section 23 - Placement Fee,04/03/2019,5186262,"6,837.50",Quality Foster Care Ltd
Childrens Services,Children's Social Care,Children Looked After,Staying Put,Childrens Act Section 23 - Placement Fee,04/03/2019,5186289,"1,636.04",CAPSTONE FOSTER CARE (SE) LTD
Childrens Services,Education Services,Other Strategic Functions,Governors Services,Computing - Purchase of Software,04/03/2019,5186978,-251.84,Specialist Computer Centres PLC
Childrens Services,Children's Social Care,Family Support Services,IPST S17 NRPF,Childrens Act Section 17 - Other Placements Bed & Breakfast,04/03/2019,5187099,"1,036.00",Apolonia Property Services (Exodus Housing)
Childrens Services,Children's Social Care,Family Support Services,IPST S17 NRPF,Childrens Act Section 17 - Other Placements Bed & Breakfast,04/03/2019,5187100,952.00,Apolonia Property Services (Exodus Housing)
Childrens Services,Children's Social Care,Family Support Services,IPST S17 NRPF,Childrens Act Section 17 - Other Placements Bed & Breakfast,04/03/2019,5187101,896.00,Apolonia Property Services (Exodus Housing)
Childrens Services,Children's Social Care,Family Support Services,IPST S17 NRPF,Childrens Act Section 17 - Other Placements Bed & Breakfast,04/03/2019,5187102,"1,064.00",Apolonia Property Services (Exodus Housing)
Childrens Services,Children's Social Care,Family Support Services,IPST S17 NRPF,Childrens Act Section 17 - Other Placements Bed & Breakfast,04/03/2019,5187103,"1,456.00",Apolonia Property Services (Exodus Housing)
Childrens Services,Education Services,Other Strategic Functions,Music Trading Account,Payments to Private Contractors - General Contractors,04/03/2019,5187153,346.35,Redacted Section 40 FOI Act
Childrens Services,Cultural and Related Services,Open Spaces,Parks & Open Spaces Man&Admin,Events & Exhibition Supplies,04/03/2019,5187199,"5,365.00",Irvin Leisure Ltd
Childrens Services,Children's Social Care,Children Looked After,LCS/Allowances-Accom,Leaving Care Financial Assistance - Supp Accom/Hous Rents,06/03/2019,5165928,"2,190.00",Pangea Support Services
Childrens Services,Children's Social Care,Children Looked After,Leaving Care-UASC,Leaving Care Financial Assistance - Supp Accom/Hous Rents,06/03/2019,5165930,"1,107.14",Pangea Support Services
Childrens Services,Children's Social Care,Children Looked After,Leaving Care-UASC,Leaving Care Financial Assistance - Supported Living,06/03/2019,5165930,256.86,Pangea Support Services
Childrens Services,Adult Social Care,Support Service and Management Costs,Org Development L&D Training,Training Expenses - Staff External Training (UK Based),06/03/2019,5167362,925.00,Edge Training and Consultancy Ltd
Childrens Services,Children's Social Care,Children Looked After,Leaving Care-UASC,Leaving Care Financial Assistance - Supp Accom/Hous Rents,06/03/2019,5172073,"1,071.43",Pangea Support Services
Childrens Services,Children's Social Care,Children Looked After,Leaving Care-UASC,Leaving Care Financial Assistance - Supp Accom/Hous Rents,06/03/2019,5172077,"1,071.43",Pangea Support Services
Childrens Services,Children's Social Care,Children Looked After,Leaving Care-UASC,Leaving Care Financial Assistance - Supp Accom/Hous Rents,06/03/2019,5172082,"1,071.43",Pangea Support Services
Childrens Services,Children's Social Care,Children Looked After,Leaving Care-UASC,Leaving Care Financial Assistance - Supp Accom/Hous Rents,06/03/2019,5172084,"1,071.43",Pangea Support Services
Childrens Services,Adult Social Care,Support Service and Management Costs,Org Development L&D Training,Training Expenses - Staff External Training (UK Based),06/03/2019,5174099,"1,630.00",Huntersjoy Ltd
Childrens Services,Children's Social Care,Children Looked After,Leaving Care-UASC,Leaving Care Financial Assistance - Supp Accom/Hous Rents,06/03/2019,5175056,"1,107.14",Pangea Support Services
Childrens Services,Children's Social Care,Children Looked After,Leaving Care-UASC,Leaving Care Financial Assistance - Supp Accom/Hous Rents,06/03/2019,5175060,"1,107.14",Pangea Support Services
Childrens Services,Children's Social Care,Children Looked After,Leaving Care-UASC,Leaving Care Financial Assistance - Reg Plan Maint L-Allow,06/03/2019,5175061,256.86,Pangea Support Services
Childrens Services,Children's Social Care,Children Looked After,Leaving Care-UASC,Leaving Care Financial Assistance - Supp Accom/Hous Rents,06/03/2019,5175061,"1,107.14",Pangea Support Services
Childrens Services,Education Services,Early Years,John Smith CC,Services - Professional Fees - Translation Fees,06/03/2019,5177029,590.00,Oncall Interpreters LTD
Childrens Services,Children's Social Care,Commissioning and Social Work,Advice and Assessment Section 17,Childrens Act Section 17 - Interpreting/Translation,06/03/2019,5177031,"4,511.75",Oncall Interpreters LTD
Childrens Services,Children's Social Care,Family Support Services,CNN Pool: Joint Family Support,Services - Professional Fees - Translation Fees,06/03/2019,5177032,674.00,Oncall Interpreters LTD
Childrens Services,Children's Social Care,Youth Justice,Youth Justice Team,Services - Professional Fees - Translation Fees,06/03/2019,5177040,256.00,Oncall Interpreters LTD
Childrens Services,Children's Social Care,Service Strategy,FSP Sect 17 - Team 3,Childrens Act Section 17 - Interpreting/Translation,06/03/2019,5177044,719.45,Oncall Interpreters LTD
Childrens Services,Children's Social Care,Service Strategy,"FSP Sect 17 - Team 8		",Childrens Act Section 17 - Interpreting/Translation,06/03/2019,5177045,"1,011.50",Oncall Interpreters LTD
Childrens Services,Children's Social Care,Service Strategy,FSP Sect 17 - Team 1,Services - Professional Fees - Translation Fees,06/03/2019,5177046,926.50,Oncall Interpreters LTD
Childrens Services,Children's Social Care,Service Strategy,FSP Sect 17 - Team 9,Services - Professional Fees - Translation Fees,06/03/2019,5177047,"1,131.50",Oncall Interpreters LTD
Childrens Services,Children's Social Care,Children's and Young People's Safety,FSP Sect 17 - Team 10,Childrens Act Section 17 - Interpreting/Translation,06/03/2019,5177048,"1,286.50",Oncall Interpreters LTD
Childrens Services,Children's Social Care,Children Looked After,S23-Other-Semi-Ind. Unit,Childrens Act Section 23 - Interpreting/Translation,06/03/2019,5177059,"2,144.40",Oncall Interpreters LTD
Childrens Services,Children's Social Care,Services for young people,Positive Activities Young Pple,Educational/Training Supplies - Curriculum Visits/Activities,06/03/2019,5177081,"3,200.00",Community Music
Childrens Services,Children's Social Care,Service Strategy,CSC Childrens Resources M & A,Social Care - Others,06/03/2019,5177082,595.00,Curve Solutions
Childrens Services,Children's Social Care,Support Service and Management Costs,Schools Catering,Kitchen Supplies - Food and Beverages,06/03/2019,5177102,561.72,Thomas Ridley & Son Ltd
Childrens Services,Children's Social Care,Support Service and Management Costs,Schools Catering,Kitchen Supplies - Food and Beverages,06/03/2019,5177103,514.86,Thomas Ridley & Son Ltd
Childrens Services,Children's Social Care,Support Service and Management Costs,Schools Catering,Kitchen Supplies - Food and Beverages,06/03/2019,5177104,551.32,Thomas Ridley & Son Ltd
Childrens Services,Children's Social Care,Support Service and Management Costs,Schools Catering,Kitchen Supplies - Food and Beverages,06/03/2019,5177108,577.27,Thomas Ridley & Son Ltd
Childrens Services,Children's Social Care,Support Service and Management Costs,Schools Catering,Kitchen Supplies - Food and Beverages,06/03/2019,5177109,300.81,Thomas Ridley & Son Ltd
Childrens Services,Children's Social Care,Support Service and Management Costs,Schools Catering,Kitchen Supplies - Food and Beverages,06/03/2019,5177112,806.91,Thomas Ridley & Son Ltd
Childrens Services,Children's Social Care,Support Service and Management Costs,Schools Catering,Kitchen Supplies - Food and Beverages,06/03/2019,5177114,341.75,Thomas Ridley & Son Ltd
Childrens Services,Children's Social Care,Support Service and Management Costs,Schools Catering,Kitchen Supplies - Food and Beverages,06/03/2019,5177115,521.01,Thomas Ridley & Son Ltd
Childrens Services,Children's Social Care,Support Service and Management Costs,Schools Catering,Kitchen Supplies - Food and Beverages,06/03/2019,5177116,306.15,Thomas Ridley & Son Ltd
Childrens Services,Children's Social Care,Support Service and Management Costs,Schools Catering,Kitchen Supplies - Food and Beverages,06/03/2019,5177117,388.59,Thomas Ridley & Son Ltd
Childrens Services,Children's Social Care,Support Service and Management Costs,Schools Catering,Kitchen Supplies - Food and Beverages,06/03/2019,5177118,337.17,Thomas Ridley & Son Ltd
Childrens Services,Children's Social Care,Support Service and Management Costs,Schools Catering,Kitchen Supplies - Food and Beverages,06/03/2019,5177119,720.92,Thomas Ridley & Son Ltd
Childrens Services,Children's Social Care,Support Service and Management Costs,Schools Catering,Kitchen Supplies - Food and Beverages,06/03/2019,5177120,505.90,Thomas Ridley & Son Ltd
Childrens Services,Children's Social Care,Support Service and Management Costs,Schools Catering,Kitchen Supplies - Food and Beverages,06/03/2019,5177121,830.95,Thomas Ridley & Son Ltd
Childrens Services,Children's Social Care,Support Service and Management Costs,Schools Catering,Kitchen Supplies - Food and Beverages,06/03/2019,5177122,712.49,Thomas Ridley & Son Ltd
Childrens Services,Children's Social Care,Support Service and Management Costs,Schools Catering,Kitchen Supplies - Food and Beverages,06/03/2019,5177123,352.41,Thomas Ridley & Son Ltd
Childrens Services,Children's Social Care,Support Service and Management Costs,Welfare Catering,Kitchen Supplies - Food and Beverages,06/03/2019,5177124,343.68,Thomas Ridley & Son Ltd
Childrens Services,Children's Social Care,Support Service and Management Costs,Sch. Meals A/c - Central Production Unit,Kitchen Supplies - Food and Beverages,06/03/2019,5177125,317.08,Thomas Ridley & Son Ltd
Childrens Services,Children's Social Care,Support Service and Management Costs,Schools Catering,Kitchen Supplies - Food and Beverages,06/03/2019,5177126,567.45,Thomas Ridley & Son Ltd
Childrens Services,Children's Social Care,Support Service and Management Costs,Schools Catering,Kitchen Supplies - Food and Beverages,06/03/2019,5177127,288.90,Thomas Ridley & Son Ltd
Childrens Services,Children's Social Care,Support Service and Management Costs,Schools Catering,Kitchen Supplies - Food and Beverages,06/03/2019,5177131,313.08,Thomas Ridley & Son Ltd
Childrens Services,Children's Social Care,Support Service and Management Costs,Schools Catering,Kitchen Supplies - Food and Beverages,06/03/2019,5177132,305.62,Thomas Ridley & Son Ltd
Childrens Services,Children's Social Care,Support Service and Management Costs,Schools Catering,Kitchen Supplies - Food and Beverages,06/03/2019,5177133,568.74,Thomas Ridley & Son Ltd
Childrens Services,Children's Social Care,Support Service and Management Costs,Schools Catering,Kitchen Supplies - Food and Beverages,06/03/2019,5177135,724.86,Thomas Ridley & Son Ltd
Childrens Services,Children's Social Care,Support Service and Management Costs,Schools Catering,Kitchen Supplies - Food and Beverages,06/03/2019,5177136,564.84,Thomas Ridley & Son Ltd
Childrens Services,Children's Social Care,Support Service and Management Costs,Schools Catering,Kitchen Supplies - Food and Beverages,06/03/2019,5177138,511.76,Thomas Ridley & Son Ltd
Childrens Services,Children's Social Care,Support Service and Management Costs,Schools Catering,Kitchen Supplies - Food and Beverages,06/03/2019,5177140,902.66,Thomas Ridley & Son Ltd
Childrens Services,Children's Social Care,Support Service and Management Costs,Schools Catering,Kitchen Supplies - Food and Beverages,06/03/2019,5177141,823.21,Thomas Ridley & Son Ltd
Childrens Services,Children's Social Care,Support Service and Management Costs,Schools Catering,Kitchen Supplies - Food and Beverages,06/03/2019,5177142,549.48,Thomas Ridley & Son Ltd
Childrens Services,Children's Social Care,Support Service and Management Costs,Schools Catering,Kitchen Supplies - Food and Beverages,06/03/2019,5177143,398.35,Thomas Ridley & Son Ltd
Childrens Services,Cultural and Related Services,Open Spaces,Parks & Open Spaces Man&Admin,Repairs and Maintenance - Responsive - Buildings,06/03/2019,5177725,"1,660.00",JC Coster (Metalworks) Ltd
Childrens Services,Cultural and Related Services,Open Spaces,Mile End Park,Repairs and Maintenance - Responsive - Buildings,06/03/2019,5177726,"4,279.00",JC Coster (Metalworks) Ltd
Childrens Services,Children's Social Care,Other Children's and Family Services,Permanancy and Adoption Support Team 2,Services - Professional Fees - Translation Fees,06/03/2019,5177822,257.50,Oncall Interpreters LTD
Childrens Services,Children's Social Care,Support Service and Management Costs,Schools Catering,Kitchen Supplies - Food and Beverages,06/03/2019,5177875,362.65,Thomas Ridley & Son Ltd
Childrens Services,Children's Social Care,Support Service and Management Costs,Schools Catering,Kitchen Supplies - Food and Beverages,06/03/2019,5177877,907.47,Thomas Ridley & Son Ltd
Childrens Services,Children's Social Care,Support Service and Management Costs,Schools Catering,Kitchen Supplies - Food and Beverages,06/03/2019,5177878,"1,011.43",Thomas Ridley & Son Ltd
Childrens Services,Children's Social Care,Support Service and Management Costs,Schools Catering,Kitchen Supplies - Food and Beverages,06/03/2019,5177880,587.36,Thomas Ridley & Son Ltd
Childrens Services,Children's Social Care,Support Service and Management Costs,Schools Catering,Kitchen Supplies - Food and Beverages,06/03/2019,5177881,300.49,Thomas Ridley & Son Ltd
Childrens Services,Children's Social Care,Support Service and Management Costs,Toby Lane Function,Kitchen Supplies - Food and Beverages,06/03/2019,5177882,450.22,Thomas Ridley & Son Ltd
Childrens Services,Children's Social Care,Support Service and Management Costs,Sch. Meals A/c - Central Production Unit,Kitchen Supplies - Food and Beverages,06/03/2019,5177884,"1,600.16",Thomas Ridley & Son Ltd
Childrens Services,Children's Social Care,Support Service and Management Costs,Schools Catering,Kitchen Supplies - Food and Beverages,06/03/2019,5177885,282.19,Thomas Ridley & Son Ltd
Childrens Services,Children's Social Care,Support Service and Management Costs,Schools Catering,Kitchen Supplies - Food and Beverages,06/03/2019,5177887,417.29,Thomas Ridley & Son Ltd
Childrens Services,Children's Social Care,Support Service and Management Costs,Schools Catering,Kitchen Supplies - Food and Beverages,06/03/2019,5177888,473.73,Thomas Ridley & Son Ltd
Childrens Services,Children's Social Care,Support Service and Management Costs,Schools Catering,Kitchen Supplies - Food and Beverages,06/03/2019,5177889,312.41,Thomas Ridley & Son Ltd
Childrens Services,Children's Social Care,Support Service and Management Costs,Swanlea,Kitchen Supplies - Food and Beverages,06/03/2019,5177890,592.36,Thomas Ridley & Son Ltd
Childrens Services,Children's Social Care,Support Service and Management Costs,Schools Catering,Kitchen Supplies - Food and Beverages,06/03/2019,5177891,372.69,Thomas Ridley & Son Ltd
Childrens Services,Adult Social Care,Support Service and Management Costs,Org Development L&D Training,Training Expenses - Staff External Training (UK Based),06/03/2019,5177971,925.00,Edge Training and Consultancy Ltd
Childrens Services,Adult Social Care,Support Service and Management Costs,Org Development L&D Training,Training Expenses - Staff External Training (UK Based),06/03/2019,5177972,925.00,Edge Training and Consultancy Ltd
Childrens Services,Education Services,Early Years,Mowlem CC,Stationery,06/03/2019,5178002,338.60,Office Depot (Catalogue)
Childrens Services,Children's Social Care,Support Service and Management Costs,Schools Catering,Kitchen Supplies - Food and Beverages,06/03/2019,5178680,457.04,William White Meats Ltd
Childrens Services,Children's Social Care,Support Service and Management Costs,Schools Catering,Kitchen Supplies - Food and Beverages,06/03/2019,5178683,402.04,William White Meats Ltd
Childrens Services,Children's Social Care,Support Service and Management Costs,Schools Catering,Kitchen Supplies - Food and Beverages,06/03/2019,5178684,510.27,William White Meats Ltd
Childrens Services,Children's Social Care,Support Service and Management Costs,Swanlea,Kitchen Supplies - Food and Beverages,06/03/2019,5178685,825.36,William White Meats Ltd
Childrens Services,Children's Social Care,Support Service and Management Costs,Sch. Meals A/c - Central Production Unit,Kitchen Supplies - Food and Beverages,06/03/2019,5178686,"1,891.18",William White Meats Ltd
Childrens Services,Education Services,Other Strategic Functions,Auxilary Aids,Medical Requisites,06/03/2019,5178824,895.00,Connevans Limited
Childrens Services,Education Services,Other Strategic Functions,Auxilary Aids,Medical Requisites,06/03/2019,5178824,"8,205.00",Connevans Limited
Childrens Services,Children's Social Care,Services for young people,LAPS 1 - 8,Educational/Training Supplies - Curriculum Visits/Activities,06/03/2019,5178892,794.97,Newitts
Childrens Services,Children's Social Care,Children Looked After,Leaving Care-UASC,Leaving Care Financial Assistance - Supp Accom/Hous Rents,06/03/2019,5179082,"1,107.14",Pangea Support Services
Childrens Services,Children's Social Care,Children Looked After,Leaving Care-UASC,Leaving Care Financial Assistance - Supp Accom/Hous Rents,06/03/2019,5179090,"1,107.14",Pangea Support Services
Childrens Services,Children's Social Care,Children Looked After,Leaving Care-UASC,Leaving Care Financial Assistance - Reg Plan Maint L-Allow,06/03/2019,5179092,256.86,Pangea Support Services
Childrens Services,Children's Social Care,Children Looked After,Leaving Care-UASC,Leaving Care Financial Assistance - Supp Accom/Hous Rents,06/03/2019,5179092,"1,107.14",Pangea Support Services
Childrens Services,Children's Social Care,Children Looked After,Leaving Care-UASC,Leaving Care Financial Assistance - Supp Accom/Hous Rents,06/03/2019,5179104,"1,107.14",Pangea Support Services
Childrens Services,Education Services,Other Strategic Functions,Auxilary Aids,Educational/Training Supplies - Resources,06/03/2019,5179203,"9,441.81",Connevans Limited
Childrens Services,Children's Social Care,Services for young people,LAPS 1 - 8,Educational/Training Supplies - Curriculum Visits/Activities,06/03/2019,5180428,344.23,Newitts
Childrens Services,Children's Social Care,Children Looked After,S23 Fam Pl P&V-F/Care,Social Care - Day Care,06/03/2019,5180482,"9,202.00",Positive Families Partnership LLP
Childrens Services,Education Services,Other Strategic Functions,High Needs FE Colleges,Third Party Payments - Payments to Schools,06/03/2019,5181144,"55,361.32",New City College
Childrens Services,Education Services,Other Strategic Functions,High Needs FE Colleges,Third Party Payments - Payments to Schools,06/03/2019,5181145,"9,913.48",New City College
Childrens Services,Education Services,Other Strategic Functions,High Needs FE Colleges,Third Party Payments - Payments to Schools,06/03/2019,5181146,"131,706.10",New City College
Childrens Services,Children's Social Care,Children Looked After,S23 Fam Pl P&V-F/Care,Childrens Act Section 23 - All Contact Expenses,06/03/2019,5181178,654.00,Unique Contact and Community Services
Childrens Services,Children's Social Care,Children Looked After,S23 Fam Pl In-Hse-S/Term F/C,Childrens Act Section 23 - All Contact Expenses,06/03/2019,5181180,600.00,Unique Contact and Community Services
Childrens Services,Education Services,Early Years,John Smith CC,Medical Requisites,06/03/2019,5181367,395.00,DHB Oral Healthcare
Childrens Services,Education Services,Other Strategic Functions,Empty Properties,Services - Professional Fees - Security Fees,06/03/2019,5181547,"11,985.00",Manpower Direct UK
Childrens Services,Children's Social Care,Support Service and Management Costs,Schools Catering,Materials - Cleaning Materials,06/03/2019,5181578,268.81,The Maintenance Supply Co Ltd
Childrens Services,Children's Social Care,Children Looked After,Leaving Care-UASC,Leaving Care Financial Assistance - Supp Accom/Hous Rents,06/03/2019,5181633,"1,049.29",Pangea Support Services
Childrens Services,Children's Social Care,Children Looked After,Leaving Care-UASC,Leaving Care Financial Assistance - Supp Accom/Hous Rents,06/03/2019,5181635,"1,107.14",Pangea Support Services
Childrens Services,Children's Social Care,Children Looked After,Leaving Care-UASC,Leaving Care Financial Assistance - Supp Accom/Hous Rents,06/03/2019,5181636,"1,071.43",Pangea Support Services
Childrens Services,Children's Social Care,Children Looked After,Leaving Care-UASC,Leaving Care Financial Assistance - Supp Accom/Hous Rents,06/03/2019,5181637,250.00,Pangea Support Services
Childrens Services,Children's Social Care,Support Service and Management Costs,Building Cleaning,Materials - Cleaning Materials,06/03/2019,5183375,387.00,The Maintenance Supply Co Ltd
Childrens Services,Children's Social Care,Children's and Young People's Safety,Child Protection Mgt & Admin,Meeting Expenses,06/03/2019,5183957,354.00,Account 3 Ltd
Childrens Services,Adult Social Care,Support Service and Management Costs,Org Development L&D Training,Training Expenses - Staff External Training (UK Based),06/03/2019,5184353,810.00,EDGE Services - The Manual Handling Training Co. Ltd
Childrens Services,Children's Social Care,Children Looked After,Virtual School PPG,Education & Training - Non Staff Tuition Fees,06/03/2019,5184377,600.00,Anchor Teaching Ltd
Childrens Services,Children's Social Care,Children Looked After,Virtual School PPG,Education & Training - Non Staff Tuition Fees,06/03/2019,5184378,500.00,Anchor Teaching Ltd
Childrens Services,Children's Social Care,Children Looked After,Virtual School PPG,Education & Training - Non Staff Tuition Fees,06/03/2019,5184379,500.00,Anchor Teaching Ltd
Childrens Services,Children's Social Care,Children Looked After,Virtual School PPG,Education & Training - Non Staff Tuition Fees,06/03/2019,5184380,600.00,Anchor Teaching Ltd
Childrens Services,Children's Social Care,Children Looked After,Virtual School PPG,Education & Training - Non Staff Tuition Fees,06/03/2019,5184381,600.00,Anchor Teaching Ltd
Childrens Services,Children's Social Care,Children Looked After,Virtual School PPG,Education & Training - Non Staff Tuition Fees,06/03/2019,5184382,600.00,Anchor Teaching Ltd
Childrens Services,Children's Social Care,Children Looked After,Virtual School PPG,Education & Training - Non Staff Tuition Fees,06/03/2019,5184383,500.00,Anchor Teaching Ltd
Childrens Services,Children's Social Care,Children Looked After,Virtual School PPG,Education & Training - Non Staff Tuition Fees,06/03/2019,5184384,600.00,Anchor Teaching Ltd
Childrens Services,Children's Social Care,Children Looked After,Virtual School PPG,Education & Training - Non Staff Tuition Fees,06/03/2019,5184385,600.00,Anchor Teaching Ltd
Childrens Services,Education Services,Other Strategic Functions,Music Trading Account,Educational/Training Supplies - Arts & Crafts,06/03/2019,5184429,558.00,Redacted Section 40 FOI Act
Childrens Services,Children's Social Care,Commissioning and Social Work,Advice & Assesment M & A,Repairs and Maintenance - Responsive - Electrical,06/03/2019,5184921,"1,160.72",Edmundson Electrical LTD
Childrens Services,Children's Social Care,Children Looked After,Virtual School PPG,Education & Training - Non Staff Tuition Fees,06/03/2019,5186019,300.00,Anchor Teaching Ltd
Childrens Services,Children's Social Care,Children Looked After,Virtual School PPG,Education & Training - Non Staff Tuition Fees,06/03/2019,5186020,300.00,Anchor Teaching Ltd
Childrens Services,Children's Social Care,Support Service and Management Costs,Professional Dev Centre,Comms - Purchase of Equipment,06/03/2019,5186088,"2,640.00",O S Comms Ltd
Childrens Services,Children's Social Care,Family Support Services,CNN Pool: Children Direct Paym,Social Care - Direct Payments,06/03/2019,5186183,"2,023.80",DH TOWER HAMLETS
Childrens Services,Education Services,Other Strategic Functions,Alternative Provision,Third Party Payments - Payments to Schools,06/03/2019,5186986,"3,000.00",Central Foundation Girls School
Childrens Services,Education Services,Other Strategic Functions,Alternative Provision,Third Party Payments - Payments to Schools,06/03/2019,5186988,"3,000.00",Mulberry Academy Shoreditch
Childrens Services,Education Services,Other Strategic Functions,Alternative Provision,Third Party Payments - Payments to Schools,06/03/2019,5186990,"3,000.00",Mulberry School for Girls
Childrens Services,Cultural and Related Services,Recreation & Sport,Football Development Programme,Recreational Activities,06/03/2019,5187028,585.71,Newitts
Childrens Services,Children's Social Care,Children Looked After,S23-Resi-P&V/OLA-Child Home,Childrens Act Section 23 - Placement Fee,06/03/2019,5187129,"23,268.00",Kibble Education and Care Centre
Childrens Services,Children's Social Care,Family Support Services,CNN Pool: Children Direct Paym,Social Care - Direct Payments,06/03/2019,5187349,"11,952.53",DH TOWER HAMLETS
Childrens Services,Children's Social Care,Family Support Services,Eva Armsby Family Centre,Services - Professional Fees - Legal Fees/Expenses,06/03/2019,5187350,"6,594.75",Ward Andrews Centre for Children & their Families
Childrens Services,Education Services,Other Strategic Functions,Schools Library,Services - Professional Fees - Design Fees,06/03/2019,5187517,"6,250.00",Authors Aloud
Childrens Services,Education Services,Other Strategic Functions,Schools Library,Services - Professional Fees - Design Fees,06/03/2019,5187518,"1,500.00",Authors Aloud
Childrens Services,Children's Social Care,Children's and Young People's Safety,FSP Sect 17 - Team 10,Childrens Act Section 17 - Other Placements Bed & Breakfast,06/03/2019,5187532,"1,064.00",Apolonia Property Services (Exodus Housing)
Childrens Services,Children's Social Care,Service Strategy,FSP Sect 17 - Team 9,Childrens Act Section 17 - Supp Accom/Hous Rents,06/03/2019,5187533,"1,064.00",Apolonia Property Services (Exodus Housing)
Childrens Services,Children's Social Care,Children Looked After,S23 Fam Pl P&V-F/Care,Childrens Act Section 23 - Placement Fee,06/03/2019,5187582,784.00,Swiis Foster Care Limited
Childrens Services,Children's Social Care,Family Support Services,Short Breaks and Family Support,Third Party Payments - Voluntary Associations,06/03/2019,5187587,780.00,Astrum Multi Academy Trust T/A Newbridge School
Childrens Services,Children's Social Care,Children's and Young People's Safety,Community Safeguarding,Catering - Hospitality,06/03/2019,5187613,467.50,All Seasons Foods
Childrens Services,Children's Social Care,Children's and Young People's Safety,Community Safeguarding,Education & Training - Non Staff Tuition Fees,06/03/2019,5187618,500.00,Chambers of G.D. Tetteh
Childrens Services,Education Services,Early Years,Isle of Dogs. CC,Office Furniture/Equipment,06/03/2019,5187620,"1,874.95",Unique Office Solutions
Childrens Services,Children's Social Care,Support Service and Management Costs,Schools Catering,Social Care - Nursing Care,06/03/2019,5187623,425.63,Barts Health NHS Trust
Childrens Services,Children's Social Care,Service Strategy,FSP Sect 17 - Team 5,Childrens Act Section 17 - Other Childcare Support,06/03/2019,5187741,875.00,Sign For All Community LTD
Childrens Services,Children's Social Care,Children Looked After,S23 Fam Pl P&V-F/Care,Childrens Act Section 23 - Placement Fee,06/03/2019,5187890,"3,080.00",Compass Fostering East Limited
Childrens Services,Children's Social Care,Support Service and Management Costs,Schools Catering,Kitchen Supplies - Food and Beverages,06/03/2019,5188008,258.35,Thomas Ridley & Son Ltd
Childrens Services,Children's Social Care,Family Support Services,IPST S17 NRPF,Childrens Act Section 17 - Other Placements Bed & Breakfast,06/03/2019,5188043,"1,116.00",Assetgrove
Childrens Services,Children's Social Care,Family Support Services,IPST S17 NRPF,Childrens Act Section 17 - Other Placements Bed & Breakfast,06/03/2019,5188044,"1,008.00",Assetgrove
Childrens Services,Children's Social Care,Family Support Services,IPST S17 NRPF,Childrens Act Section 17 - Other Placements Bed & Breakfast,06/03/2019,5188046,"1,116.00",Assetgrove
Childrens Services,Children's Social Care,Family Support Services,IPST S17 NRPF,Childrens Act Section 17 - Other Placements Bed & Breakfast,06/03/2019,5188052,"1,080.00",Assetgrove
Childrens Services,Children's Social Care,Youth Justice,Youth Justice Team,Services - Professional Fees - Legal Fees/Expenses,08/03/2019,5129973,350.00,UNIONLINE
Childrens Services,Children's Social Care,Children Looked After,LCS/Allowances-Accom,Leaving Care Financial Assistance - Supp Accom/Hous Rents,08/03/2019,5147407,"-2,168.00",Newhaven 16 Plus
Childrens Services,Children's Social Care,Children Looked After,LCS/Allowances-Accom,Leaving Care Financial Assistance - Supported Living,08/03/2019,5147407,"-2,482.00",Newhaven 16 Plus
Childrens Services,Children's Social Care,Children Looked After,Leaving Care-UASC,Leaving Care Financial Assistance - Supp Accom/Hous Rents,08/03/2019,5157887,"1,307.89",Newhaven 16 Plus
Childrens Services,Children's Social Care,Children Looked After,LCS/Allowances-Accom,Leaving Care Financial Assistance - Supported Living,08/03/2019,5157904,"-4,500.00",Newhaven 16 Plus
Childrens Services,Children's Social Care,Children Looked After,LCS/Allowances-Accom,Leaving Care Financial Assistance - Supported Living,08/03/2019,5172083,"4,692.86",Pangea Support Services
Childrens Services,Children's Social Care,Children Looked After,LCS/Allowances-Accom,Leaving Care Financial Assistance - Supp Accom/Hous Rents,08/03/2019,5173333,"-4,650.00",Newhaven 16 Plus
Childrens Services,Children's Social Care,Children Looked After,Leaving Care-UASC,Leaving Care Financial Assistance - Supp Accom/Hous Rents,08/03/2019,5173334,"1,307.89",Newhaven 16 Plus
Childrens Services,Children's Social Care,Children Looked After,Leaving Care-UASC,Leaving Care Financial Assistance - Supp Accom/Hous Rents,08/03/2019,5173335,960.07,Newhaven 16 Plus
Childrens Services,Children's Social Care,Children Looked After,LCS/Allowances-Accom,Leaving Care Financial Assistance - Supp Accom/Hous Rents,08/03/2019,5173336,"1,107.01",Newhaven 16 Plus
Childrens Services,Children's Social Care,Children Looked After,LCS/Allowances-Accom,Leaving Care Financial Assistance - Supp Accom/Hous Rents,08/03/2019,5173337,"1,107.01",Newhaven 16 Plus
Childrens Services,Children's Social Care,Children Looked After,LCS/Allowances-Accom,Leaving Care Financial Assistance - Supported Living,08/03/2019,5173338,442.68,Newhaven 16 Plus
Childrens Services,Children's Social Care,Children Looked After,LCS/Allowances-Accom,Leaving Care Financial Assistance - Supp Accom/Hous Rents,08/03/2019,5173339,"1,107.01",Newhaven 16 Plus
Childrens Services,Children's Social Care,Children Looked After,LCS/Allowances-Accom,Leaving Care Financial Assistance - Supp Accom/Hous Rents,08/03/2019,5173340,833.20,Newhaven 16 Plus
Childrens Services,Education Services,Secondary Schools,PFI Hldg Account-Grouped Schoo,Payments to Private Contractors - Other Contractors,08/03/2019,5175021,"1,294,652.61",Tower Hamlets Schools LTD
Childrens Services,Children's Social Care,Children Looked After,LCS/Allowances-Accom,Leaving Care Financial Assistance - Supported Living,08/03/2019,5175066,"4,849.29",Pangea Support Services
Childrens Services,Children's Social Care,Youth Justice,Partnerships,Third Party Payments - Other Agencies,08/03/2019,5178260,"11,152.00",Homerton University Hospital Trust
Childrens Services,Education Services,Other Strategic Functions,Alternative Provision,Third Party Payments - Contingencies,08/03/2019,5178312,"6,700.00",Right Choice
Childrens Services,Education Services,Early Years,Marner. CC,Repairs and Maintenance - Responsive - Security,08/03/2019,5178366,"1,995.00",surelock security systems ltd
Childrens Services,Children's Social Care,Support Service and Management Costs,Schools Catering,Kitchen Supplies - Food and Beverages,08/03/2019,5178427,269.66,Thomas Ridley & Son Ltd
Childrens Services,Children's Social Care,Support Service and Management Costs,Welfare Catering,Kitchen Supplies - Food and Beverages,08/03/2019,5178428,444.74,Thomas Ridley & Son Ltd
Childrens Services,Children's Social Care,Support Service and Management Costs,Sch. Meals A/c - Central Production Unit,Kitchen Supplies - Food and Beverages,08/03/2019,5178429,865.64,Thomas Ridley & Son Ltd
Childrens Services,Children's Social Care,Support Service and Management Costs,Schools Catering,Kitchen Supplies - Food and Beverages,08/03/2019,5178431,356.79,Thomas Ridley & Son Ltd
Childrens Services,Children's Social Care,Support Service and Management Costs,Schools Catering,Kitchen Supplies - Food and Beverages,08/03/2019,5178432,532.21,Thomas Ridley & Son Ltd
Childrens Services,Children's Social Care,Support Service and Management Costs,Schools Catering,Kitchen Supplies - Food and Beverages,08/03/2019,5178433,282.99,Thomas Ridley & Son Ltd
Childrens Services,Children's Social Care,Support Service and Management Costs,Schools Catering,Kitchen Supplies - Food and Beverages,08/03/2019,5178434,704.02,Thomas Ridley & Son Ltd
Childrens Services,Children's Social Care,Support Service and Management Costs,Schools Catering,Kitchen Supplies - Food and Beverages,08/03/2019,5178435,274.43,Thomas Ridley & Son Ltd
Childrens Services,Children's Social Care,Support Service and Management Costs,Schools Catering,Kitchen Supplies - Food and Beverages,08/03/2019,5178436,288.53,Thomas Ridley & Son Ltd
Childrens Services,Children's Social Care,Support Service and Management Costs,Schools Catering,Kitchen Supplies - Food and Beverages,08/03/2019,5178440,508.52,Thomas Ridley & Son Ltd
Childrens Services,Children's Social Care,Support Service and Management Costs,Schools Catering,Kitchen Supplies - Food and Beverages,08/03/2019,5178442,441.92,Thomas Ridley & Son Ltd
Childrens Services,Children's Social Care,Support Service and Management Costs,Schools Catering,Kitchen Supplies - Food and Beverages,08/03/2019,5178443,356.78,Thomas Ridley & Son Ltd
Childrens Services,Children's Social Care,Support Service and Management Costs,Schools Catering,Kitchen Supplies - Food and Beverages,08/03/2019,5178447,482.61,Thomas Ridley & Son Ltd
Childrens Services,Children's Social Care,Support Service and Management Costs,Schools Catering,Kitchen Supplies - Food and Beverages,08/03/2019,5178448,451.21,Thomas Ridley & Son Ltd
Childrens Services,Children's Social Care,Support Service and Management Costs,Schools Catering,Kitchen Supplies - Food and Beverages,08/03/2019,5178451,337.12,Thomas Ridley & Son Ltd
Childrens Services,Children's Social Care,Support Service and Management Costs,Schools Catering,Kitchen Supplies - Food and Beverages,08/03/2019,5178453,324.84,Thomas Ridley & Son Ltd
Childrens Services,Children's Social Care,Support Service and Management Costs,Schools Catering,Kitchen Supplies - Food and Beverages,08/03/2019,5178454,659.04,Thomas Ridley & Son Ltd
Childrens Services,Children's Social Care,Support Service and Management Costs,Schools Catering,Kitchen Supplies - Food and Beverages,08/03/2019,5178455,579.69,Thomas Ridley & Son Ltd
Childrens Services,Children's Social Care,Support Service and Management Costs,Schools Catering,Kitchen Supplies - Food and Beverages,08/03/2019,5178457,652.36,Thomas Ridley & Son Ltd
Childrens Services,Children's Social Care,Support Service and Management Costs,Schools Catering,Kitchen Supplies - Food and Beverages,08/03/2019,5178459,258.80,Thomas Ridley & Son Ltd
Childrens Services,Children's Social Care,Support Service and Management Costs,Schools Catering,Kitchen Supplies - Food and Beverages,08/03/2019,5178461,959.57,Thomas Ridley & Son Ltd
Childrens Services,Children's Social Care,Support Service and Management Costs,Schools Catering,Kitchen Supplies - Food and Beverages,08/03/2019,5178464,365.52,Thomas Ridley & Son Ltd
Childrens Services,Children's Social Care,Support Service and Management Costs,Schools Catering,Kitchen Supplies - Food and Beverages,08/03/2019,5178465,559.18,Thomas Ridley & Son Ltd
Childrens Services,Children's Social Care,Support Service and Management Costs,Schools Catering,Kitchen Supplies - Food and Beverages,08/03/2019,5178466,464.12,Thomas Ridley & Son Ltd
Childrens Services,Children's Social Care,Support Service and Management Costs,Schools Catering,Kitchen Supplies - Food and Beverages,08/03/2019,5178469,267.10,Thomas Ridley & Son Ltd
Childrens Services,Children's Social Care,Support Service and Management Costs,Schools Catering,Kitchen Supplies - Food and Beverages,08/03/2019,5178470,278.31,Thomas Ridley & Son Ltd
Childrens Services,Children's Social Care,Support Service and Management Costs,Schools Catering,Kitchen Supplies - Food and Beverages,08/03/2019,5178472,331.49,Thomas Ridley & Son Ltd
Childrens Services,Children's Social Care,Support Service and Management Costs,Schools Catering,Kitchen Supplies - Food and Beverages,08/03/2019,5178473,413.57,Thomas Ridley & Son Ltd
Childrens Services,Children's Social Care,Support Service and Management Costs,Swanlea,Kitchen Supplies - Food and Beverages,08/03/2019,5178474,599.39,Thomas Ridley & Son Ltd
Childrens Services,Children's Social Care,Support Service and Management Costs,Schools Catering,Kitchen Supplies - Food and Beverages,08/03/2019,5178475,327.03,Thomas Ridley & Son Ltd
Childrens Services,Children's Social Care,Support Service and Management Costs,Schools Catering,Kitchen Supplies - Food and Beverages,08/03/2019,5178476,298.51,Thomas Ridley & Son Ltd
Childrens Services,Children's Social Care,Support Service and Management Costs,Schools Catering,Kitchen Supplies - Food and Beverages,08/03/2019,5178477,387.55,Thomas Ridley & Son Ltd
Childrens Services,Children's Social Care,Support Service and Management Costs,Schools Catering,Kitchen Supplies - Food and Beverages,08/03/2019,5178480,902.14,Thomas Ridley & Son Ltd
Childrens Services,Children's Social Care,Support Service and Management Costs,Schools Catering,Kitchen Supplies - Food and Beverages,08/03/2019,5178481,343.62,Thomas Ridley & Son Ltd
Childrens Services,Children's Social Care,Support Service and Management Costs,Schools Catering,Kitchen Supplies - Food and Beverages,08/03/2019,5178482,426.28,Thomas Ridley & Son Ltd
Childrens Services,Children's Social Care,Support Service and Management Costs,Schools Catering,Kitchen Supplies - Food and Beverages,08/03/2019,5178483,364.14,Thomas Ridley & Son Ltd
Childrens Services,Children's Social Care,Support Service and Management Costs,Schools Catering,Kitchen Supplies - Food and Beverages,08/03/2019,5178484,848.63,Thomas Ridley & Son Ltd
Childrens Services,Children's Social Care,Support Service and Management Costs,Schools Catering,Kitchen Supplies - Food and Beverages,08/03/2019,5178486,338.37,Thomas Ridley & Son Ltd
Childrens Services,Children's Social Care,Support Service and Management Costs,Schools Catering,Kitchen Supplies - Food and Beverages,08/03/2019,5178487,462.04,Thomas Ridley & Son Ltd
Childrens Services,Children's Social Care,Support Service and Management Costs,Welfare Catering,Kitchen Supplies - Food and Beverages,08/03/2019,5178652,315.56,William White Meats Ltd
Childrens Services,Children's Social Care,Support Service and Management Costs,Schools Catering,Kitchen Supplies - Food and Beverages,08/03/2019,5178668,325.82,William White Meats Ltd
Childrens Services,Children's Social Care,Support Service and Management Costs,Schools Catering,Kitchen Supplies - Food and Beverages,08/03/2019,5178674,321.32,William White Meats Ltd
Childrens Services,Children's Social Care,Support Service and Management Costs,Schools Catering,Kitchen Supplies - Food and Beverages,08/03/2019,5178688,463.29,William White Meats Ltd
Childrens Services,Children's Social Care,Support Service and Management Costs,Schools Catering,Kitchen Supplies - Food and Beverages,08/03/2019,5178689,325.32,William White Meats Ltd
Childrens Services,Children's Social Care,Support Service and Management Costs,Schools Catering,Kitchen Supplies - Food and Beverages,08/03/2019,5178690,417.85,William White Meats Ltd
Childrens Services,Children's Social Care,Support Service and Management Costs,Schools Catering,Kitchen Supplies - Food and Beverages,08/03/2019,5178693,349.22,William White Meats Ltd
Childrens Services,Children's Social Care,Support Service and Management Costs,Schools Catering,Kitchen Supplies - Food and Beverages,08/03/2019,5178697,274.50,William White Meats Ltd
Childrens Services,Children's Social Care,Support Service and Management Costs,Schools Catering,Kitchen Supplies - Food and Beverages,08/03/2019,5178699,323.62,William White Meats Ltd
Childrens Services,Children's Social Care,Children Looked After,LCS/Allowances-Accom,Leaving Care Financial Assistance - Supported Living,08/03/2019,5179102,"4,849.29",Pangea Support Services
Childrens Services,Education Services,Services to Young People and Other Community Learners,Further and Higher Education,Education Trust - Grant,08/03/2019,5180259,"4,000.00",UNIVERSITY OF LAW
Childrens Services,Children's Social Care,Service Strategy,CSC Childrens Resources M & A,Childrens Act Section 23 - Placement Fee,08/03/2019,5180327,550.00,Brighter Future Solutions
Childrens Services,Education Services,Other Strategic Functions,Auxilary Aids,Educational/Training Supplies - Resources,08/03/2019,5180387,"9,201.00",Connevans Limited
Childrens Services,Children's Social Care,Support Service and Management Costs,Sch. Meals A/c - Bow School,Kitchen Supplies - Food and Beverages,08/03/2019,5180469,931.50,Tiffin Sandwiches
Childrens Services,Children's Social Care,Support Service and Management Costs,Sch. Meals A/c - C.F.S. Upper (Harley Grove),Catering - Hospitality,08/03/2019,5180470,729.00,Tiffin Sandwiches
Childrens Services,Children's Social Care,Support Service and Management Costs,Sch. Meals A/c - Raines Foundation,Kitchen Supplies - Food and Beverages,08/03/2019,5180472,324.00,Tiffin Sandwiches
Childrens Services,Children's Social Care,Support Service and Management Costs,Sch. Meals A/c - St. Paul's Way Comm. Trust,Kitchen Supplies - Food and Beverages,08/03/2019,5180473,565.38,Tiffin Sandwiches
Childrens Services,Children's Social Care,Support Service and Management Costs,Sch. Meals A/c - Stepney Green,Kitchen Supplies - Food and Beverages,08/03/2019,5180474,283.50,Tiffin Sandwiches
Childrens Services,Children's Social Care,Support Service and Management Costs,Sch. Meals A/c - Morpeth,Kitchen Supplies - Food and Beverages,08/03/2019,5180476,"1,236.15",Tiffin Sandwiches
Childrens Services,Children's Social Care,Support Service and Management Costs,"Mulberry Caf�		",Kitchen Supplies - Food and Beverages,08/03/2019,5180477,376.33,Tiffin Sandwiches
Childrens Services,Education Services,Other Strategic Functions,Support for Learning Serv DSG,Computing - Purchase of Software,08/03/2019,5181403,637.36,Specialist Computer Centres PLC
Childrens Services,Education Services,Early Years,Mile End CC,Grounds Maintenance - Contract - Horticultural Maintenance,08/03/2019,5181446,410.00,Yorkshire Purchasing Organisation
Childrens Services,Education Services,Early Years,Mile End CC,Grounds Maintenance - Contract - Horticultural Maintenance,08/03/2019,5181447,482.90,Yorkshire Purchasing Organisation
Childrens Services,Education Services,Early Years,Mile End CC,Grounds Maintenance - Contract - Horticultural Maintenance,08/03/2019,5181452,267.20,Yorkshire Purchasing Organisation
Childrens Services,Education Services,Early Years,Mile End CC,Grounds Maintenance - Contract - Horticultural Maintenance,08/03/2019,5181457,416.85,Yorkshire Purchasing Organisation
Childrens Services,Children's Social Care,Service Strategy,FSP Sect 17 - Team 4,Childrens Act Section 17 - Expert Assessmt/Witness Costs,08/03/2019,5183990,473.00,E4 Law Limited T/A Lextox
Childrens Services,Children's Social Care,Support Service and Management Costs,Schools Catering,Kitchen Supplies - Food and Beverages,08/03/2019,5184221,343.63,William White Meats Ltd
Childrens Services,Children's Social Care,Support Service and Management Costs,Schools Catering,Kitchen Supplies - Food and Beverages,08/03/2019,5184223,275.41,William White Meats Ltd
Childrens Services,Children's Social Care,Support Service and Management Costs,Schools Catering,Kitchen Supplies - Food and Beverages,08/03/2019,5184224,369.13,William White Meats Ltd
Childrens Services,Children's Social Care,Support Service and Management Costs,Schools Catering,Kitchen Supplies - Food and Beverages,08/03/2019,5184225,304.56,William White Meats Ltd
Childrens Services,Children's Social Care,Support Service and Management Costs,Schools Catering,Kitchen Supplies - Food and Beverages,08/03/2019,5184230,734.20,William White Meats Ltd
Childrens Services,Children's Social Care,Support Service and Management Costs,Schools Catering,Kitchen Supplies - Food and Beverages,08/03/2019,5184233,377.89,William White Meats Ltd
Childrens Services,Children's Social Care,Support Service and Management Costs,Schools Catering,Kitchen Supplies - Food and Beverages,08/03/2019,5184235,250.32,William White Meats Ltd
Childrens Services,Children's Social Care,Support Service and Management Costs,Schools Catering,Kitchen Supplies - Food and Beverages,08/03/2019,5184238,251.26,William White Meats Ltd
Childrens Services,Children's Social Care,Support Service and Management Costs,Schools Catering,Kitchen Supplies - Food and Beverages,08/03/2019,5184243,349.67,William White Meats Ltd
Childrens Services,Children's Social Care,Support Service and Management Costs,Schools Catering,Kitchen Supplies - Food and Beverages,08/03/2019,5184244,380.57,William White Meats Ltd
Childrens Services,Children's Social Care,Support Service and Management Costs,Schools Catering,Kitchen Supplies - Food and Beverages,08/03/2019,5184248,724.46,William White Meats Ltd
Childrens Services,Children's Social Care,Support Service and Management Costs,Schools Catering,Kitchen Supplies - Food and Beverages,08/03/2019,5184249,274.08,William White Meats Ltd
Childrens Services,Children's Social Care,Support Service and Management Costs,Schools Catering,Kitchen Supplies - Food and Beverages,08/03/2019,5184256,355.72,William White Meats Ltd
Childrens Services,Children's Social Care,Support Service and Management Costs,Schools Catering,Kitchen Supplies - Food and Beverages,08/03/2019,5184257,702.89,William White Meats Ltd
Childrens Services,Children's Social Care,Support Service and Management Costs,Schools Catering,Kitchen Supplies - Food and Beverages,08/03/2019,5184258,295.84,William White Meats Ltd
Childrens Services,Children's Social Care,Support Service and Management Costs,Schools Catering,Kitchen Supplies - Food and Beverages,08/03/2019,5184264,374.15,William White Meats Ltd
Childrens Services,Children's Social Care,Support Service and Management Costs,Schools Catering,Kitchen Supplies - Food and Beverages,08/03/2019,5184265,875.43,William White Meats Ltd
Childrens Services,Children's Social Care,Support Service and Management Costs,Schools Catering,Kitchen Supplies - Food and Beverages,08/03/2019,5184266,328.83,William White Meats Ltd
Childrens Services,Children's Social Care,Support Service and Management Costs,Schools Catering,Kitchen Supplies - Food and Beverages,08/03/2019,5184268,344.28,William White Meats Ltd
Childrens Services,Children's Social Care,Support Service and Management Costs,Schools Catering,Kitchen Supplies - Food and Beverages,08/03/2019,5184272,572.87,William White Meats Ltd
Childrens Services,Education Services,Other Strategic Functions,Empty Properties,Services - Professional Fees - Security Fees,08/03/2019,5184358,"9,961.49",Manpower Direct UK
Childrens Services,Children's Social Care,Support Service and Management Costs,Schools Catering,Repairs and Maintenance - Responsive - General,08/03/2019,5184477,582.00,Lambourne Refrigeration
Childrens Services,Children's Social Care,Children Looked After,LCS/Allowances-Accom,Leaving Care Financial Assistance - Supp Accom/Hous Rents,08/03/2019,5184674,"1,781.57",Heartwood Outreach Services Ltd
Childrens Services,Education Services,Secondary Schools,PFI Hldg Account-Grouped Schoo,Repairs and Maintenance - Responsive - Buildings,08/03/2019,5186065,802.50,Tower Hamlets Schools LTD
Childrens Services,No Service Specified,No Division Specified,Capital-Minor Works (SC),Other External Fees - Project Management Fees,08/03/2019,5186066,"7,297.40",Tower Hamlets Schools LTD
Childrens Services,No Service Specified,No Division Specified,Capital-Minor Works (SC),Other External Fees - Other External Fees,08/03/2019,5186067,"317,282.23",Tower Hamlets Schools LTD
Childrens Services,Children's Social Care,Children Looked After,LCS/Allowances-Accom,Leaving Care Financial Assistance - Supp Accom/Hous Rents,08/03/2019,5186258,828.00,EMPOWERHOUSE ltd
Childrens Services,Children's Social Care,Children Looked After,LCS/Allowances-Accom,Leaving Care Financial Assistance - Supported Living,08/03/2019,5186258,"2,772.00",EMPOWERHOUSE ltd
Childrens Services,Children's Social Care,Children Looked After,Virtual School PPG,Education & Training - Non Staff Tuition Fees,08/03/2019,5187535,430.00,Winchmore Tutors Ltd
Childrens Services,Children's Social Care,Children Looked After,Virtual School PPG,Education & Training - Non Staff Tuition Fees,08/03/2019,5187536,265.00,Winchmore Tutors Ltd
Childrens Services,Children's Social Care,Children Looked After,S23 Fam Pl P&V-F/Care,Childrens Act Section 23 - Placement Fee,08/03/2019,5187919,"4,017.45",CAPSTONE FOSTER CARE (SE) LTD
Childrens Services,Children's Social Care,Family Support Services,IPST S17 NRPF,Childrens Act Section 17 - Other Placements Bed & Breakfast,08/03/2019,5188661,"1,080.00",Assetgrove
Childrens Services,Children's Social Care,Support Service and Management Costs,Sch. Meals A/c - P.D.C. Cateen,Kitchen Supplies - Food and Beverages,08/03/2019,5189291,784.41,Selecta Uk Limited
Childrens Services,Children's Social Care,Family Support Services,CNN Pool: Joint Family Support,Social Care - Homecare,08/03/2019,5189292,"1,440.00",Medstar Domiciliary Care Servies Ltd
Childrens Services,Children's Social Care,Service Strategy,FSP Sect 17 - Team 5,Childrens Act Section 17 - Expert Assessmt/Witness Costs,08/03/2019,5189298,"1,988.00",E4 Law Limited T/A Lextox
Childrens Services,Children's Social Care,Other Children's and Family Services,Childrens Social Care Business Support Team,Medical Requisites,08/03/2019,5189311,646.95,Back Care Solutions Ltd
Childrens Services,Cultural and Related Services,Recreation & Sport,GLL Sports Centres,Payments to Private Contractors - Minor Works,08/03/2019,5189349,"13,566.91",Quality Leisure Management Ltd
Childrens Services,Children's Social Care,Support Service and Management Costs,Sch. Meals A/c - C.F.S. Upper (Harley Grove),Kitchen Supplies - Food and Beverages,08/03/2019,5189384,268.87,Bewley's Tea & Coffee UK Ltd
Childrens Services,Children's Social Care,Support Service and Management Costs,Sch. Meals A/c - Morpeth,Kitchen Supplies - Food and Beverages,08/03/2019,5189390,283.62,Bewley's Tea & Coffee UK Ltd
Childrens Services,Children's Social Care,Support Service and Management Costs,"Mulberry Caf�		",Kitchen Supplies - Food and Beverages,08/03/2019,5189392,252.21,Bewley's Tea & Coffee UK Ltd
Childrens Services,Children's Social Care,Support Service and Management Costs,"Mulberry Caf�		",Kitchen Supplies - Food and Beverages,08/03/2019,5189399,510.46,Bewley's Tea & Coffee UK Ltd
Childrens Services,Children's Social Care,Support Service and Management Costs,Schools Catering,Repairs and Maintenance - Responsive - General,08/03/2019,5189465,496.00,Lambourne Refrigeration
Childrens Services,Children's Social Care,Children Looked After,Leaving Care-UASC,Leaving Care Financial Assistance - Supp Accom/Hous Rents,08/03/2019,5189519,"1,181.32",Newhaven 16 Plus
Childrens Services,Children's Social Care,Children Looked After,Leaving Care-UASC,Leaving Care Financial Assistance - Supp Accom/Hous Rents,08/03/2019,5189520,867.16,Newhaven 16 Plus
Childrens Services,Children's Social Care,Children Looked After,Leaving Care-UASC,Leaving Care Financial Assistance - Supp Accom/Hous Rents,08/03/2019,5189521,"1,032.61",Newhaven 16 Plus
Childrens Services,Children's Social Care,Children Looked After,Leaving Care-UASC,Leaving Care Financial Assistance - Supp Accom/Hous Rents,08/03/2019,5189522,932.68,Newhaven 16 Plus
Childrens Services,Children's Social Care,Children Looked After,LCS/Allowances-Accom,Leaving Care Financial Assistance - Supp Accom/Hous Rents,08/03/2019,5189523,999.88,Newhaven 16 Plus
Childrens Services,Children's Social Care,Children Looked After,LCS/Allowances-Accom,Leaving Care Financial Assistance - Supp Accom/Hous Rents,08/03/2019,5189524,656.88,Newhaven 16 Plus
Childrens Services,Children's Social Care,Children Looked After,LCS/Allowances-Accom,Leaving Care Financial Assistance - Supp Accom/Hous Rents,08/03/2019,5189525,999.88,Newhaven 16 Plus
Childrens Services,Children's Social Care,Children Looked After,LCS/Allowances-Accom,Leaving Care Financial Assistance - Supp Accom/Hous Rents,08/03/2019,5189527,999.88,Newhaven 16 Plus
Childrens Services,Children's Social Care,Family Support Services,CNN Pool: Children Direct Paym,Social Care - Direct Payments,08/03/2019,5189618,"2,167.80",DH TOWER HAMLETS
Childrens Services,Education Services,Other Strategic Functions,SEN External Travel,Non Staff Transport Costs - Reimbursement,08/03/2019,5190247,"63,978.00",Healthcare and Transport Services Group Ltd
Childrens Services,Education Services,Services to Young People and Other Community Learners,Careers Service - Core,Services - Professional Fees - Consultants Fees,08/03/2019,5190321,"1,870.00",Assessment Service Details
Childrens Services,Children's Social Care,Support Service and Management Costs,Schools Catering,Kitchen Supplies - Food and Beverages,08/03/2019,5190455,757.43,Thomas Ridley & Son Ltd
Childrens Services,Children's Social Care,Support Service and Management Costs,Schools Catering,Kitchen Supplies - Food and Beverages,08/03/2019,5190457,410.63,Thomas Ridley & Son Ltd
Childrens Services,Children's Social Care,Support Service and Management Costs,Welfare Catering,Kitchen Supplies - Food and Beverages,08/03/2019,5190458,440.17,Thomas Ridley & Son Ltd
Childrens Services,Children's Social Care,Support Service and Management Costs,Sch. Meals A/c - Central Production Unit,Kitchen Supplies - Food and Beverages,08/03/2019,5190459,"1,838.51",Thomas Ridley & Son Ltd
Childrens Services,Children's Social Care,Support Service and Management Costs,Toby Lane Function,Kitchen Supplies - Food and Beverages,08/03/2019,5190461,273.13,Thomas Ridley & Son Ltd
Childrens Services,Children's Social Care,Support Service and Management Costs,Schools Catering,Kitchen Supplies - Food and Beverages,08/03/2019,5190514,836.35,Thomas Ridley & Son Ltd
Childrens Services,Children's Social Care,Support Service and Management Costs,Schools Catering,Kitchen Supplies - Food and Beverages,08/03/2019,5190516,371.93,Thomas Ridley & Son Ltd
Childrens Services,Children's Social Care,Support Service and Management Costs,Schools Catering,Kitchen Supplies - Food and Beverages,08/03/2019,5190517,265.48,Thomas Ridley & Son Ltd
Childrens Services,Children's Social Care,Support Service and Management Costs,Sch. Meals A/c - P.D.C. Cateen,Kitchen Supplies - Food and Beverages,08/03/2019,5190518,254.06,Thomas Ridley & Son Ltd
Childrens Services,Children's Social Care,Support Service and Management Costs,Schools Catering,Kitchen Supplies - Food and Beverages,08/03/2019,5190519,550.75,Thomas Ridley & Son Ltd
Childrens Services,Children's Social Care,Support Service and Management Costs,Schools Catering,Kitchen Supplies - Food and Beverages,08/03/2019,5190520,694.87,Thomas Ridley & Son Ltd
Childrens Services,Children's Social Care,Support Service and Management Costs,Schools Catering,Kitchen Supplies - Food and Beverages,08/03/2019,5190521,385.46,Thomas Ridley & Son Ltd
Childrens Services,Children's Social Care,Support Service and Management Costs,Schools Catering,Kitchen Supplies - Food and Beverages,08/03/2019,5190522,258.35,Thomas Ridley & Son Ltd
Childrens Services,Children's Social Care,Support Service and Management Costs,Schools Catering,Kitchen Supplies - Food and Beverages,08/03/2019,5190523,339.69,Thomas Ridley & Son Ltd
Childrens Services,Children's Social Care,Support Service and Management Costs,Schools Catering,Kitchen Supplies - Food and Beverages,08/03/2019,5190525,458.66,Thomas Ridley & Son Ltd
Childrens Services,Children's Social Care,Support Service and Management Costs,Sch. Meals A/c - Central Production Unit,Kitchen Supplies - Food and Beverages,08/03/2019,5190528,"1,393.05",Thomas Ridley & Son Ltd
Childrens Services,Children's Social Care,Support Service and Management Costs,Schools Catering,Kitchen Supplies - Food and Beverages,08/03/2019,5190531,374.82,Thomas Ridley & Son Ltd
Childrens Services,Children's Social Care,Support Service and Management Costs,Schools Catering,Kitchen Supplies - Food and Beverages,08/03/2019,5190558,299.77,Prescott-Thomas LTD.
Childrens Services,Children's Social Care,Support Service and Management Costs,Schools Catering,Kitchen Supplies - Food and Beverages,08/03/2019,5190585,302.97,Prescott-Thomas LTD.
Childrens Services,Children's Social Care,Children Looked After,Leaving Care-UASC,Leaving Care Financial Assistance - Reg Plan Maint L-Allow,11/03/2019,5165929,389.43,Pangea Support Services
Childrens Services,Children's Social Care,Children Looked After,Leaving Care-UASC,Leaving Care Financial Assistance - Supp Accom/Hous Rents,11/03/2019,5165929,"1,678.57",Pangea Support Services
Childrens Services,Children's Social Care,Children Looked After,Leaving Care-UASC,Leaving Care Financial Assistance - Supported Living,11/03/2019,5165929,335.71,Pangea Support Services
Childrens Services,Children's Social Care,Support Service and Management Costs,Schools Catering,Kitchen Supplies - Food and Beverages,11/03/2019,5178488,807.24,Thomas Ridley & Son Ltd
Childrens Services,Children's Social Care,Support Service and Management Costs,Schools Catering,Kitchen Supplies - Food and Beverages,11/03/2019,5178489,"1,000.23",Thomas Ridley & Son Ltd
Childrens Services,Children's Social Care,Support Service and Management Costs,"Mulberry Caf�		",Kitchen Supplies - Food and Beverages,11/03/2019,5178490,751.54,Thomas Ridley & Son Ltd
Childrens Services,Children's Social Care,Support Service and Management Costs,Schools Catering,Kitchen Supplies - Food and Beverages,11/03/2019,5178492,352.97,Thomas Ridley & Son Ltd
Childrens Services,Children's Social Care,Support Service and Management Costs,Schools Catering,Kitchen Supplies - Food and Beverages,11/03/2019,5178493,377.07,Thomas Ridley & Son Ltd
Childrens Services,Children's Social Care,Support Service and Management Costs,Schools Catering,Kitchen Supplies - Food and Beverages,11/03/2019,5178494,501.20,Thomas Ridley & Son Ltd
Childrens Services,Children's Social Care,Support Service and Management Costs,Schools Catering,Kitchen Supplies - Food and Beverages,11/03/2019,5178497,861.55,Thomas Ridley & Son Ltd
Childrens Services,Children's Social Care,Support Service and Management Costs,Schools Catering,Kitchen Supplies - Food and Beverages,11/03/2019,5178498,285.91,Thomas Ridley & Son Ltd
Childrens Services,Children's Social Care,Support Service and Management Costs,Schools Catering,Kitchen Supplies - Food and Beverages,11/03/2019,5178500,324.71,Thomas Ridley & Son Ltd
Childrens Services,Children's Social Care,Support Service and Management Costs,Schools Catering,Kitchen Supplies - Food and Beverages,11/03/2019,5178502,487.10,Thomas Ridley & Son Ltd
Childrens Services,Children's Social Care,Support Service and Management Costs,Schools Catering,Kitchen Supplies - Food and Beverages,11/03/2019,5178503,395.41,Thomas Ridley & Son Ltd
Childrens Services,Children's Social Care,Children Looked After,S23 Fam Pl P&V-F/Care,Childrens Act Section 23 - Placement Fee,11/03/2019,5178757,"7,538.74",Five Rivers Childcare Limited
Childrens Services,Children's Social Care,Support Service and Management Costs,Schools Catering,Kitchen Supplies - Food and Beverages,11/03/2019,5178788,297.67,Thomas Ridley & Son Ltd
Childrens Services,Children's Social Care,Support Service and Management Costs,Schools Catering,Kitchen Supplies - Food and Beverages,11/03/2019,5178790,580.88,Thomas Ridley & Son Ltd
Childrens Services,Children's Social Care,Support Service and Management Costs,Schools Catering,Kitchen Supplies - Food and Beverages,11/03/2019,5178791,466.08,Thomas Ridley & Son Ltd
Childrens Services,Children's Social Care,Support Service and Management Costs,Schools Catering,Kitchen Supplies - Food and Beverages,11/03/2019,5178792,278.49,Thomas Ridley & Son Ltd
Childrens Services,Children's Social Care,Support Service and Management Costs,Schools Catering,Kitchen Supplies - Food and Beverages,11/03/2019,5178795,568.61,Thomas Ridley & Son Ltd
Childrens Services,Children's Social Care,Support Service and Management Costs,Schools Catering,Kitchen Supplies - Food and Beverages,11/03/2019,5178796,552.91,Thomas Ridley & Son Ltd
Childrens Services,Children's Social Care,Support Service and Management Costs,Sch. Meals A/c - Central Production Unit,Kitchen Supplies - Food and Beverages,11/03/2019,5178797,"1,144.24",Thomas Ridley & Son Ltd
Childrens Services,Children's Social Care,Support Service and Management Costs,Schools Catering,Kitchen Supplies - Food and Beverages,11/03/2019,5178798,361.11,Thomas Ridley & Son Ltd
Childrens Services,Children's Social Care,Support Service and Management Costs,Schools Catering,Kitchen Supplies - Food and Beverages,11/03/2019,5178799,465.07,Thomas Ridley & Son Ltd
Childrens Services,Children's Social Care,Support Service and Management Costs,Schools Catering,Kitchen Supplies - Food and Beverages,11/03/2019,5178800,487.15,Thomas Ridley & Son Ltd
Childrens Services,Children's Social Care,Support Service and Management Costs,Schools Catering,Kitchen Supplies - Food and Beverages,11/03/2019,5178801,350.28,Thomas Ridley & Son Ltd
Childrens Services,Cultural and Related Services,Open Spaces,Victoria Park,Repairs and Maintenance - Responsive - Repair & Maintenance,11/03/2019,5178897,"2,310.00",JC Coster (Metalworks) Ltd
Childrens Services,Cultural and Related Services,Open Spaces,Victoria Park,Repairs and Maintenance - Responsive - Repair & Maintenance,11/03/2019,5178898,"2,090.00",JC Coster (Metalworks) Ltd
Childrens Services,Children's Social Care,Children Looked After,S23-Other-Mother & Baby Unit,Childrens Act Section 23 - Placement Fee,11/03/2019,5179026,"3,250.00",Care 2 Share LTD
Childrens Services,Children's Social Care,Children Looked After,S23-Other-Mother & Baby Unit,Childrens Act Section 23 - Placement Fee,11/03/2019,5179027,"3,250.00",Care 2 Share LTD
Childrens Services,Children's Social Care,Children Looked After,S23-Other-Mother & Baby Unit,Childrens Act Section 23 - Placement Fee,11/03/2019,5179028,360.00,Care 2 Share LTD
Childrens Services,Children's Social Care,Children Looked After,Leaving Care-UASC,Leaving Care Financial Assistance - Supp Accom/Hous Rents,11/03/2019,5179083,"1,000.00",Pangea Support Services
Childrens Services,Children's Social Care,Children Looked After,Leaving Care-UASC,Leaving Care Financial Assistance - Supp Accom/Hous Rents,11/03/2019,5179085,"3,980.00",Pangea Support Services
Childrens Services,Children's Social Care,Children Looked After,Leaving Care-UASC,Leaving Care Financial Assistance - Supp Accom/Hous Rents,11/03/2019,5179089,"1,000.00",Pangea Support Services
Childrens Services,Children's Social Care,Children Looked After,Leaving Care-UASC,Leaving Care Financial Assistance - Supp Accom/Hous Rents,11/03/2019,5179091,"1,000.00",Pangea Support Services
Childrens Services,Children's Social Care,Children Looked After,Leaving Care-UASC,Leaving Care Financial Assistance - Supp Accom/Hous Rents,11/03/2019,5179093,"1,000.00",Pangea Support Services
Childrens Services,Children's Social Care,Children Looked After,Leaving Care-UASC,Leaving Care Financial Assistance - Supp Accom/Hous Rents,11/03/2019,5179095,"1,000.00",Pangea Support Services
Childrens Services,Children's Social Care,Children Looked After,Leaving Care-UASC,Leaving Care Financial Assistance - Supp Accom/Hous Rents,11/03/2019,5179101,"1,000.00",Pangea Support Services
Childrens Services,Children's Social Care,Children Looked After,LCS/Allowances-Accom,Leaving Care Financial Assistance - Supported Living,11/03/2019,5179103,"4,380.00",Pangea Support Services
Childrens Services,Children's Social Care,Children Looked After,Leaving Care-UASC,Leaving Care Financial Assistance - Supp Accom/Hous Rents,11/03/2019,5179105,"1,000.00",Pangea Support Services
Childrens Services,Children's Social Care,Children Looked After,Leaving Care-UASC,Leaving Care Financial Assistance - Supp Accom/Hous Rents,11/03/2019,5179107,"1,000.00",Pangea Support Services
Childrens Services,Children's Social Care,Support Service and Management Costs,Schools Catering,Kitchen Supplies - Food and Beverages,11/03/2019,5179149,449.73,Thomas Ridley & Son Ltd
Childrens Services,Children's Social Care,Support Service and Management Costs,Schools Catering,Kitchen Supplies - Food and Beverages,11/03/2019,5179150,644.95,Thomas Ridley & Son Ltd
Childrens Services,Children's Social Care,Support Service and Management Costs,Schools Catering,Kitchen Supplies - Food and Beverages,11/03/2019,5179151,503.23,Thomas Ridley & Son Ltd
Childrens Services,Children's Social Care,Support Service and Management Costs,Schools Catering,Kitchen Supplies - Food and Beverages,11/03/2019,5179152,536.48,Thomas Ridley & Son Ltd
Childrens Services,Children's Social Care,Support Service and Management Costs,Schools Catering,Kitchen Supplies - Food and Beverages,11/03/2019,5179154,478.19,Thomas Ridley & Son Ltd
Childrens Services,Children's Social Care,Support Service and Management Costs,Schools Catering,Kitchen Supplies - Food and Beverages,11/03/2019,5179155,390.75,Thomas Ridley & Son Ltd
Childrens Services,Children's Social Care,Support Service and Management Costs,Schools Catering,Kitchen Supplies - Food and Beverages,11/03/2019,5179156,467.67,Thomas Ridley & Son Ltd
Childrens Services,Children's Social Care,Support Service and Management Costs,Schools Catering,Kitchen Supplies - Food and Beverages,11/03/2019,5179157,353.01,Thomas Ridley & Son Ltd
Childrens Services,Children's Social Care,Support Service and Management Costs,Schools Catering,Kitchen Supplies - Food and Beverages,11/03/2019,5179162,452.65,Thomas Ridley & Son Ltd
Childrens Services,Children's Social Care,Support Service and Management Costs,Schools Catering,Kitchen Supplies - Food and Beverages,11/03/2019,5179163,585.47,Thomas Ridley & Son Ltd
Childrens Services,Children's Social Care,Support Service and Management Costs,Schools Catering,Kitchen Supplies - Food and Beverages,11/03/2019,5179164,963.78,Thomas Ridley & Son Ltd
Childrens Services,Children's Social Care,Support Service and Management Costs,Schools Catering,Kitchen Supplies - Food and Beverages,11/03/2019,5179166,340.24,Thomas Ridley & Son Ltd
Childrens Services,Children's Social Care,Support Service and Management Costs,Welfare Catering,Kitchen Supplies - Food and Beverages,11/03/2019,5179167,914.59,Thomas Ridley & Son Ltd
Childrens Services,Children's Social Care,Support Service and Management Costs,Schools Catering,Kitchen Supplies - Food and Beverages,11/03/2019,5179168,256.98,Thomas Ridley & Son Ltd
Childrens Services,Children's Social Care,Support Service and Management Costs,Schools Catering,Kitchen Supplies - Food and Beverages,11/03/2019,5179169,612.75,Thomas Ridley & Son Ltd
Childrens Services,Children's Social Care,Support Service and Management Costs,Schools Catering,Kitchen Supplies - Food and Beverages,11/03/2019,5179170,512.01,Thomas Ridley & Son Ltd
Childrens Services,Children's Social Care,Support Service and Management Costs,Schools Catering,Kitchen Supplies - Food and Beverages,11/03/2019,5179171,534.93,Thomas Ridley & Son Ltd
Childrens Services,Children's Social Care,Support Service and Management Costs,Schools Catering,Kitchen Supplies - Food and Beverages,11/03/2019,5179175,268.00,Thomas Ridley & Son Ltd
Childrens Services,Children's Social Care,Support Service and Management Costs,Schools Catering,Kitchen Supplies - Food and Beverages,11/03/2019,5179176,302.16,Thomas Ridley & Son Ltd
Childrens Services,Children's Social Care,Support Service and Management Costs,Schools Catering,Kitchen Supplies - Food and Beverages,11/03/2019,5179177,388.56,Thomas Ridley & Son Ltd
Childrens Services,Children's Social Care,Support Service and Management Costs,Schools Catering,Kitchen Supplies - Food and Beverages,11/03/2019,5179179,585.69,Thomas Ridley & Son Ltd
Childrens Services,Children's Social Care,Support Service and Management Costs,Schools Catering,Kitchen Supplies - Food and Beverages,11/03/2019,5179181,258.38,Thomas Ridley & Son Ltd
Childrens Services,Children's Social Care,Support Service and Management Costs,Schools Catering,Kitchen Supplies - Food and Beverages,11/03/2019,5179184,251.49,Thomas Ridley & Son Ltd
Childrens Services,Children's Social Care,Support Service and Management Costs,Schools Catering,Kitchen Supplies - Food and Beverages,11/03/2019,5179185,373.88,Thomas Ridley & Son Ltd
Childrens Services,Children's Social Care,Support Service and Management Costs,Swanlea,Kitchen Supplies - Food and Beverages,11/03/2019,5179186,882.31,Thomas Ridley & Son Ltd
Childrens Services,Children's Social Care,Support Service and Management Costs,Schools Catering,Kitchen Supplies - Food and Beverages,11/03/2019,5179187,264.28,Thomas Ridley & Son Ltd
Childrens Services,Children's Social Care,Children Looked After,S23 Fam Pl P&V-F/Care,Childrens Act Section 23 - Placement Fee,11/03/2019,5180322,"2,841.44",Children First Fostering Agency LTD
Childrens Services,Children's Social Care,Children Looked After,Staying Put,Childrens Act Section 23 - Placement Fee,11/03/2019,5180323,"1,636.04",Children First Fostering Agency LTD
Childrens Services,Children's Social Care,Children Looked After,S23 Fam Pl P&V-F/Care,Childrens Act Section 23 - Placement Fee,11/03/2019,5180324,"2,866.64",Children First Fostering Agency LTD
Childrens Services,Cultural and Related Services,Open Spaces,Victoria Park,Repairs and Maintenance - Responsive - Repair & Maintenance,11/03/2019,5180510,709.00,Amethyst Horticulture Ltd
Childrens Services,Education Services,Other Strategic Functions,Music Trading Account,Third Party Payments - Voluntary Associations,11/03/2019,5181345,"5,000.00",Half Moon Young People's Theatre
Childrens Services,Children's Social Care,Children Looked After,S23 Fam Pl P&V-F/Care,Childrens Act Section 23 - Placement Fee,11/03/2019,5181394,850.00,Qalb Fostering Agency Ltd
Childrens Services,Children's Social Care,Children Looked After,S23 Fam Pl P&V-F/Care,Childrens Act Section 23 - Placement Fee,11/03/2019,5181395,950.00,Qalb Fostering Agency Ltd
Childrens Services,Children's Social Care,Children Looked After,S23 Fam Pl P&V-F/Care,Childrens Act Section 23 - Placement Fee,11/03/2019,5181396,950.00,Qalb Fostering Agency Ltd
Childrens Services,Children's Social Care,Children Looked After,S23 Fam Pl P&V-F/Care,Childrens Act Section 23 - Placement Fee,11/03/2019,5181397,"1,400.00",Qalb Fostering Agency Ltd
Childrens Services,Children's Social Care,Commissioning and Social Work,Advice & Assesment M & A,Computing - Purchase of Hardware,11/03/2019,5181414,679.50,VMS Network Cabling Ltd
Childrens Services,Education Services,Other Strategic Functions,Auxilary Aids,Educational/Training Supplies - Resources,11/03/2019,5181466,"6,000.00",Connevans Limited
Childrens Services,Education Services,Other Strategic Functions,Auxilary Aids,Educational/Training Supplies - Resources,11/03/2019,5181466,580.00,Connevans Limited
Childrens Services,Education Services,Other Strategic Functions,Auxilary Aids,Educational/Training Supplies - Resources,11/03/2019,5181466,311.60,Connevans Limited
Childrens Services,Education Services,Other Strategic Functions,Auxilary Aids,Educational/Training Supplies - Resources,11/03/2019,5181466,588.00,Connevans Limited
Childrens Services,Education Services,Other Strategic Functions,Auxilary Aids,Educational/Training Supplies - Resources,11/03/2019,5181466,623.20,Connevans Limited
Childrens Services,Children's Social Care,Children Looked After,Leaving Care-UASC,Leaving Care Financial Assistance - Supp Accom/Hous Rents,11/03/2019,5181627,"1,071.43",Pangea Support Services
Childrens Services,Children's Social Care,Children Looked After,Leaving Care-UASC,Leaving Care Financial Assistance - Supported Living,11/03/2019,5181627,"1,220.00",Pangea Support Services
Childrens Services,Children's Social Care,Children Looked After,Children Looked After Sect 17,Childrens Act Section 17 - Maintenance/Subsistence,11/03/2019,5184660,"1,395.00",George IV Regency Hotel
Childrens Services,Education Services,Other Strategic Functions,High Needs Academies & Free Schs,Third Party Payments - Payments to Schools,11/03/2019,5184685,"2,046.50",Access To Music Ltd
Childrens Services,Education Services,Other Strategic Functions,High Needs Academies & Free Schs,Third Party Payments - Payments to Schools,11/03/2019,5184686,"2,046.50",Access To Music Ltd
Childrens Services,Education Services,Other Strategic Functions,High Needs Other Boroughs,Third Party Payments - Payments to Schools,11/03/2019,5184883,"1,031.00",BYGROVE SCHOOL
Childrens Services,Cultural and Related Services,Culture & Heritage,Arts-Park Events,Events & Exhibition Supplies,11/03/2019,5186081,"1,605.00",Face Events LTD
Childrens Services,No Service Specified,No Division Specified,Capital-Minor Works (SC),Other External Fees - Other External Fees,11/03/2019,5186250,"83,936.25",Architype
Childrens Services,Education Services,Other Strategic Functions,Schools Library,Events & Exhibition Supplies,11/03/2019,5187622,"9,309.00",The Poetry Society
Childrens Services,Children's Social Care,Family Support Services,CNN Pool: Joint Family Support,Non Staff Transport Costs - Taxi Hire,11/03/2019,5189252,"1,056.00",Mile End Car Hire Limited
Childrens Services,Children's Social Care,Children Looked After,S23 Fam Pl In-Hse-S/Term F/C,Childrens Act Section 23 - All Contact Expenses,11/03/2019,5189358,320.00,Early Start Group Ltd
Childrens Services,Children's Social Care,Children Looked After,S23 Fam Pl P&V-F/Care,Childrens Act Section 23 - Placement Fee,11/03/2019,5189413,"3,400.04",CAPSTONE FOSTER CARE (SE) LTD
Childrens Services,Children's Social Care,Children Looked After,Leaving Care-UASC,Leaving Care Financial Assistance - Reg Plan Maint L-Allow,11/03/2019,5189510,256.86,Pangea Support Services
Childrens Services,Children's Social Care,Children Looked After,Leaving Care-UASC,Leaving Care Financial Assistance - Supp Accom/Hous Rents,11/03/2019,5189510,"1,107.14",Pangea Support Services
Childrens Services,Children's Social Care,Children Looked After,Leaving Care-UASC,Leaving Care Financial Assistance - Reg Plan Maint L-Allow,11/03/2019,5189511,256.86,Pangea Support Services
Childrens Services,Children's Social Care,Children Looked After,Leaving Care-UASC,Leaving Care Financial Assistance - Supp Accom/Hous Rents,11/03/2019,5189511,"1,107.14",Pangea Support Services
Childrens Services,Children's Social Care,Children Looked After,Leaving Care-UASC,Leaving Care Financial Assistance - Reg Plan Maint L-Allow,11/03/2019,5189514,344.10,Pangea Support Services
Childrens Services,Children's Social Care,Children Looked After,Leaving Care-UASC,Leaving Care Financial Assistance - Supp Accom/Hous Rents,11/03/2019,5189514,"2,612.86",Pangea Support Services
Childrens Services,Children's Social Care,Children Looked After,Leaving Care-UASC,Leaving Care Financial Assistance - Reg Plan Maint L-Allow,11/03/2019,5189515,310.80,Pangea Support Services
Childrens Services,Children's Social Care,Children Looked After,Leaving Care-UASC,Leaving Care Financial Assistance - Supp Accom/Hous Rents,11/03/2019,5189515,"2,360.00",Pangea Support Services
Childrens Services,Children's Social Care,Children Looked After,Children Looked After Sect 17,Childrens Act Section 17 - Medical Expenses,11/03/2019,5190290,605.00,E4 Law Limited T/A Lextox
Childrens Services,Children's Social Care,Children Looked After,S23-Other-Hospital,Childrens Act Section 23 - Medical Expenses,11/03/2019,5190292,534.00,E4 Law Limited T/A Lextox
Childrens Services,Children's Social Care,Children Looked After,S23 Fam Pl In-Hse-S/Term F/C,Childrens Act Section 23 - Medical Expenses,11/03/2019,5190293,388.18,E4 Law Limited T/A Lextox
Childrens Services,Education Services,Services to Young People and Other Community Learners,Further and Higher Education,Education Trust - Grant,11/03/2019,5190365,"1,250.00",Counselling and Pyschotherapy Training Academy Ltd
Childrens Services,Education Services,Services to Young People and Other Community Learners,Further and Higher Education,Education Trust - Grant,11/03/2019,5190366,"1,250.00",Counselling and Pyschotherapy Training Academy Ltd
Childrens Services,Education Services,Early Years,Chrisp St,Educational/Training Supplies - Resources,11/03/2019,5190445,285.00,Living Eggs Herts
Childrens Services,Cultural and Related Services,Culture & Heritage,Arts-Park Events,Events & Exhibition Supplies,11/03/2019,5190695,"1,000.00",COMMUNITY OF REFUGEES FROM VIETNAM -
Childrens Services,Education Services,Early Years,Mile End CC,Repairs and Maintenance - Responsive - Repair & Maintenance,13/03/2019,5172343,"7,100.00",JC Coster (Metalworks) Ltd
Childrens Services,Cultural and Related Services,Recreation & Sport,Sports Development,Recreational Activities,13/03/2019,5178725,"9,900.00",Our Parks Ltd
Childrens Services,Children's Social Care,Children Looked After,S23 Fam Pl In-Hse-Perm F/Care,Childrens Act Section 23 - Spec Pymnts Miscellaneous,13/03/2019,5178856,310.00,Harris City Academy Crystal Palace
Childrens Services,Education Services,Other Strategic Functions,Student Admissions,Training Expenses - Staff External Training (UK Based),13/03/2019,5178972,275.00,ACE Education Training LLP
Childrens Services,Education Services,Other Strategic Functions,Student Admissions,Training Expenses - Staff External Training (UK Based),13/03/2019,5178972,275.00,ACE Education Training LLP
Childrens Services,Education Services,Other Strategic Functions,Special Education Needs DSG,Third Party Payments - Payments to Schools,13/03/2019,5180306,"37,583.33",Transitional Care LTD
Childrens Services,Children's Social Care,Children Looked After,S23-Other-Semi-Ind. Unit,Childrens Act Section 23 - Placement Fee,13/03/2019,5180334,925.00,Real Life
Childrens Services,Children's Social Care,Support Service and Management Costs,Schools Catering,Kitchen Supplies - Food and Beverages,13/03/2019,5180349,599.47,Thomas Ridley & Son Ltd
Childrens Services,Children's Social Care,Support Service and Management Costs,Schools Catering,Kitchen Supplies - Food and Beverages,13/03/2019,5180350,556.77,Thomas Ridley & Son Ltd
Childrens Services,Children's Social Care,Support Service and Management Costs,Schools Catering,Kitchen Supplies - Food and Beverages,13/03/2019,5180352,326.20,Thomas Ridley & Son Ltd
Childrens Services,Children's Social Care,Support Service and Management Costs,Schools Catering,Kitchen Supplies - Food and Beverages,13/03/2019,5180354,288.53,Thomas Ridley & Son Ltd
Childrens Services,Children's Social Care,Support Service and Management Costs,Schools Catering,Kitchen Supplies - Food and Beverages,13/03/2019,5180356,651.32,Thomas Ridley & Son Ltd
Childrens Services,Children's Social Care,Support Service and Management Costs,Schools Catering,Kitchen Supplies - Food and Beverages,13/03/2019,5180358,448.90,Thomas Ridley & Son Ltd
Childrens Services,Children's Social Care,Support Service and Management Costs,Schools Catering,Kitchen Supplies - Food and Beverages,13/03/2019,5180359,261.73,Thomas Ridley & Son Ltd
Childrens Services,Children's Social Care,Support Service and Management Costs,Schools Catering,Kitchen Supplies - Food and Beverages,13/03/2019,5180360,766.30,Thomas Ridley & Son Ltd
Childrens Services,Children's Social Care,Support Service and Management Costs,Schools Catering,Kitchen Supplies - Food and Beverages,13/03/2019,5180362,642.47,Thomas Ridley & Son Ltd
Childrens Services,Children's Social Care,Support Service and Management Costs,Schools Catering,Kitchen Supplies - Food and Beverages,13/03/2019,5180363,264.71,Thomas Ridley & Son Ltd
Childrens Services,Children's Social Care,Support Service and Management Costs,Welfare Catering,Kitchen Supplies - Food and Beverages,13/03/2019,5180365,439.91,Thomas Ridley & Son Ltd
Childrens Services,Children's Social Care,Support Service and Management Costs,Sch. Meals A/c - Central Production Unit,Kitchen Supplies - Food and Beverages,13/03/2019,5180366,"1,248.93",Thomas Ridley & Son Ltd
Childrens Services,Children's Social Care,Support Service and Management Costs,Schools Catering,Kitchen Supplies - Food and Beverages,13/03/2019,5180368,465.79,Thomas Ridley & Son Ltd
Childrens Services,Children's Social Care,Support Service and Management Costs,Schools Catering,Kitchen Supplies - Food and Beverages,13/03/2019,5180371,287.77,Thomas Ridley & Son Ltd
Childrens Services,Children's Social Care,Support Service and Management Costs,Schools Catering,Kitchen Supplies - Food and Beverages,13/03/2019,5180374,330.38,Thomas Ridley & Son Ltd
Childrens Services,Children's Social Care,Support Service and Management Costs,Schools Catering,Kitchen Supplies - Food and Beverages,13/03/2019,5180376,581.09,Thomas Ridley & Son Ltd
Childrens Services,Children's Social Care,Support Service and Management Costs,Schools Catering,Kitchen Supplies - Food and Beverages,13/03/2019,5180378,513.94,Thomas Ridley & Son Ltd
Childrens Services,Children's Social Care,Support Service and Management Costs,Schools Catering,Kitchen Supplies - Food and Beverages,13/03/2019,5180379,375.29,Thomas Ridley & Son Ltd
Childrens Services,Children's Social Care,Support Service and Management Costs,Schools Catering,Kitchen Supplies - Food and Beverages,13/03/2019,5180380,623.22,Thomas Ridley & Son Ltd
Childrens Services,Cultural and Related Services,Culture & Heritage,Arts-Park Events,Events & Exhibition Supplies,13/03/2019,5180431,785.00,JC Coster (Metalworks) Ltd
Childrens Services,Cultural and Related Services,Culture & Heritage,Filming,Repairs and Maintenance - Responsive - Non Store Items,13/03/2019,5180432,"6,300.00",JC Coster (Metalworks) Ltd
Childrens Services,Cultural and Related Services,Open Spaces,Mile End Park,Repairs and Maintenance - Responsive - Non Store Items,13/03/2019,5180433,"9,580.00",JC Coster (Metalworks) Ltd
Childrens Services,Cultural and Related Services,Open Spaces,Parks & Open Spaces Man&Admin,Repairs and Maintenance - Responsive - Buildings,13/03/2019,5180434,"1,875.00",JC Coster (Metalworks) Ltd
Childrens Services,Children's Social Care,Other Children's and Family Services,Permanancy and Adoption Support Team 2,Services - Professional Fees - Legal Fees/Expenses,13/03/2019,5180458,"2,850.00",Intuitive Blue Social Care Ltd
Childrens Services,Children's Social Care,Support Service and Management Costs,Schools Catering,Kitchen Supplies - Food and Beverages,13/03/2019,5180530,720.68,Thomas Ridley & Son Ltd
Childrens Services,Children's Social Care,Support Service and Management Costs,Schools Catering,Kitchen Supplies - Food and Beverages,13/03/2019,5180531,602.13,Thomas Ridley & Son Ltd
Childrens Services,Children's Social Care,Support Service and Management Costs,Schools Catering,Kitchen Supplies - Food and Beverages,13/03/2019,5180532,742.42,Thomas Ridley & Son Ltd
Childrens Services,Children's Social Care,Support Service and Management Costs,Schools Catering,Kitchen Supplies - Food and Beverages,13/03/2019,5180536,533.89,Thomas Ridley & Son Ltd
Childrens Services,Children's Social Care,Support Service and Management Costs,Schools Catering,Kitchen Supplies - Food and Beverages,13/03/2019,5180537,264.43,Thomas Ridley & Son Ltd
Childrens Services,Children's Social Care,Support Service and Management Costs,Schools Catering,Kitchen Supplies - Food and Beverages,13/03/2019,5180538,463.40,Thomas Ridley & Son Ltd
Childrens Services,Children's Social Care,Support Service and Management Costs,Swanlea,Kitchen Supplies - Food and Beverages,13/03/2019,5180539,580.05,Thomas Ridley & Son Ltd
Childrens Services,Children's Social Care,Support Service and Management Costs,Schools Catering,Kitchen Supplies - Food and Beverages,13/03/2019,5180540,266.25,Thomas Ridley & Son Ltd
Childrens Services,Children's Social Care,Services for young people,Youth Service Management,Services - Professional Fees - Counsel's Fees,13/03/2019,5181124,"11,000.00",Old Square Chambers
Childrens Services,Children's Social Care,Services for young people,Youth Service Management,Catering - Hospitality,13/03/2019,5181182,950.00,Shah One (Mint Caterers)
Childrens Services,Cultural and Related Services,Open Spaces,Parks & Open Spaces Man&Admin,Computing - Purchase of Software,13/03/2019,5181231,"1,340.10",Agilisys Professional Services
Childrens Services,Education Services,Other Strategic Functions,High Needs Academies & Free Schs,Third Party Payments - Payments to Schools,13/03/2019,5181364,"9,500.00",William Morris School
Childrens Services,Children's Social Care,Other Children's and Family Services,Adoption Support Fund,Social Care - Day Care,13/03/2019,5181385,"2,500.00",Family Futures CIC
Childrens Services,Children's Social Care,Children Looked After,Enrichment Projects,Educational/Training Supplies - Resources,13/03/2019,5181393,"4,500.00",Voucherline Ltd
Childrens Services,Cultural and Related Services,Open Spaces,Mile End Park,Repairs and Maintenance - Responsive - Buildings,13/03/2019,5181415,548.69,VMS Network Cabling Ltd
Childrens Services,Children's Social Care,Support Service and Management Costs,Schools Catering,Materials - Cleaning Materials,13/03/2019,5181595,265.71,The Maintenance Supply Co Ltd
Childrens Services,Cultural and Related Services,Open Spaces,Mile End Park,Comms - Purchase of Equipment,13/03/2019,5181609,589.14,Bell Integration
Childrens Services,Children's Social Care,Support Service and Management Costs,Schools Catering,Uniforms & Clothing,13/03/2019,5183381,407.50,The Maintenance Supply Co Ltd
Childrens Services,Children's Social Care,Other Children's and Family Services,Permanancy and Adoption Support Team 1,Social Care - Others,13/03/2019,5184030,"5,584.04",Coram Academy Ltd T/A CoramBAAF
Childrens Services,Children's Social Care,Support Service and Management Costs,Welfare Catering,Kitchen Supplies - Food and Beverages,13/03/2019,5184074,428.86,Raj Foods LTD
Childrens Services,Children's Social Care,Support Service and Management Costs,Welfare Catering,Kitchen Supplies - Food and Beverages,13/03/2019,5184075,"1,073.51",Raj Foods LTD
Childrens Services,Children's Social Care,Support Service and Management Costs,Welfare Catering,Kitchen Supplies - Food and Beverages,13/03/2019,5184284,293.32,William White Meats Ltd
Childrens Services,Children's Social Care,Support Service and Management Costs,Schools Catering,Kitchen Supplies - Food and Beverages,13/03/2019,5184293,414.50,William White Meats Ltd
Childrens Services,Children's Social Care,Support Service and Management Costs,Swanlea,Kitchen Supplies - Food and Beverages,13/03/2019,5184296,763.79,William White Meats Ltd
Childrens Services,Children's Social Care,Support Service and Management Costs,Sch. Meals A/c - Central Production Unit,Kitchen Supplies - Food and Beverages,13/03/2019,5184301,"1,084.67",William White Meats Ltd
Childrens Services,Children's Social Care,Support Service and Management Costs,Schools Catering,Kitchen Supplies - Food and Beverages,13/03/2019,5184303,323.00,William White Meats Ltd
Childrens Services,Children's Social Care,Support Service and Management Costs,Schools Catering,Kitchen Supplies - Food and Beverages,13/03/2019,5184305,312.36,William White Meats Ltd
Childrens Services,Children's Social Care,Children Looked After,S23-Resi-P&V/OLA-Child Home,Childrens Act Section 23 - Non-Contact Trans/Travel Costs,13/03/2019,5184337,368.00,Wrixon Care Services
Childrens Services,Education Services,Early Years,Mowlem CC,Educational/Training Supplies - Arts & Crafts,13/03/2019,5184475,275.60,Wesco UK
Childrens Services,Cultural and Related Services,Open Spaces,Victoria Park,Tools and Equipment - Purchase,13/03/2019,5184995,753.24,Aps LTD
Childrens Services,Children's Social Care,Children Looked After,Virtual School PPG,Third Party Payments - Payments to Schools,13/03/2019,5185975,"1,000.00",LONDON BOROUGH OF BARKING AND DAGENHAM
Childrens Services,Education Services,Secondary Schools,PFI Hldg Account-Grouped Schoo,Repairs and Maintenance - Responsive - Buildings,13/03/2019,5186068,"1,093.24",Tower Hamlets Schools LTD
Childrens Services,Cultural and Related Services,Recreation & Sport,GLL Sports Centres,Payments to Private Contractors - Minor Works,13/03/2019,5187155,"4,762.46",Physical Company Ltd
Childrens Services,Cultural and Related Services,Recreation & Sport,GLL Sports Centres,Payments to Private Contractors - Minor Works,13/03/2019,5187156,959.47,Physical Company Ltd
Childrens Services,Cultural and Related Services,Recreation & Sport,GLL Sports Centres,Payments to Private Contractors - Minor Works,13/03/2019,5187157,"2,271.26",Physical Company Ltd
Childrens Services,Cultural and Related Services,Recreation & Sport,GLL Sports Centres,Payments to Private Contractors - Minor Works,13/03/2019,5187158,"3,779.91",Physical Company Ltd
Childrens Services,Education Services,Secondary Schools,PFI Hldg Account-Grouped Schoo,Payments to Private Contractors - Other Contractors,13/03/2019,5187173,"1,303,028.05",Tower Hamlets Schools LTD
Childrens Services,Cultural and Related Services,Recreation & Sport,GLL Sports Centres,Payments to Private Contractors - Minor Works,13/03/2019,5187589,907.60,Physical Company Ltd
Childrens Services,Children's Social Care,Children Looked After,S23 Fam Pl In-Hse-Kinshp Care,Childrens Act Section 23 - Expert Assessmt/Witness Costs,13/03/2019,5187820,254.97,E4 Law Limited T/A Lextox
Childrens Services,Education Services,Other Strategic Functions,Auxilary Aids,Training Expenses - Staff External Training (UK Based),13/03/2019,5189263,417.95,Ewing Foundation
Childrens Services,Education Services,Other Strategic Functions,SLS Trading Account,Agency Staff - Operational Teachers,13/03/2019,5189502,"1,410.00",Academics ltd
Childrens Services,Education Services,Other Strategic Functions,SLS Trading Account,Agency Staff - Operational Teachers,13/03/2019,5189503,"1,410.00",Academics ltd
Childrens Services,Education Services,Other Strategic Functions,SLS Trading Account,Agency Staff - Operational Teachers,13/03/2019,5189504,"1,410.00",Academics ltd
Childrens Services,Education Services,Other Strategic Functions,SLS Trading Account,Agency Staff - Operational Teachers,13/03/2019,5189505,"1,410.00",Academics ltd
Childrens Services,Education Services,Other Strategic Functions,SLS - SEN Training SLA,Education & Training - Non Staff Tuition Fees,13/03/2019,5189507,377.00,The Signalong Group
Childrens Services,Education Services,Other Strategic Functions,SLS - SEN Training SLA,Educational/Training Supplies - Resources,13/03/2019,5189508,903.20,The Signalong Group
Childrens Services,Education Services,Early Years,EYS Mainstream Grants,Third Party Payments - Voluntary Associations,13/03/2019,5190294,"10,000.00",Prospects Services
Childrens Services,Education Services,Secondary Schools,PFI Hldg Account-Grouped Schoo,Payments to Private Contractors - Other Contractors,13/03/2019,5190372,"-259,855.00",Tower Hamlets Schools LTD
Childrens Services,Education Services,Other Strategic Functions,Ofsted Improvement Plan,Panel & Conference Expenses - Conference - UK Based,13/03/2019,5190660,"10,417.50",Grange City Hotel Ltd
Childrens Services,Children's Social Care,Children Looked After,S23 Fam Pl P&V-F/Care,Childrens Act Section 23 - Placement Fee,13/03/2019,5190683,"3,286.00",Greater London Fostering LTD
Childrens Services,Education Services,Other Strategic Functions,Parental Engagement,Stationery,13/03/2019,5191038,"2,675.00",Canterbury Christ Church Uni
Childrens Services,Cultural and Related Services,Culture & Heritage,Arts-Park Events,Events & Exhibition Supplies,13/03/2019,5191074,"2,710.00",ENTERTEE HIRE SERVICES LTD
Childrens Services,Children's Social Care,Support Service and Management Costs,Sch. Meals A/c - Langdon Park,Kitchen Supplies - Food and Beverages,13/03/2019,5191102,259.30,Bewley's Tea & Coffee UK Ltd
Childrens Services,Children's Social Care,Support Service and Management Costs,Sch. Meals A/c - Langdon Park,Kitchen Supplies - Food and Beverages,13/03/2019,5191104,257.40,Bewley's Tea & Coffee UK Ltd
Childrens Services,Children's Social Care,Support Service and Management Costs,Sch. Meals A/c - Langdon Park,Kitchen Supplies - Food and Beverages,13/03/2019,5191106,455.20,Bewley's Tea & Coffee UK Ltd
Childrens Services,Children's Social Care,Support Service and Management Costs,Sch. Meals A/c - Morpeth,Kitchen Supplies - Food and Beverages,13/03/2019,5191114,250.05,Bewley's Tea & Coffee UK Ltd
Childrens Services,Children's Social Care,Support Service and Management Costs,Sch. Meals A/c - C.F.S. Upper (Harley Grove),Kitchen Supplies - Food and Beverages,13/03/2019,5191116,"1,314.31",Bewley's Tea & Coffee UK Ltd
Childrens Services,Children's Social Care,Support Service and Management Costs,Sch. Meals A/c - C.F.S. Upper (Harley Grove),Kitchen Supplies - Food and Beverages,13/03/2019,5191124,283.56,Bewley's Tea & Coffee UK Ltd
Childrens Services,Children's Social Care,Support Service and Management Costs,Sch. Meals A/c - C.F.S. Upper (Harley Grove),Kitchen Supplies - Food and Beverages,13/03/2019,5191126,338.10,Bewley's Tea & Coffee UK Ltd
Childrens Services,Children's Social Care,Children Looked After,S23 Fam Pl P&V-F/Care,Childrens Act Section 23 - Non-Contact Taxi Costs,13/03/2019,5191136,"1,260.00",Five Rivers Childcare Limited
Childrens Services,Children's Social Care,Children Looked After,S23 Fam Pl P&V-F/Care,Childrens Act Section 23 - Placement Fee,13/03/2019,5191137,"3,511.99",Five Rivers Childcare Limited
Childrens Services,Children's Social Care,Children Looked After,S23 Fam Pl P&V-F/Care,Childrens Act Section 23 - Non-Contact Taxi Costs,13/03/2019,5191138,"1,620.00",Five Rivers Childcare Limited
Childrens Services,Children's Social Care,Family Support Services,IPST S17 NRPF,Childrens Act Section 17 - Other Placements Bed & Breakfast,13/03/2019,5191172,"4,250.00",Finefair Management
Childrens Services,Children's Social Care,Family Support Services,IPST S17 NRPF,Childrens Act Section 17 - Other Placements Bed & Breakfast,13/03/2019,5191173,"2,380.00",Finefair Management
Childrens Services,Children's Social Care,Family Support Services,IPST S17 NRPF,Childrens Act Section 17 - Other Placements Bed & Breakfast,13/03/2019,5191174,"1,485.00",Finefair Management
Childrens Services,Children's Social Care,Family Support Services,IPST S17 NRPF,Childrens Act Section 17 - Other Placements Bed & Breakfast,13/03/2019,5191175,"1,596.00",Finefair Management
Childrens Services,Children's Social Care,Family Support Services,IPST S17 NRPF,Childrens Act Section 17 - Other Placements Bed & Breakfast,13/03/2019,5191176,"2,240.00",Finefair Management
Childrens Services,Children's Social Care,Family Support Services,IPST S17 NRPF,Childrens Act Section 17 - Other Placements Bed & Breakfast,13/03/2019,5191177,"1,120.00",Finefair Management
Childrens Services,Children's Social Care,Family Support Services,IPST S17 NRPF,Childrens Act Section 17 - Other Placements Bed & Breakfast,13/03/2019,5191178,"1,400.00",Finefair Management
Childrens Services,Children's Social Care,Family Support Services,IPST S17 NRPF,Childrens Act Section 17 - Other Placements Bed & Breakfast,13/03/2019,5191179,"1,400.00",Finefair Management
Childrens Services,Children's Social Care,Family Support Services,IPST S17 NRPF,Childrens Act Section 17 - Other Placements Bed & Breakfast,13/03/2019,5191180,"1,400.00",Finefair Management
Childrens Services,Education Services,Other Strategic Functions,Parental Engagement,Training Expenses - Staff External Training (UK Based),13/03/2019,5191242,"1,358.33",Triple P
Childrens Services,Education Services,Other Strategic Functions,Parental Engagement,Training Expenses - Staff External Training (UK Based),13/03/2019,5191243,"1,358.33",Triple P
Childrens Services,Education Services,Other Strategic Functions,Parental Engagement,Training Expenses - Staff External Training (UK Based),13/03/2019,5191244,"1,342.00",Triple P
Childrens Services,Education Services,Other Strategic Functions,Parental Engagement,Training Expenses - Staff External Training (UK Based),13/03/2019,5191245,"1,018.76",Triple P
Childrens Services,Education Services,Early Years,3&4 Year old PVI�s,Third Party Payments - Voluntary Associations,13/03/2019,5191301,612.00,Rainbow Splash Day Nursery
Childrens Services,Education Services,Early Years,SSEYCG Two Year Old Pilot,Third Party Payments - Voluntary Associations,13/03/2019,5191302,780.00,Rainbow Splash Day Nursery
Childrens Services,Education Services,Early Years,3&4 Year old PVI�s,Third Party Payments - Voluntary Associations,13/03/2019,5191303,"7,074.00",Rainbow Splash Day Nursery
Childrens Services,Children's Social Care,Family Support Services,IPST S17 NRPF,Childrens Act Section 17 - Food Grants,13/03/2019,5191335,"1,914.00",BETHNAL GREEN SOCIAL SERVICES
Childrens Services,Children's Social Care,Children Looked After,S23 Fam Pl In-Hse-S/Term F/C,Childrens Act Section 23 - All Contact Expenses,13/03/2019,5192349,260.94,Healthcare and Transport Services Group Ltd
Childrens Services,Children's Social Care,Children Looked After,S23 Fam Pl In-Hse-S/Term F/C,Childrens Act Section 23 - All Contact Expenses,13/03/2019,5192352,320.00,Healthcare and Transport Services Group Ltd
Childrens Services,Children's Social Care,Children Looked After,S23 Fam Pl P&V-F/Care,Childrens Act Section 23 - Placement Fee,13/03/2019,5192417,784.00,Swiis Foster Care Limited
Childrens Services,Children's Social Care,Support Service and Management Costs,Building Cleaning,Repairs and Maintenance - Responsive - General,13/03/2019,5192512,434.00,Cleaning Machine Repairs
Childrens Services,Children's Social Care,Support Service and Management Costs,Building Cleaning,Repairs and Maintenance - Responsive - General,13/03/2019,5192513,524.80,Cleaning Machine Repairs
Childrens Services,Children's Social Care,Support Service and Management Costs,Building Cleaning,Repairs and Maintenance - Responsive - General,13/03/2019,5192514,259.44,Cleaning Machine Repairs
Childrens Services,Children's Social Care,Support Service and Management Costs,Building Cleaning,Repairs and Maintenance - Responsive - General,13/03/2019,5192515,579.74,Cleaning Machine Repairs
Childrens Services,Cultural and Related Services,Open Spaces,Parks & Open Spaces Man&Admin,Repairs and Maintenance - Responsive - Repair & Maintenance,15/03/2019,5165799,"3,210.00",JC Coster (Metalworks) Ltd
Childrens Services,Adult Social Care,Support Service and Management Costs,Org Development L&D Training,Social Care - Drugs/Alcohol Dual Dia,15/03/2019,5173342,875.00,Talking Life
Childrens Services,Adult Social Care,Support Service and Management Costs,Org Development L&D Training,Social Care - Drugs/Alcohol Dual Dia,15/03/2019,5177084,595.00,Talking Life
Childrens Services,Cultural and Related Services,Recreation & Sport,"Poplar Baths		",Payments to Private Contractors - Other Contractors,15/03/2019,5181177,"134,250.13",Folera Ltd
Childrens Services,No Service Specified,No Division Specified,Capital-Minor Works (SC),Other External Fees - Other External Fees,15/03/2019,5181190,"3,600.00",Architype
Childrens Services,Cultural and Related Services,Culture & Heritage,Filming,Repairs and Maintenance - Responsive - Non Store Items,15/03/2019,5181194,"22,640.00",Comfort Zone
Childrens Services,Education Services,Management and Support Services,Learning & Achievm't M&A GF,Services - Professional Fees - Consultants Fees,15/03/2019,5181536,"2,200.00",VSC PLUS LTD
Childrens Services,Children's Social Care,Children Looked After,S23-Other-Semi-Ind. Unit,Childrens Act Section 23 - Placement Fee,15/03/2019,5184052,"2,172.94",Aegis Home Ltd
Childrens Services,Cultural and Related Services,Recreation & Sport,Recreational Services Central,Payments to Private Contractors - Private Contractor,15/03/2019,5184063,"53,380.34",Mulberry Academy Shoreditch
Childrens Services,Children's Social Care,Support Service and Management Costs,Sch. Meals A/c - Central Production Unit,Kitchen Supplies - Catering Equipment,15/03/2019,5184072,"2,461.00",BGL RIEBER LTD
Childrens Services,Education Services,Other Strategic Functions,Special Education Needs DSG,Third Party Payments - Payments to Schools,15/03/2019,5184092,"3,900.00",National Teaching And Advisory Service
Childrens Services,Education Services,Other Strategic Functions,Parents Advice Centre,Office Furniture/Equipment,15/03/2019,5184098,485.00,Unique Office Solutions
Childrens Services,Children's Social Care,Support Service and Management Costs,Welfare Catering,Kitchen Supplies - Food and Beverages,15/03/2019,5184106,697.91,Thomas Ridley & Son Ltd
Childrens Services,Children's Social Care,Support Service and Management Costs,"Mulberry Caf�		",Kitchen Supplies - Food and Beverages,15/03/2019,5184107,633.16,Thomas Ridley & Son Ltd
Childrens Services,Children's Social Care,Support Service and Management Costs,Sch. Meals A/c - Bow School,Kitchen Supplies - Food and Beverages,15/03/2019,5184398,"1,004.40",Tiffin Sandwiches
Childrens Services,Children's Social Care,Support Service and Management Costs,Sch. Meals A/c - C.F.S. Upper (Harley Grove),Catering - Hospitality,15/03/2019,5184399,729.00,Tiffin Sandwiches
Childrens Services,Children's Social Care,Support Service and Management Costs,Sch. Meals A/c - Morpeth,Kitchen Supplies - Food and Beverages,15/03/2019,5184400,"1,245.87",Tiffin Sandwiches
Childrens Services,Children's Social Care,Support Service and Management Costs,Sch. Meals A/c - Raines Foundation,Kitchen Supplies - Food and Beverages,15/03/2019,5184401,268.92,Tiffin Sandwiches
Childrens Services,Children's Social Care,Support Service and Management Costs,Sch. Meals A/c - St. Paul's Way Comm. Trust,Kitchen Supplies - Food and Beverages,15/03/2019,5184402,513.54,Tiffin Sandwiches
Childrens Services,Children's Social Care,Support Service and Management Costs,Sch. Meals A/c - Stepney Green,Kitchen Supplies - Food and Beverages,15/03/2019,5184403,283.50,Tiffin Sandwiches
Childrens Services,Children's Social Care,Support Service and Management Costs,"Mulberry Caf�		",Kitchen Supplies - Food and Beverages,15/03/2019,5184404,391.12,Tiffin Sandwiches
Childrens Services,Children's Social Care,Children Looked After,S23 Fam Pl P&V-F/Care,Childrens Act Section 23 - Placement Fee,15/03/2019,5184468,"3,500.00",Ryancare Fostering Ltd
Childrens Services,Children's Social Care,Children's and Young People's Safety,Child Protect Reviewing Serv.,Meeting Expenses,15/03/2019,5184761,"3,300.00",The Change Agency
Childrens Services,Children's Social Care,Children's and Young People's Safety,Child Protect Reviewing Serv.,Meeting Expenses,15/03/2019,5184762,550.00,The Change Agency
Childrens Services,Cultural and Related Services,Open Spaces,Victoria Park,Repairs and Maintenance - Responsive - Repair & Maintenance,15/03/2019,5184844,"9,375.30",Rigby Taylor Ltd
Childrens Services,Children's Social Care,Children Looked After,S23 Fam Pl Fost/Adop Advert,Subscriptions - Associations,15/03/2019,5184862,"1,555.00",Docklands Sailing & Watersports Centre
Childrens Services,Children's Social Care,Children Looked After,S23 Fam Pl P&V-F/Care,Childrens Act Section 23 - All Contact Expenses,15/03/2019,5184881,365.50,Malayikah Ltd
Childrens Services,Children's Social Care,Support Service and Management Costs,Welfare Catering,Kitchen Supplies - Food and Beverages,15/03/2019,5186276,292.13,Apetito LTD
Childrens Services,Children's Social Care,Children Looked After,S23-Resi-P&V/OLA-Child Home,Childrens Act Section 23 - Placement Fee,15/03/2019,5187059,"16,565.00",Castle Homes Care Ltd
Childrens Services,Children's Social Care,Children Looked After,Virtual School PPG,Education & Training - Non Staff Tuition Fees,15/03/2019,5187116,500.00,Anchor Teaching Ltd
Childrens Services,Children's Social Care,Children Looked After,S23-Other-Semi-Ind. Unit,Childrens Act Section 23 - Placement Fee,15/03/2019,5187120,"4,380.00",Youth reality homes
Childrens Services,Children's Social Care,Children Looked After,S23-Other-Semi-Ind. Unit,Childrens Act Section 23 - Placement Fee,15/03/2019,5187121,924.63,Youth reality homes
Childrens Services,Children's Social Care,Children Looked After,S23-Other-Semi-Ind. Unit,Childrens Act Section 23 - Placement Fee,15/03/2019,5187122,"4,400.00",Youth reality homes
Childrens Services,Children's Social Care,Children Looked After,Leaving Care-UASC,Leaving Care Financial Assistance - Supp Accom/Hous Rents,15/03/2019,5187123,428.50,Youth reality homes
Childrens Services,Children's Social Care,Children Looked After,Leaving Care-UASC,Leaving Care Financial Assistance - Supported Living,15/03/2019,5187123,"1,199.80",Youth reality homes
Childrens Services,Children's Social Care,Children Looked After,LCS/Allowances-Accom,Leaving Care Financial Assistance - Supp Accom/Hous Rents,15/03/2019,5187124,968.00,Youth reality homes
Childrens Services,Children's Social Care,Children Looked After,LCS/Allowances-Accom,Leaving Care Financial Assistance - Supported Living,15/03/2019,5187124,"2,132.00",Youth reality homes
Childrens Services,Children's Social Care,Children Looked After,S23-Other-Supported Lodgings,Childrens Act Section 23 - Placement Fee,15/03/2019,5187125,"18,380.00",Youth reality homes
Childrens Services,Children's Social Care,Children Looked After,S23-Other-Semi-Ind. Unit,Childrens Act Section 23 - Placement Fee,15/03/2019,5187126,"5,000.00",Youth reality homes
Childrens Services,Children's Social Care,Children Looked After,S23-Other-Semi-Ind. Unit,Childrens Act Section 23 - Placement Fee,15/03/2019,5187127,"5,180.00",Youth reality homes
Childrens Services,Cultural and Related Services,Recreation & Sport,GLL Sports Centres,Payments to Private Contractors - Minor Works,15/03/2019,5187159,"1,670.56",Physical Company Ltd
Childrens Services,Education Services,Early Years,Meath Gardens CC,Educational/Training Supplies - Resources,15/03/2019,5187960,851.90,WRS Group t/a Health Edco & Childbirth Graphics
Childrens Services,Children's Social Care,Children Looked After,S23-Other-Mother & Baby Unit,Childrens Act Section 23 - Medical Expenses,15/03/2019,5189296,257.08,E4 Law Limited T/A Lextox
Childrens Services,Children's Social Care,Services for young people,Outdoor,Educational/Training Supplies - Curriculum Visits/Activities,15/03/2019,5189337,966.00,Award Scheme LTD
Childrens Services,Education Services,Other Strategic Functions,Health through Education,Services - Professional Fees - Design Fees,15/03/2019,5189339,"1,900.00",Redacted Section 40 FOI Act
Childrens Services,Children's Social Care,Children Looked After,S23 Fam Pl P&V-F/Care,Childrens Act Section 23 - Non-Contact Taxi Costs,15/03/2019,5190246,"2,364.00",Healthcare and Transport Services Group Ltd
Childrens Services,Children's Social Care,Children Looked After,S23 Fam Pl P&V-F/Care,Childrens Act Section 23 - Non-Contact Taxi Costs,15/03/2019,5190248,"1,950.00",Healthcare and Transport Services Group Ltd
Childrens Services,Children's Social Care,Children Looked After,S23 Fam Pl P&V-F/Care,Childrens Act Section 23 - Placement Fee,15/03/2019,5190684,"2,968.00",Greater London Fostering LTD
Childrens Services,Education Services,Early Years,Around Poplar CC,Educational/Training Supplies - Resources,15/03/2019,5190704,285.00,Living Eggs Herts
Childrens Services,Children's Social Care,Children Looked After,S23-Other-Mother & Baby Unit,Childrens Act Section 23 - Commissioned Services,15/03/2019,5191055,"2,500.00",OneOneCoCo
Childrens Services,Children's Social Care,Children Looked After,Virtual School PPG,Education & Training - Non Staff Tuition Fees,15/03/2019,5191064,500.00,Anchor Teaching Ltd
Childrens Services,Children's Social Care,Children Looked After,Virtual School PPG,Agency Staff - Associations,15/03/2019,5191163,757.35,Academics ltd
Childrens Services,Children's Social Care,Children Looked After,Virtual School PPG,Agency Staff - Associations,15/03/2019,5191164,757.35,Academics ltd
Childrens Services,Children's Social Care,Children Looked After,Virtual School PPG,Agency Staff - Associations,15/03/2019,5191165,757.35,Academics ltd
Childrens Services,Children's Social Care,Children Looked After,Virtual School PPG,Agency Staff - Associations,15/03/2019,5191167,"1,009.80",Academics ltd
Childrens Services,Children's Social Care,Children Looked After,Virtual School PPG,Agency Staff - Associations,15/03/2019,5191168,"1,262.25",Academics ltd
Childrens Services,Children's Social Care,Children Looked After,Virtual School PPG,Agency Staff - Associations,15/03/2019,5191169,252.45,Academics ltd
Childrens Services,Children's Social Care,Children Looked After,LCS/Allowances-Accom,Leaving Care Financial Assistance - Supp Accom/Hous Rents,15/03/2019,5192362,"2,590.71",Transforming Lives Co
Childrens Services,Children's Social Care,Children Looked After,LCS/Allowances-Accom,Leaving Care Financial Assistance - Supported Living,15/03/2019,5192362,"5,017.57",Transforming Lives Co
Childrens Services,Education Services,Early Years,Around Poplar CC,Educational/Training Supplies - Arts & Crafts,15/03/2019,5192448,818.30,Eduzone Ltd
Childrens Services,Children's Social Care,Children Looked After,S23 Fam Pl P&V-F/Care,Childrens Act Section 23 - Placement Fee,15/03/2019,5192450,"3,072.16",CAPSTONE FOSTER CARE (SE) LTD
Childrens Services,Education Services,Other Strategic Functions,High Needs FE Colleges,Third Party Payments - Payments to Schools,15/03/2019,5192466,"6,066.58",The Complete Works Ltd
Childrens Services,Education Services,Other Strategic Functions,High Needs Other Boroughs,Third Party Payments - Payments to Schools,15/03/2019,5192505,"5,838.00",LONDON BOROUGH OF ISLINGTON
Childrens Services,Education Services,Other Strategic Functions,High Needs Other Boroughs,Third Party Payments - Payments to Schools,15/03/2019,5192506,"47,016.00",LONDON BOROUGH OF ISLINGTON
Childrens Services,Education Services,Other Strategic Functions,High Needs Other Boroughs,Third Party Payments - Payments to Schools,15/03/2019,5192507,"10,853.00",LONDON BOROUGH OF ISLINGTON
Childrens Services,Education Services,Other Strategic Functions,Special Education Needs DSG,Third Party Payments - Payments to Schools,15/03/2019,5192509,"6,216.00",Parayhouse School
Childrens Services,Education Services,Other Strategic Functions,Special Education Needs DSG,Third Party Payments - Payments to Schools,15/03/2019,5192510,"6,216.00",Parayhouse School
Childrens Services,Education Services,Other Strategic Functions,Special Education Needs DSG,Third Party Payments - Payments to Schools,15/03/2019,5192511,"6,216.00",Parayhouse School
Childrens Services,Children's Social Care,Children Looked After,S23-Other-Mother & Baby Unit,Childrens Act Section 23 - Commissioned Services,15/03/2019,5193095,"1,170.00",Tamba Day Nursery
Childrens Services,Children's Social Care,Family Support Services,CNN Pool: Joint Family Support,Childrens Act Section 23 - Equipment,15/03/2019,5193829,461.84,Sidhil LTD
Childrens Services,Children's Social Care,Family Support Services,CNN Pool: Joint Family Support,Social Care - Homecare,15/03/2019,5193861,324.00,Medstar Domiciliary Care Servies Ltd
Childrens Services,Children's Social Care,Support Service and Management Costs,Building Cleaning,Materials - Cleaning Materials,15/03/2019,5193873,"1,371.73",The Maintenance Supply Co Ltd
Childrens Services,Children's Social Care,Support Service and Management Costs,Sch. Meals A/c - Langdon Park,Kitchen Supplies - Food and Beverages,15/03/2019,5193923,259.30,Bewley's Tea & Coffee UK Ltd
Childrens Services,Cultural and Related Services,Recreation & Sport,Sports Development,Recreational Activities,15/03/2019,5193950,360.00,St Hilda's East Community Centre
Childrens Services,Children's Social Care,Service Strategy,FSP Sect 17 - Team 4,Childrens Act Section 17 - Other Placements Bed & Breakfast,15/03/2019,5193961,"2,380.00",Finefair Management
Childrens Services,Adult Social Care,Support Service and Management Costs,Org Development L&D Training,Third Party Payments - Voluntary Associations,15/03/2019,5193999,288.00,Osmani Trust
Childrens Services,Children's Social Care,Children Looked After,Permanancy & Fostering Team,Third Party Payments - Voluntary Associations,15/03/2019,5194000,480.00,Osmani Trust
Childrens Services,Education Services,Management and Support Services,Learning & Achievm't M&A GF,Services - Professional Fees - Legal Fees/Expenses,15/03/2019,5194083,350.00,UNIONLINE
Childrens Services,Children's Social Care,Children Looked After,S23 Fam Pl In-Hse-S/Term F/C,Childrens Act Section 23 - Commissioned Services,15/03/2019,5194165,"1,992.50",Child in Time Ltd
Childrens Services,Education Services,Other Strategic Functions,CSF-Equalities Tracking & Dev,Third Party Payments - Payments to Schools,15/03/2019,5194291,300.00,STEBON SCHOOL
Childrens Services,Children's Social Care,Children Looked After,S23 Fam Pl P&V-F/Care,Childrens Act Section 23 - Placement Fee,15/03/2019,5194301,"1,219.74",Southern Housing Group
Childrens Services,Children's Social Care,Family Support Services,CNN Pool: Children Direct Paym,Social Care - Direct Payments,15/03/2019,5194307,"2,725.25",DH TOWER HAMLETS
Childrens Services,Education Services,Other Strategic Functions,Central Pupil Database Project,Education & Training - Non Staff Tuition Fees,18/03/2019,5180268,"3,100.05",1Spatial Group Ltd
Childrens Services,Children's Social Care,Youth Justice,Partnerships,Communications,18/03/2019,5181462,597.00,Ignite Service Provider Ltd
Childrens Services,Education Services,Early Years,Wapping CC,Stationery,18/03/2019,5181479,250.86,Office Depot (Catalogue)
Childrens Services,Education Services,Early Years,SSEYCG Workforce Dev't,Education & Training - Non Staff Tuition Fees,18/03/2019,5181526,"3,250.00",Redacted Section 40 FOI Act
Childrens Services,Children's Social Care,Children Looked After,S23 Fam Pl P&V-F/Care,Childrens Act Section 23 - Placement Fee,18/03/2019,5181604,"4,751.80",Quality Foster Care Ltd
Childrens Services,Children's Social Care,Children Looked After,Leaving Care-UASC,Leaving Care Financial Assistance - Supp Accom/Hous Rents,18/03/2019,5181645,"1,000.00",Pangea Support Services
Childrens Services,Children's Social Care,Support Service and Management Costs,Professional Dev Centre,Stationery,18/03/2019,5181665,389.40,Office Depot (Catalogue)
Childrens Services,Children's Social Care,Children Looked After,S23 Fam Pl P&V-F/Care,Childrens Act Section 23 - Placement Fee,18/03/2019,5184058,850.00,Qalb Fostering Agency Ltd
Childrens Services,Children's Social Care,Children Looked After,S23 Fam Pl P&V-F/Care,Childrens Act Section 23 - Placement Fee,18/03/2019,5184059,950.00,Qalb Fostering Agency Ltd
Childrens Services,Children's Social Care,Children Looked After,S23 Fam Pl P&V-F/Care,Childrens Act Section 23 - Placement Fee,18/03/2019,5184060,950.00,Qalb Fostering Agency Ltd
Childrens Services,Children's Social Care,Children Looked After,S23 Fam Pl P&V-F/Care,Childrens Act Section 23 - Placement Fee,18/03/2019,5184061,"1,400.00",Qalb Fostering Agency Ltd
Childrens Services,Children's Social Care,Support Service and Management Costs,Welfare Catering,Kitchen Supplies - Food and Beverages,18/03/2019,5184109,647.05,Thomas Ridley & Son Ltd
Childrens Services,Cultural and Related Services,Culture & Heritage,Arts-Park Events,Events & Exhibition Supplies,18/03/2019,5186052,"3,665.86",PPL PRS Ltd
Childrens Services,Education Services,Other Strategic Functions,Music Trading Account,Educational/Training Supplies - Arts & Crafts,18/03/2019,5186085,775.00,Bow Strings
Childrens Services,Education Services,Other Strategic Functions,High Needs Academies & Free Schs,Third Party Payments - Payments to Schools,18/03/2019,5186154,"2,819.52",Capital City College Group
Childrens Services,Education Services,Other Strategic Functions,High Needs Academies & Free Schs,Third Party Payments - Payments to Schools,18/03/2019,5186155,"3,318.25",Capital City College Group
Childrens Services,Cultural and Related Services,Culture & Heritage,Arts-Park Events,Events & Exhibition Supplies,18/03/2019,5186292,649.10,Specialist Computer Centres PLC
Childrens Services,Cultural and Related Services,Open Spaces,Mile End Park,Computing - Purchase of Software,18/03/2019,5186293,"2,411.85",Specialist Computer Centres PLC
Childrens Services,Education Services,Other Strategic Functions,Schools Library,Books - General Purchases,18/03/2019,5187977,"4,450.00",ARTEFACTS TO ORDER
Childrens Services,Children's Social Care,Services for young people,Outdoor,Educational/Training Supplies - Curriculum Visits/Activities,18/03/2019,5189338,966.00,Award Scheme LTD
Childrens Services,Children's Social Care,Children Looked After,Leaving Care-UASC,Leaving Care Financial Assistance - Supp Accom/Hous Rents,18/03/2019,5189512,"1,000.00",Pangea Support Services
Childrens Services,Education Services,Other Strategic Functions,SEN External Travel,Non Staff Transport Costs - Reimbursement,18/03/2019,5191027,"142,003.00",Lindel Services LTD - T/A Fox Transport
Childrens Services,Children's Social Care,Children Looked After,Virtual School PPG,Agency Staff - Associations,18/03/2019,5191162,"1,262.25",Academics ltd
Childrens Services,Children's Social Care,Children Looked After,Virtual School PPG,Agency Staff - Associations,18/03/2019,5191166,"1,009.80",Academics ltd
Childrens Services,Children's Social Care,Children Looked After,Virtual School PPG,Agency Staff - Associations,18/03/2019,5192468,"1,262.25",Academics ltd
Childrens Services,Children's Social Care,Children Looked After,Virtual School PPG,Subscriptions - Associations,18/03/2019,5192469,252.45,Academics ltd
Childrens Services,Children's Social Care,Children Looked After,Virtual School PPG,Agency Staff - Associations,18/03/2019,5192470,757.35,Academics ltd
Childrens Services,Children's Social Care,Children Looked After,Virtual School PPG,Agency Staff - Associations,18/03/2019,5192471,"1,262.25",Academics ltd
Childrens Services,Children's Social Care,Children Looked After,Virtual School PPG,Agency Staff - Associations,18/03/2019,5192472,"1,009.80",Academics ltd
Childrens Services,Children's Social Care,Children Looked After,Virtual School PPG,Agency Staff - Associations,18/03/2019,5192477,757.35,Academics ltd
Childrens Services,Education Services,Other Strategic Functions,Special Education Needs DSG,Third Party Payments - Payments to Schools,18/03/2019,5194171,"14,690.00",Hesley Group Limited
Childrens Services,Children's Social Care,Children Looked After,S23-Resi-P&V/OLA-Boarding Sch,Childrens Act Section 23 - Placement Fee,18/03/2019,5194171,"14,690.00",Hesley Group Limited
Childrens Services,Education Services,Services to Young People and Other Community Learners,Holiday Childcare,Education & Training - Non Staff Tuition Fees,18/03/2019,5194415,750.00,Green Candle Dance Company
Childrens Services,Children's Social Care,Children's and Young People's Safety,Community Safeguarding,Meeting Expenses,18/03/2019,5194420,332.40,Osmani Trust
Childrens Services,Education Services,Early Years,Isle of Dogs. CC,Room Hire,18/03/2019,5194489,"1,375.00",St Luke's Mission Initiative
Childrens Services,Education Services,Other Strategic Functions,Central Pupil Database Project,Services - Professional Fees - Consultants Fees,20/03/2019,5174625,450.00,Serverlec Synergy Ltd
Childrens Services,Children's Social Care,Children Looked After,Leaving Care-UASC,Leaving Care Financial Assistance - Grant Pay Special Needs,20/03/2019,5175063,262.15,Pangea Support Services
Childrens Services,Children's Social Care,Children Looked After,Leaving Care-UASC,Leaving Care Financial Assistance - Grant Pay Special Needs,20/03/2019,5179097,298.20,Pangea Support Services
Childrens Services,Education Services,Early Years,Isle of Dogs. CC,Services - Professional Fees - Consultants Fees,20/03/2019,5180251,"1,200.00",Chamberlain Consulting LLP
Childrens Services,Education Services,Other Strategic Functions,Central Pupil Database Project,Services - Professional Fees - Consultants Fees,20/03/2019,5181187,"10,500.00",Serverlec Synergy Ltd
Childrens Services,Children's Social Care,Children Looked After,Leaving Care-UASC,Leaving Care Financial Assistance - Supp Accom/Hous Rents,20/03/2019,5181614,"1,107.14",Pangea Support Services
Childrens Services,Children's Social Care,Children Looked After,Leaving Care-UASC,Leaving Care Financial Assistance - Reg Plan Maint L-Allow,20/03/2019,5181615,256.86,Pangea Support Services
Childrens Services,Children's Social Care,Children Looked After,Leaving Care-UASC,Leaving Care Financial Assistance - Supp Accom/Hous Rents,20/03/2019,5181615,"4,406.43",Pangea Support Services
Childrens Services,Children's Social Care,Children Looked After,Leaving Care-UASC,Leaving Care Financial Assistance - Reg Plan Maint Travel A,20/03/2019,5181617,256.86,Pangea Support Services
Childrens Services,Children's Social Care,Children Looked After,Leaving Care-UASC,Leaving Care Financial Assistance - Supp Accom/Hous Rents,20/03/2019,5181617,"1,107.14",Pangea Support Services
Childrens Services,Children's Social Care,Children Looked After,Leaving Care-UASC,Leaving Care Financial Assistance - Supp Accom/Hous Rents,20/03/2019,5181618,"1,107.14",Pangea Support Services
Childrens Services,Children's Social Care,Children Looked After,Leaving Care-UASC,Leaving Care Financial Assistance - Reg Plan Maint L-Allow,20/03/2019,5181619,256.86,Pangea Support Services
Childrens Services,Children's Social Care,Children Looked After,Leaving Care-UASC,Leaving Care Financial Assistance - Supp Accom/Hous Rents,20/03/2019,5181619,"1,107.14",Pangea Support Services
Childrens Services,Children's Social Care,Children Looked After,Leaving Care-UASC,Leaving Care Financial Assistance - Reg Plan Maint Travel A,20/03/2019,5181631,256.86,Pangea Support Services
Childrens Services,Children's Social Care,Children Looked After,Leaving Care-UASC,Leaving Care Financial Assistance - Supp Accom/Hous Rents,20/03/2019,5181631,"1,107.14",Pangea Support Services
Childrens Services,Children's Social Care,Children Looked After,Leaving Care-UASC,Leaving Care Financial Assistance - Reg Plan Maint L-Allow,20/03/2019,5181646,256.86,Pangea Support Services
Childrens Services,Children's Social Care,Children Looked After,Leaving Care-UASC,Leaving Care Financial Assistance - Supp Accom/Hous Rents,20/03/2019,5181646,"1,107.14",Pangea Support Services
Childrens Services,Children's Social Care,Children Looked After,Leaving Care-UASC,Leaving Care Financial Assistance - Reg Plan Maint L-Allow,20/03/2019,5181648,256.86,Pangea Support Services
Childrens Services,Children's Social Care,Children Looked After,Leaving Care-UASC,Leaving Care Financial Assistance - Supp Accom/Hous Rents,20/03/2019,5181648,"1,107.14",Pangea Support Services
Childrens Services,Children's Social Care,Children Looked After,LCS/Allowances-Accom,Leaving Care Financial Assistance - Supported Living,20/03/2019,5181649,"4,849.29",Pangea Support Services
Childrens Services,Children's Social Care,Children Looked After,Leaving Care-UASC,Leaving Care Financial Assistance - Supp Accom/Hous Rents,20/03/2019,5181650,"1,107.14",Pangea Support Services
Childrens Services,Children's Social Care,Children Looked After,Leaving Care-UASC,Leaving Care Financial Assistance - Supp Accom/Hous Rents,20/03/2019,5181651,"1,107.14",Pangea Support Services
Childrens Services,Education Services,Other Strategic Functions,Special Education Needs DSG,Third Party Payments - Payments to Schools,20/03/2019,5183308,"14,427.13",Woodcroft School Ltd
Childrens Services,Cultural and Related Services,Open Spaces,Parks & Open Spaces Man&Admin,Repairs and Maintenance - Responsive - Buildings,20/03/2019,5183312,410.00,JC Coster (Metalworks) Ltd
Childrens Services,Cultural and Related Services,Open Spaces,Mile End Park,Repairs and Maintenance - Responsive - Buildings,20/03/2019,5183313,540.00,JC Coster (Metalworks) Ltd
Childrens Services,Children's Social Care,Children Looked After,S23 Fam Pl P&V-F/Care,Childrens Act Section 23 - Placement Fee,20/03/2019,5183409,750.00,Fostering Innovations Ltd
Childrens Services,Children's Social Care,Children Looked After,S23 Fam Pl P&V-F/Care,Childrens Act Section 23 - Placement Fee,20/03/2019,5183410,"4,200.00",Fostering Innovations Ltd
Childrens Services,Children's Social Care,Children Looked After,Leaving Care-UASC,Leaving Care Financial Assistance - Grant Pay Special Needs,20/03/2019,5183418,327.46,Pangea Support Services
Childrens Services,Cultural and Related Services,Open Spaces,Mile End Park,Repairs and Maintenance - Responsive - Repair & Maintenance,20/03/2019,5183960,"1,250.00",JC Coster (Metalworks) Ltd
Childrens Services,Education Services,Other Strategic Functions,Special Education Needs GF,Services - Professional Fees - Consultants Fees,20/03/2019,5184040,"9,200.00",Chrow Solutions Ltd
Childrens Services,Children's Social Care,Support Service and Management Costs,Schools Catering,Kitchen Supplies - Food and Beverages,20/03/2019,5184111,"1,054.69",Thomas Ridley & Son Ltd
Childrens Services,Children's Social Care,Children Looked After,S23-Other-Semi-Ind. Unit,Childrens Act Section 23 - Placement Fee,20/03/2019,5184716,"3,240.00",Explore Independence Ltd
Childrens Services,Children's Social Care,Children Looked After,S23-Other-Semi-Ind. Unit,Childrens Act Section 23 - Placement Fee,20/03/2019,5184717,340.00,Explore Independence Ltd
Childrens Services,Children's Social Care,Support Service and Management Costs,Welfare Catering,Kitchen Supplies - Food and Beverages,20/03/2019,5184818,352.27,William White Meats Ltd
Childrens Services,Children's Social Care,Support Service and Management Costs,Schools Catering,Kitchen Supplies - Food and Beverages,20/03/2019,5184820,619.92,William White Meats Ltd
Childrens Services,Adult Social Care,Support Service and Management Costs,Org Development L&D Training,Training Expenses - Staff External Training (UK Based),20/03/2019,5184850,"1,630.00",Huntersjoy Ltd
Childrens Services,Children's Social Care,Children Looked After,S23-Other-Semi-Ind. Unit,Childrens Act Section 23 - Placement Fee,20/03/2019,5184877,"3,600.00",Explore Independence Ltd
Childrens Services,Children's Social Care,Children Looked After,S23-Other-Semi-Ind. Unit,Childrens Act Section 23 - Placement Fee,20/03/2019,5184878,272.00,Explore Independence Ltd
Childrens Services,Children's Social Care,Family Support Services,Eva Armsby Family Centre,Fixtures and Fittings - Purchases - General,20/03/2019,5185978,786.00,C Abbott Ltd
Childrens Services,Education Services,Other Strategic Functions,Information & Support Services,Meeting Expenses,20/03/2019,5185980,343.63,the royal foundation of st katharine
Childrens Services,Education Services,Other Strategic Functions,Alternative Provision,Third Party Payments - Other Colleges,20/03/2019,5185988,"264,488.00",New City College
Childrens Services,Education Services,Other Strategic Functions,Special Education Needs DSG,Third Party Payments - Payments to Schools,20/03/2019,5186027,"4,022.83",UK Behaviour Analysis & Research Group CIC
Childrens Services,Education Services,Other Strategic Functions,Music Trading Account,Payments to Private Contractors - General Contractors,20/03/2019,5186048,"4,000.00",ACFEA
Childrens Services,Education Services,Early Years,Collingwood,Educational/Training Supplies - Resources,20/03/2019,5186162,805.00,COMMUNITY PRODUCTS (UK) LTD
Childrens Services,Children's Social Care,Children Looked After,LCS/Allowances-Accom,Leaving Care Financial Assistance - Supp Accom/Hous Rents,20/03/2019,5186265,"1,162.86",Explore Independence Ltd
Childrens Services,Children's Social Care,Children Looked After,LCS/Allowances-Accom,Leaving Care Financial Assistance - Supported Living,20/03/2019,5186265,471.43,Explore Independence Ltd
Childrens Services,Children's Social Care,Children Looked After,LCS/Allowances-Accom,Leaving Care Financial Assistance - Supp Accom/Hous Rents,20/03/2019,5186266,"2,960.00",Explore Independence Ltd
Childrens Services,Children's Social Care,Children Looked After,LCS/Allowances-Accom,Leaving Care Financial Assistance - Supported Living,20/03/2019,5186266,"1,200.00",Explore Independence Ltd
Childrens Services,Children's Social Care,Children Looked After,S23-Other-Mother & Baby Unit,Childrens Act Section 23 - Placement Fee,20/03/2019,5186279,"9,800.00",Resolve Care Limited
Childrens Services,Children's Social Care,Children Looked After,S23-Other-Mother & Baby Unit,Childrens Act Section 23 - Placement Fee,20/03/2019,5186280,"38,750.00",Resolve Care Limited
Childrens Services,Children's Social Care,Children Looked After,S23-Other-Mother & Baby Unit,Childrens Act Section 23 - Placement Fee,20/03/2019,5186281,"35,000.00",Resolve Care Limited
Childrens Services,Children's Social Care,Children Looked After,S23-Other-Mother & Baby Unit,Childrens Act Section 23 - Placement Fee,20/03/2019,5186282,"2,400.00",Resolve Care Limited
Childrens Services,Children's Social Care,Children Looked After,S23-Other-Mother & Baby Unit,Childrens Act Section 23 - Placement Fee,20/03/2019,5186284,"1,837.50",Resolve Care Limited
Childrens Services,Education Services,Early Years,Collingwood,Office Furniture/Equipment,20/03/2019,5186304,918.00,Unique Office Solutions
Childrens Services,Education Services,Early Years,Collingwood,Office Furniture/Equipment,20/03/2019,5186304,"1,148.00",Unique Office Solutions
Childrens Services,Education Services,Early Years,Collingwood,Office Furniture/Equipment,20/03/2019,5186305,"1,148.00",Unique Office Solutions
Childrens Services,Education Services,Early Years,Collingwood,Office Furniture/Equipment,20/03/2019,5186305,918.00,Unique Office Solutions
Childrens Services,Children's Social Care,Commissioning and Social Work,Advice & Assesment M & A,Office Furniture/Equipment,20/03/2019,5186306,710.99,Unique Office Solutions
Childrens Services,Children's Social Care,Commissioning and Social Work,Advice & Assesment M & A,Office Furniture/Equipment,20/03/2019,5186306,306.84,Unique Office Solutions
Childrens Services,Children's Social Care,Commissioning and Social Work,Advice & Assesment M & A,Office Furniture/Equipment,20/03/2019,5186306,485.00,Unique Office Solutions
Childrens Services,Children's Social Care,Commissioning and Social Work,Advice & Assesment M & A,Office Furniture/Equipment,20/03/2019,5186306,580.00,Unique Office Solutions
Childrens Services,Children's Social Care,Commissioning and Social Work,Advice & Assesment M & A,Office Furniture/Equipment,20/03/2019,5186306,"1,880.00",Unique Office Solutions
Childrens Services,Children's Social Care,Children Looked After,S23 Fam Pl P&V-F/Care,Childrens Act Section 23 - Placement Fee,20/03/2019,5186356,"4,854.43",London Borough of Waltham Forest
Childrens Services,Children's Social Care,Children Looked After,Staying Put,Childrens Act Section 23 - Placement Fee,20/03/2019,5186357,"18,589.37",London Borough of Waltham Forest
Childrens Services,Children's Social Care,Services for young people,Outdoor,Educational/Training Supplies - Curriculum Visits/Activities,20/03/2019,5187118,253.75,Rope & Marine services Ltd
Childrens Services,Education Services,Early Years,Wapping CC,Computing - Purchase of Hardware,20/03/2019,5187177,"1,202.10",Specialist Computer Centres PLC
Childrens Services,Education Services,Early Years,Children Centre Central Team,Computing - Purchase of Hardware,20/03/2019,5187178,"1,081.89",Specialist Computer Centres PLC
Childrens Services,Education Services,Early Years,Children Centre Central Team,Computing - Purchase of Hardware,20/03/2019,5187178,304.26,Specialist Computer Centres PLC
Childrens Services,Education Services,Early Years,Collingwood,Community Equipment  Supplies - Aids and Appliances,20/03/2019,5187626,253.00,ESPO
Childrens Services,Children's Social Care,Commissioning and Social Work,Advice and Assessment Section 17,Childrens Act Section 17 - Non-Contact Taxi Costs,20/03/2019,5189468,790.47,TKG LTD T/A The Keen Group
Childrens Services,Education Services,Other Strategic Functions,SLS Trading Account,Agency Staff - Operational Teachers,20/03/2019,5189506,"1,410.00",Academics ltd
Childrens Services,Children's Social Care,Children Looked After,Leaving Care-UASC,Leaving Care Financial Assistance - Reg Plan Maint L-Allow,20/03/2019,5189513,256.86,Pangea Support Services
Childrens Services,Children's Social Care,Children Looked After,Leaving Care-UASC,Leaving Care Financial Assistance - Supp Accom/Hous Rents,20/03/2019,5189513,"1,107.14",Pangea Support Services
Childrens Services,Children's Social Care,Children Looked After,Leaving Care-UASC,Leaving Care Financial Assistance - Reg Plan Maint L-Allow,20/03/2019,5189516,344.10,Pangea Support Services
Childrens Services,Children's Social Care,Children Looked After,Leaving Care-UASC,Leaving Care Financial Assistance - Supp Accom/Hous Rents,20/03/2019,5189516,"2,612.86",Pangea Support Services
Childrens Services,Cultural and Related Services,Open Spaces,Victoria Park,Repairs and Maintenance - Responsive - Repair & Maintenance,20/03/2019,5189572,360.92,Aps LTD
Childrens Services,Education Services,Other Strategic Functions,Music Trading Account,Third Party Payments - Voluntary Associations,20/03/2019,5191062,"2,000.00",Auto Italia South East
Childrens Services,Children's Social Care,Children Looked After,S23-Other-Semi-Ind. Unit,Childrens Act Section 23 - Non-Contact Trans/Travel Costs,20/03/2019,5192347,386.44,Healthcare and Transport Services Group Ltd
Childrens Services,Children's Social Care,Children Looked After,Virtual School PPG,Agency Staff - Associations,20/03/2019,5192473,"1,009.80",Academics ltd
Childrens Services,Children's Social Care,Children Looked After,Virtual School PPG,Agency Staff - Associations,20/03/2019,5192474,"1,262.25",Academics ltd
Childrens Services,Children's Social Care,Children Looked After,Virtual School PPG,Subscriptions - Associations,20/03/2019,5192475,252.45,Academics ltd
Childrens Services,Children's Social Care,Children Looked After,Virtual School PPG,Agency Staff - Associations,20/03/2019,5192476,757.35,Academics ltd
Childrens Services,Children's Social Care,Children Looked After,Virtual School PPG,Agency Staff - Associations,20/03/2019,5192478,"1,262.25",Academics ltd
Childrens Services,Children's Social Care,Children Looked After,Virtual School PPG,Agency Staff - Associations,20/03/2019,5192479,757.35,Academics ltd
Childrens Services,Children's Social Care,Children Looked After,Virtual School PPG,Agency Staff - Associations,20/03/2019,5192480,"1,262.25",Academics ltd
Childrens Services,Children's Social Care,Children Looked After,Virtual School PPG,Subscriptions - Associations,20/03/2019,5192481,504.90,Academics ltd
Childrens Services,Children's Social Care,Children Looked After,Virtual School PPG,Agency Staff - Associations,20/03/2019,5192482,757.35,Academics ltd
Childrens Services,Children's Social Care,Children Looked After,Virtual School PPG,Agency Staff - Associations,20/03/2019,5192483,757.35,Academics ltd
Childrens Services,Children's Social Care,Children Looked After,Virtual School PPG,Agency Staff - Associations,20/03/2019,5192484,"1,262.25",Academics ltd
Childrens Services,Children's Social Care,Children Looked After,Virtual School PPG,Agency Staff - Associations,20/03/2019,5192485,757.35,Academics ltd
Childrens Services,Children's Social Care,Children Looked After,Virtual School PPG,Agency Staff - Associations,20/03/2019,5192486,"1,009.80",Academics ltd
Childrens Services,Children's Social Care,Children Looked After,S23 Fam Pl In-Hse-S/Term F/C,Childrens Act Section 23 - Non-Contact Trans/Travel Costs,20/03/2019,5193839,"2,384.00",Healthcare and Transport Services Group Ltd
Childrens Services,Children's Social Care,Children's and Young People's Safety,FSP Sect 17 - Team 10,Childrens Act Section 17 - Expert Assessmt/Witness Costs,20/03/2019,5194116,267.00,E4 Law Limited T/A Lextox
Childrens Services,Education Services,Other Strategic Functions,BHLPS (Budget Holding Lead Professional Scheme),Non Staff Transport Costs - Client Transport Costs,20/03/2019,5194314,"1,080.00",Mile End Car Hire Limited
Childrens Services,Children's Social Care,Children Looked After,S23-Resi-P&V/OLA-Child Home,Childrens Act Section 23 - Non-Contact Trans/Travel Costs,20/03/2019,5194335,759.50,Healthcare and Transport Services Group Ltd
Childrens Services,Education Services,Early Years,Children Centre Central Team,Services - Professional Fees - Financial Services Fees,20/03/2019,5194343,"1,412.00",Motion Picture Licensing Company
Childrens Services,Education Services,Other Strategic Functions,High Needs FE Colleges,Third Party Payments - Payments to Schools,20/03/2019,5194344,"8,978.67",Care Trade Charitable Trust
Childrens Services,Education Services,Other Strategic Functions,High Needs FE Colleges,Third Party Payments - Payments to Schools,20/03/2019,5194345,"6,978.67",Care Trade Charitable Trust
Childrens Services,Children's Social Care,Services for young people,Youth Service Management,Catering - Hospitality,20/03/2019,5194364,"1,100.00",Shah One (Mint Caterers)
Childrens Services,Cultural and Related Services,Recreation & Sport,Football Development Programme,Recreational Activities,20/03/2019,5194393,616.00,Mindset FC
Childrens Services,Education Services,Other Strategic Functions,Special Education Needs DSG,Third Party Payments - Payments to Schools,20/03/2019,5194398,"16,263.93",Hesley Group Limited
Childrens Services,Children's Social Care,Children Looked After,S23-Resi-P&V/OLA-Boarding Sch,Childrens Act Section 23 - Placement Fee,20/03/2019,5194398,"16,263.93",Hesley Group Limited
Childrens Services,Education Services,Early Years,SSEYCG Two Year Old Pilot,Third Party Payments - Voluntary Associations,20/03/2019,5194514,"7,605.00",Allen Gardens Playgroup
Childrens Services,Education Services,Early Years,SSEYCG Two Year Old Pilot,Third Party Payments - Voluntary Associations,20/03/2019,5194515,"2,925.00",Avebury Playgroup
Childrens Services,Education Services,Early Years,SSEYCG Two Year Old Pilot,Third Party Payments - Voluntary Associations,20/03/2019,5194516,"9,360.00",SOMALI INTEGRATION TEAM
Childrens Services,Education Services,Early Years,SSEYCG Two Year Old Pilot,Third Party Payments - Voluntary Associations,20/03/2019,5194517,"1,170.00",EXCELLENCE CHRISTIAN SCHOOL
Childrens Services,Education Services,Early Years,SSEYCG Two Year Old Pilot,Third Party Payments - Voluntary Associations,20/03/2019,5194518,"18,720.00",Account 3 Ltd
Childrens Services,Education Services,Early Years,SSEYCG Two Year Old Pilot,Third Party Payments - Voluntary Associations,20/03/2019,5194519,"5,362.50",Iqra Preschool
Childrens Services,Education Services,Early Years,SSEYCG Two Year Old Pilot,Third Party Payments - Voluntary Associations,20/03/2019,5194520,"1,755.00",Precious Kids Day Nursery LTD
Childrens Services,Education Services,Early Years,SSEYCG Two Year Old Pilot,Third Party Payments - Voluntary Associations,20/03/2019,5194521,"2,340.00",Rainbow Angels Nurseries & Learning Centres Ltd
Childrens Services,Education Services,Early Years,SSEYCG Two Year Old Pilot,Third Party Payments - Voluntary Associations,20/03/2019,5194522,"8,482.50",Rainbow House
Childrens Services,Education Services,Early Years,SSEYCG Two Year Old Pilot,Third Party Payments - Voluntary Associations,20/03/2019,5194523,"2,535.00",Shining Futures Nursery
Childrens Services,Education Services,Early Years,SSEYCG Two Year Old Pilot,Third Party Payments - Voluntary Associations,20/03/2019,5194524,"12,382.50",TATE HOUSE PLAYGROUP
Childrens Services,Education Services,Early Years,SSEYCG Two Year Old Pilot,Third Party Payments - Voluntary Associations,20/03/2019,5194525,"12,480.00",WEAVERSFIELD COMMUNITY NURSERY
Childrens Services,Education Services,Early Years,SSEYCG Two Year Old Pilot,Third Party Payments - Voluntary Associations,20/03/2019,5194526,682.50,THE NURSERY QUEEN MARY UNIVERSITY LONDON
Childrens Services,Education Services,Early Years,SSEYCG Two Year Old Pilot,Third Party Payments - Voluntary Associations,20/03/2019,5194527,"4,485.00",ABERTOTS PLAY
Childrens Services,Education Services,Early Years,SSEYCG Two Year Old Pilot,Third Party Payments - Voluntary Associations,20/03/2019,5194528,585.00,BRAYFORD SQUARE PLAYGROUP
Childrens Services,Education Services,Early Years,SSEYCG Two Year Old Pilot,Third Party Payments - Voluntary Associations,20/03/2019,5194529,"5,850.00",Burdett Estate playgroup
Childrens Services,Education Services,Early Years,SSEYCG Two Year Old Pilot,Third Party Payments - Voluntary Associations,20/03/2019,5194530,"11,115.00",DATE PALM PRIMARY
Childrens Services,Education Services,Early Years,SSEYCG Two Year Old Pilot,Third Party Payments - Voluntary Associations,20/03/2019,5194531,"13,942.50",CITY GATEWAY
Childrens Services,Education Services,Early Years,SSEYCG Two Year Old Pilot,Third Party Payments - Voluntary Associations,20/03/2019,5194532,"8,775.00",GLOBAL KIDS DAY CARE
Childrens Services,Education Services,Early Years,SSEYCG Two Year Old Pilot,Third Party Payments - Voluntary Associations,20/03/2019,5194533,"12,675.00",GLOBAL KIDS DAY CARE
Childrens Services,Education Services,Early Years,SSEYCG Two Year Old Pilot,Third Party Payments - Voluntary Associations,20/03/2019,5194534,682.50,Headstart Nursery
Childrens Services,Education Services,Early Years,SSEYCG Two Year Old Pilot,Third Party Payments - Voluntary Associations,20/03/2019,5194535,"16,575.00",Iqra Pre School
Childrens Services,Education Services,Early Years,SSEYCG Two Year Old Pilot,Third Party Payments - Voluntary Associations,20/03/2019,5194536,"10,432.50",Jingle Jungle Nursery
Childrens Services,Education Services,Early Years,SSEYCG Two Year Old Pilot,Third Party Payments - Voluntary Associations,20/03/2019,5194537,"6,922.50",Kids Kingdom Nursery
Childrens Services,Education Services,Early Years,SSEYCG Two Year Old Pilot,Third Party Payments - Voluntary Associations,20/03/2019,5194538,"8,970.00",Limehouse Arches Day Nursery
Childrens Services,Education Services,Early Years,SSEYCG Two Year Old Pilot,Third Party Payments - Voluntary Associations,20/03/2019,5194539,"28,177.50",Lincoln Hall Playgroup
Childrens Services,Education Services,Early Years,SSEYCG Two Year Old Pilot,Third Party Payments - Voluntary Associations,20/03/2019,5194540,"10,822.50",Little Limehouse Preschool
Childrens Services,Education Services,Early Years,SSEYCG Two Year Old Pilot,Third Party Payments - Voluntary Associations,20/03/2019,5194541,"12,285.00",Little St Matthias Pre School
Childrens Services,Education Services,Early Years,SSEYCG Two Year Old Pilot,Third Party Payments - Voluntary Associations,20/03/2019,5194542,"1,755.00",MAGIC ROUNDABOUT NURSERIES LTD
Childrens Services,Education Services,Early Years,SSEYCG Two Year Old Pilot,Third Party Payments - Voluntary Associations,20/03/2019,5194543,"4,095.00",Matchbox Day Nursery Ltd
Childrens Services,Education Services,Early Years,SSEYCG Two Year Old Pilot,Third Party Payments - Voluntary Associations,20/03/2019,5194544,585.00,Poplar Play Centre
Childrens Services,Education Services,Early Years,SSEYCG Two Year Old Pilot,Third Party Payments - Voluntary Associations,20/03/2019,5194545,585.00,RANWELL PLAYGROUP
Childrens Services,Education Services,Early Years,SSEYCG Two Year Old Pilot,Third Party Payments - Voluntary Associations,20/03/2019,5194546,"5,947.50",Limehouse Arches Day Nursery
Childrens Services,Education Services,Early Years,SSEYCG Two Year Old Pilot,Third Party Payments - Voluntary Associations,20/03/2019,5194547,"4,777.50",New City College
Childrens Services,Education Services,Early Years,SSEYCG Two Year Old Pilot,Third Party Payments - Voluntary Associations,20/03/2019,5194548,"5,265.00",Tower Hamlets Opportunity Group
Childrens Services,Education Services,Early Years,SSEYCG Two Year Old Pilot,Third Party Payments - Voluntary Associations,20/03/2019,5194549,"9,945.00",VERNON PLAYGROUP
Childrens Services,Education Services,Early Years,SSEYCG Two Year Old Pilot,Third Party Payments - Voluntary Associations,20/03/2019,5194550,"7,605.00",WAPPING PLAYGROUP
Childrens Services,Education Services,Early Years,SSEYCG Two Year Old Pilot,Third Party Payments - Voluntary Associations,20/03/2019,5194551,"32,955.00",SELECT LEARNING LONDON LTD
Childrens Services,Education Services,Other Strategic Functions,SEN External Travel,Non Staff Transport Costs - Reimbursement,20/03/2019,5194552,"55,000.00",BOWDEN HOUSE SCHOOL
Childrens Services,Education Services,Other Strategic Functions,CS Prem Retirement (Non-School,Services - Professional Fees - Financial Services Fees,20/03/2019,5194554,"21,529.90",London Pensions Fund Authority
Childrens Services,Children's Social Care,Family Support Services,Short Breaks and Family Support,Third Party Payments - Voluntary Associations,20/03/2019,5194559,"23,644.50",Tower Project
Childrens Services,Education Services,Other Strategic Functions,High Needs Other Boroughs,Third Party Payments - Payments to Schools,20/03/2019,5194562,"3,975.88",City Of London Corporation
Childrens Services,Education Services,Other Strategic Functions,High Needs Other Boroughs,Third Party Payments - Payments to Schools,20/03/2019,5194563,"5,021.40",City Of London Corporation
Childrens Services,Education Services,Other Strategic Functions,High Needs Other Boroughs,Third Party Payments - Payments to Schools,20/03/2019,5194564,"2,913.11",City Of London Corporation
Childrens Services,Children's Social Care,Children Looked After,C.B.C & Fam.Prev/Support-Mgmnt,Third Party Payments - Other Agencies,20/03/2019,5194605,"45,593.00",TCS SERVICES LTD
Childrens Services,Children's Social Care,Services for young people,LAPS 1 - 8,Educational/Training Supplies - Curriculum Visits/Activities,20/03/2019,5194635,825.00,Shah One (Mint Caterers)
Childrens Services,Education Services,Other Strategic Functions,Music Trading Account,Education & Training - Non Staff Tuition Fees,20/03/2019,5194732,"6,750.00",Green Candle Dance Company
Childrens Services,Children's Social Care,Children Looked After,Leaving Care-UASC,Leaving Care Financial Assistance - Supp Accom/Hous Rents,20/03/2019,5194750,"4,406.43",Pangea Support Services
Childrens Services,Children's Social Care,Children Looked After,Leaving Care-UASC,Leaving Care Financial Assistance - Supp Accom/Hous Rents,20/03/2019,5194751,"4,264.29",Pangea Support Services
Childrens Services,Children's Social Care,Children Looked After,Leaving Care-UASC,Leaving Care Financial Assistance - Supp Accom/Hous Rents,20/03/2019,5194752,"4,406.43",Pangea Support Services
Childrens Services,Children's Social Care,Children Looked After,Leaving Care-UASC,Leaving Care Financial Assistance - Supp Accom/Hous Rents,20/03/2019,5194755,"2,558.57",Pangea Support Services
Childrens Services,Cultural and Related Services,Recreation & Sport,Sports Development,Recreational Activities,20/03/2019,5194790,770.00,Tower Hamlets Cycling Club
Childrens Services,Education Services,Other Strategic Functions,High Needs Other Boroughs,Third Party Payments - Payments to Schools,20/03/2019,5194793,"2,837.00",LONDON BOROUGH OF ISLINGTON
Childrens Services,Education Services,Other Strategic Functions,BHLPS (Budget Holding Lead Professional Scheme),Third Party Payments - Payments to Schools,20/03/2019,5194945,"3,000.00",St Matthias School
Childrens Services,Children's Social Care,Children Looked After,S23 Fam Pl In-Hse-S/Term F/C,Childrens Act Section 23 - Commissioned Services,20/03/2019,5195326,"2,873.45",Melanie Gill T/a Keighley GIll Consulting Ltd
Childrens Services,Children's Social Care,Children Looked After,S23 Fam Pl P&V-F/Care,Childrens Act Section 23 - Placement Fee,20/03/2019,5196815,"1,206.00",Kent Homefinding and Fostering
Childrens Services,Children's Social Care,Children Looked After,S23 Fam Pl P&V-F/Care,Childrens Act Section 23 - Placement Fee,20/03/2019,5196913,784.00,Swiis Foster Care Limited
Childrens Services,Education Services,Other Strategic Functions,Ofsted Improvement Plan,Agency Staff,20/03/2019,5196948,"8,487.36",NonStop Recruitment Ltd
Childrens Services,Children's Social Care,Support Service and Management Costs,Schools Catering,Kitchen Supplies - Food and Beverages,20/03/2019,5197032,-328.07,Thomas Ridley & Son Ltd
Childrens Services,Education Services,Other Strategic Functions,Education Psychologists GF,Training Expenses - Staff External Training (UK Based),20/03/2019,5197687,"1,050.00",National Development Team for Inclusion
Childrens Services,Children's Social Care,Children Looked After,LCS/Allowances-Accom,Leaving Care Financial Assistance - Supp Accom/Hous Rents,22/03/2019,5183983,"2,399.99",Alpha Care Service Ltd
Childrens Services,Children's Social Care,Children Looked After,LCS/Allowances-Accom,Leaving Care Financial Assistance - Supported Living,22/03/2019,5183983,"1,199.99",Alpha Care Service Ltd
Childrens Services,Children's Social Care,Children Looked After,S23-Other-Semi-Ind. Unit,Childrens Act Section 23 - Placement Fee,22/03/2019,5183984,"3,599.99",Alpha Care Service Ltd
Childrens Services,Children's Social Care,Children Looked After,S23 Fam Pl P&V-F/Care,Childrens Act Section 23 - Placement Fee,22/03/2019,5184324,"3,187.80",Kent Homefinding and Fostering
Childrens Services,Children's Social Care,Children Looked After,S23 Fam Pl P&V-F/Care,Childrens Act Section 23 - Placement Fee,22/03/2019,5184325,"3,220.00",Kent Homefinding and Fostering
